Capital or Revenue,Directorate,SERCOP High Level Category,SERCOP Detailed Category,Transaction Number,Date,Service Area,Expenses Type,Amount,Supplier Name
Revenue,Place,Planning services,Environmental Initiatives,5105688666,31.10.2018,East Wight Landscape Partnership,Grants to External Bodies,"2,640.00",COASTAL AND GEOTECHNICAL SERVICES
Revenue,Adult Services,Adult Social Care,Learning Disab Supp (to be reallocated),5105688337,26.10.2018,Saxonbury,Minor Works,60,A & M APPLIANCE CARE
Revenue,Adult Services,Adult Social Care,Learning Disab Supp (to be reallocated),5105686627,10.10.2018,Seagulls,Minor Works,60,A & M APPLIANCE CARE
Revenue,Adult Services,Adult Social Care,Learning Disab Supp (to be reallocated),5105685887,03.10.2018,Westminster House,Property Services - Day to day Maintenance,60,A & M APPLIANCE CARE
Revenue,Adult Services,Adult Social Care,Learning Disab Supp (to be reallocated),5105685834,03.10.2018,Plean Dene,Consumable Cleaning Materials,66,A & M APPLIANCE CARE
Revenue,Adult Services,Adult Social Care,Learning Disab Supp (to be reallocated),5105688338,26.10.2018,Plean Dene,Consumable Cleaning Materials,79,A & M APPLIANCE CARE
Revenue,Adult Services,Adult Social Care,Central Codes (to be reallocated),5105688040,24.10.2018,Gouldings Resource Centre,Consumable Cleaning Materials,164,A & M APPLIANCE CARE
Revenue,Adult Services,Adult Social Care,Central Codes (to be reallocated),5105688335,26.10.2018,Adelaide Resource Centre,Consumable Cleaning Materials,272,A & M APPLIANCE CARE
Revenue,Adult Services,Adult Social Care,Central Codes (to be reallocated),5105684693,03.10.2018,Adelaide Resource Centre,Property Services - Day to day Maintenance,492.56,A & M APPLIANCE CARE
Revenue,Adult Services,Adult Social Care,Central Codes (to be reallocated),5105688336,26.10.2018,Gouldings Resource Centre,Property Services - Day to day Maintenance,114.2,A & M APPLIANCE CARE
Revenue,Adult Services,Adult Social Care,Central Codes (to be reallocated),5105686565,10.10.2018,Adelaide Resource Centre,Property Services - Planned Maintenance,120,A & M APPLIANCE CARE
Revenue,Place,Cultural and Related Services,Open Spaces,5105687627,19.10.2018,IW Biological Record Centre,Consultants Fees,880,REDACTED PERSONAL DATA
Revenue,Neighbourhoods,Environmental & Regulatory Services,"Cemetery, Cremation & Mortuary Services",5105687680,19.10.2018,Cemeteries Administration,Grounds Maintenance,160,A GUSTAR T/A IVY TREE CARE
Revenue,Neighbourhoods,Cultural and Related Services,Open Spaces,5105685796,03.10.2018,Tree Felling / Replacement,Payment to Private Contractors,470,A GUSTAR T/A IVY TREE CARE
Revenue,Neighbourhoods,Cultural and Related Services,Open Spaces,5105687775,19.10.2018,Tree Felling / Replacement,Payment to Private Contractors,"2,960.00",A GUSTAR T/A IVY TREE CARE
Revenue,Resources,Central Services,Support Services,5105687633,19.10.2018,Litigation Costs,Legal Fees - Other Parties,480,"COLLEGE CHAMBERS, BARRISTERS"
Revenue,Regeneration,Central Services,Support Services,5105686196,10.10.2018,"County Hall,Newport","Refuse Collection, Disposal and Recycling Costs",48,ALAN NEWBERY WASTE MANAGEMENT
Revenue,Childrens Services,Children's & Education Services,Other Education and Community Budget,5105687001,12.10.2018,Home to School SEN Transport (LA),Taxis - Contract Hire,442,AMAR CABS OF NEWPORT
Revenue,Childrens Services,Children's & Education Services,Other Education and Community Budget,5105687004,12.10.2018,Home to School SEN Transport (LA),Taxis - Contract Hire,550,AMAR CABS OF NEWPORT
Revenue,Childrens Services,Children's & Education Services,Other Education and Community Budget,5105687003,12.10.2018,Home to School SEN Transport (LA),Taxis - Contract Hire,527,AMAR EXCLUSIVES
Revenue,Adult Services,Adult Social Care,Learning Disab Supp (to be reallocated),5105687940,24.10.2018,The Laurels,Vehicle Maintenance Costs,45,ISLANDWIDE WINDSCREENS
Revenue,Neighbourhoods,Environmental & Regulatory Services,Service Management and Support Services,5105686620,10.10.2018,Environment officers,Vehicle Maintenance Costs,45,ISLANDWIDE WINDSCREENS
Revenue,Childrens Services,Children's & Education Services,Other Education and Community Budget,5105687189,17.10.2018,Home to School SEN Transport (LA),Taxis - Contract Hire,264,BEACON TAXIS
Revenue,Childrens Services,Children's & Education Services,Family Support Services,5105687610,19.10.2018,Short Breaks,Charges from Independent Providers,392.5,BEBE'CINNO
Revenue,Neighbourhoods,Environmental & Regulatory Services,Regulatory Services,5105685726,10.10.2018,Environmental Health - Environmental Regulation & Protection,Payment to Private Contractors,"1,527.30",BUCKINGHAM FUTURES LTD
Revenue,Neighbourhoods,Environmental & Regulatory Services,Regulatory Services,5105685726,10.10.2018,Environmental Health - Environmental Regulation & Protection,Payment to Private Contractors,46.32,BUCKINGHAM FUTURES LTD
Revenue,Neighbourhoods,Environmental & Regulatory Services,Regulatory Services,5105685840,03.10.2018,Environmental Health - Environmental Regulation & Protection,Payment to Private Contractors,492.13,BUCKINGHAM FUTURES LTD
Revenue,Neighbourhoods,Environmental & Regulatory Services,Regulatory Services,5105686708,12.10.2018,Environmental Health - Environmental Regulation & Protection,Payment to Private Contractors,763.65,BUCKINGHAM FUTURES LTD
Revenue,Neighbourhoods,Environmental & Regulatory Services,Regulatory Services,5105687236,17.10.2018,Environmental Health - Environmental Regulation & Protection,Payment to Private Contractors,560.01,BUCKINGHAM FUTURES LTD
Revenue,Regeneration,Central Services,Support Services,5105687762,19.10.2018,"Enterprise House, Newport",Property Services - Day to day Maintenance,190,C & J GROUND MAINTENANCE
Revenue,Regeneration,Housing Services,Other Council Property,5105687759,19.10.2018,Shared Ownership,Grounds Maintenance,150,C & J GROUND MAINTENANCE
Revenue,Regeneration,Planning services,Business Support,5105687761,19.10.2018,Dodnor Industrial Estate,Grounds Maintenance,150,C & J GROUND MAINTENANCE
Revenue,Adult Services,Adult Social Care,Central Codes (to be reallocated),5105687760,19.10.2018,Adelaide Resource Centre,Property Services - Day to day Maintenance,236.75,C & J GROUND MAINTENANCE
Revenue,Childrens Services,Children's & Education Services,Other Education and Community Budget,5105687205,17.10.2018,Specialist Cross-Council Training,Training,250,REDACTED PERSONAL DATA
Revenue,Childrens Services,Children's & Education Services,Other Education and Community Budget,5105687768,19.10.2018,Home to School SEN Transport (LA),Taxis - Contract Hire,990,CLARES CABS
Revenue,Place,Planning services,Planning Policy,5105685590,31.10.2018,Local Development Framework,Legal Fees - Other Parties,"2,000.00",CORNERSTONE BARRISTERS
Revenue,Resources,Central Services,Support Services,5105688105,24.10.2018,Litigation Costs,Legal Fees - Other Parties,"2,750.00",CORNERSTONE BARRISTERS
Revenue,Neighbourhoods,Environmental & Regulatory Services,Service Management and Support Services,5105687109,17.10.2018,Environment officers,Payment to Private Contractors,962.5,REDACTED PERSONAL DATA
Revenue,Resources,Central Services,Support Services,5105687599,19.10.2018,Litigation Costs,Legal Fees - Other Parties,400,COLLEGE CHAMBERS BARRISTERS
Revenue,Adult Services,Adult Social Care,Social Care Activities,5105688024,24.10.2018,DoLS/MCA,Professional Services,197.72,DR ALEXIS BOWERS LTD
Revenue,Adult Services,Adult Social Care,Social Care Activities,5105688023,24.10.2018,DoLS/MCA,Professional Services,386.73,DR ALEXIS BOWERS LTD
Revenue,Adult Services,Adult Social Care,Social Care Activities,5105688022,24.10.2018,DoLS/MCA,Professional Services,379.36,DR ALEXIS BOWERS LTD
Revenue,Adult Services,Adult Social Care,Social Care Activities,5105688021,24.10.2018,DoLS/MCA,Professional Services,184.32,DR ALEXIS BOWERS LTD
Revenue,Adult Services,Adult Social Care,Social Care Activities,5105688020,24.10.2018,DoLS/MCA,Professional Services,197.72,DR ALEXIS BOWERS LTD
Revenue,Adult Services,Adult Social Care,Social Care Activities,5105688019,24.10.2018,DoLS/MCA,Professional Services,374,DR ALEXIS BOWERS LTD
Revenue,Adult Services,Adult Social Care,Social Care Activities,5105686559,17.10.2018,DoLS/MCA,Professional Services,200,THE MEMORY SERVICE
Revenue,Adult Services,Adult Social Care,Physical Support - older people (65+),5105688716,31.10.2018,Physical Support Other ST Support 65+,Professional Services,750,EXTRACTA CLEANING
Revenue,Childrens Services,Children's & Education Services,Other Education and Community Budget,5105684718,03.10.2018,Sandown Bay Academy,Payment to Private Contractors,"1,620.00",EXTRACTA CLEANING
Revenue,Adult Services,Adult Social Care,Physical Support - adults (18-64),5105688474,26.10.2018,Physical Support Other ST Support 18-64,Charges from Independent Providers,680,EXTRACTA CLEANING
Revenue,Childrens Services,Children's & Education Services,Other Education and Community Budget,5105686425,05.10.2018,Specialist Cross-Council Training,Training,650,FRAN OSMAN-NEWBURY LTD
Revenue,Neighbourhoods,Cultural and Related Services,Recreation and Sport,5105685752,03.10.2018,The Heights,Stock Purchases,22.22,FULL SPREAD LIMITED
Revenue,Neighbourhoods,Cultural and Related Services,Recreation and Sport,5105686006,03.10.2018,The Heights,Stock Purchases,34.67,FULL SPREAD LIMITED
Revenue,Neighbourhoods,Cultural and Related Services,Recreation and Sport,5105687319,17.10.2018,The Heights,Stock Purchases,24.49,FULL SPREAD LIMITED
Revenue,Neighbourhoods,Cultural and Related Services,Recreation and Sport,5105686677,10.10.2018,The Heights,Stock Purchases,38.06,FULL SPREAD LIMITED
Revenue,Neighbourhoods,Cultural and Related Services,Recreation and Sport,5105686679,10.10.2018,The Heights,Stock Purchases,35.26,FULL SPREAD LIMITED
Revenue,Childrens Services,Children's & Education Services,Safeguarding Children/Young Peoples Svs,5105688141,24.10.2018,Court Work & Consultancy Services,Professional Services,232.46,GARY TAYLOR ASSOCIATES LIMITED
Revenue,Childrens Services,Children's & Education Services,Other Education and Community Budget,5105686728,12.10.2018,Home to School Mainstream Transport,Taxis - Contract Hire,900,HAYLES TAXIS
Revenue,Childrens Services,Children's & Education Services,Other Education and Community Budget,5105686725,12.10.2018,Home to College Post 16 Transport,Taxis - Contract Hire,360,HAYLES TAXIS
Revenue,Childrens Services,Children's & Education Services,Other Education and Community Budget,5105686727,12.10.2018,Home to College Post 16 Transport,Taxis - Contract Hire,240,HAYLES TAXIS
Revenue,Childrens Services,Children's & Education Services,Other Education and Community Budget,5105686726,12.10.2018,Home to College Post 16 Transport,Taxis - Contract Hire,760,HAYLES TAXIS
Revenue,Regeneration,Planning services,Economic Development,5105686664,10.10.2018,One Public Estate,Consultants Fees,952.15,INNER CIRCLE CONSULTING LTD
Capital,Place,Capital,Capital,5105684301,03.10.2018,Bus Infrastructure,External Design and Supervision Fees,"3,040.00",ISLAND HIGHWAY & TRANSPORT
Capital,Place,Capital,Capital,5105687000,12.10.2018,Bus Infrastructure,External Design and Supervision Fees,"1,000.00",ISLAND HIGHWAY & TRANSPORT
Capital,Place,Capital,Capital,5105687285,24.10.2018,Bus Infrastructure,External Design and Supervision Fees,"1,520.00",ISLAND HIGHWAY & TRANSPORT
Capital,Place,Capital,Capital,5105687010,12.10.2018,Bus Infrastructure,Payment to Contractors - Capital,"1,275.00",ISLAND HIGHWAY & TRANSPORT
Revenue,Adult Services,Adult Social Care,Learning Disab Supp (to be reallocated),5105687291,19.10.2018,Saxonbury,Cleaning Contracts,33,ISLANDWIDE WINDOW CLEANING
Revenue,Adult Services,Adult Social Care,Learning Disab Supp (to be reallocated),5105687291,19.10.2018,Seagulls,Cleaning Contracts,22,ISLANDWIDE WINDOW CLEANING
Revenue,Adult Services,Adult Social Care,Learning Disab Supp (to be reallocated),5105687291,19.10.2018,40 Venner Avenue,Cleaning Contracts,18,ISLANDWIDE WINDOW CLEANING
Revenue,Adult Services,Adult Social Care,Learning Disab Supp (to be reallocated),5105687291,19.10.2018,Westminster House,Cleaning Contracts,60,ISLANDWIDE WINDOW CLEANING
Revenue,Adult Services,Adult Social Care,Learning Disab Supp (to be reallocated),5105687291,19.10.2018,31 Carter Avenue,Cleaning Contracts,27,ISLANDWIDE WINDOW CLEANING
Revenue,Adult Services,Adult Social Care,Learning Disab Supp (to be reallocated),5105687291,19.10.2018,Plean Dene,Cleaning Contracts,85,ISLANDWIDE WINDOW CLEANING
Revenue,Adult Services,Adult Social Care,Learning Disab Supp (to be reallocated),5105687291,19.10.2018,The Laurels,Cleaning Contracts,27,ISLANDWIDE WINDOW CLEANING
Revenue,Resources,Central Services,Support Services,5105686520,19.10.2018,ICT Contracts,Computer Maintenance,300,REDACTED PERSONAL DATA
Revenue,Resources,Central Services,Support Services,5105687387,17.10.2018,Litigation Costs,Legal Fees - Other Parties,"1,250.00","COLLEGE CHAMBERS, BARRISTERS"
Revenue,Resources,Central Services,Support Services,5105687767,19.10.2018,Litigation Costs,Legal Fees - Other Parties,400,"COLLEGE CHAMBERS, BARRISTERS"
Revenue,Adult Services,Adult Social Care,Commissioning & Service Delivery,5105687354,17.10.2018,Learning Disability Homes Management & Admin,Consultants Fees,600,JAYNE KILGALLEN INTERIM SOLUTIONS
Revenue,Adult Services,Adult Social Care,Commissioning & Service Delivery,5105687354,17.10.2018,Learning Disability Homes Management & Admin,Consultants Fees,227.7,JAYNE KILGALLEN INTERIM SOLUTIONS
Revenue,Childrens Services,Children's & Education Services,Family Support Services,5105687201,17.10.2018,Short Breaks,Charges from Independent Providers,307.2,JOHN CATTLE'S SKATE CLUB
Revenue,Adult Services,Adult Social Care,Social Care Activities,5105687222,17.10.2018,Safeguarding Adults,Consultants Fees,"3,200.00",MAKING CONNECTIONS (IW) LTD
Revenue,Childrens Services,Adult Social Care,Social Care Activities,5105688635,31.10.2018,Adult Social Care - Workforce Development,Training,810,MAKING CONNECTIONS (IW) LTD
Capital,Place,Capital,Capital,5105688449,31.10.2018,Rights Of Way Capital Programme,Payment to Contractors - Capital,"1,320.00",REDACTED PERSONAL DATA
Capital,Place,Capital,Capital,5105688452,31.10.2018,Rights Of Way Capital Programme,Payment to Contractors - Capital,"2,200.00",REDACTED PERSONAL DATA
Revenue,Childrens Services,Children's & Education Services,Safeguarding Children/Young Peoples Svs,5105688710,31.10.2018,ASYE Programme,Training,"1,000.00",MISSING SOLUTIONS LTD
Capital,Place,Capital,Capital,5105688741,31.10.2018,Rights Of Way Capital Programme,Payment to Contractors - Capital,"2,700.00",REDACTED PERSONAL DATA
Revenue,Childrens Services,Children's & Education Services,Other Education and Community Budget,5105687757,19.10.2018,Home to College Post 16 Transport,Taxis - Contract Hire,"1,000.00",MUSTI'S TAXIS
Revenue,Resources,Central Services,Support Services,5105686703,10.10.2018,Legal Services Section,Sundry Office Expenses,59.97,OD CONSULTANCY LTD
Revenue,Childrens Services,Children's & Education Services,Safeguarding Children/Young Peoples Svs,5105687235,17.10.2018,Service Management (Children & Families),Printing Costs,175,REDACTED PERSONAL DATA
Revenue,Place,Housing Services,Homelessness,5105687814,24.10.2018,Leaseholds by LA,Accommodation Costs - Leaseholder Payments,695.89,REDACTED PERSONAL DATA
Revenue,Place,Housing Services,Homelessness,5105687814,24.10.2018,Leaseholds by LA,Accommodation Costs - Leaseholder Payments,695.89,REDACTED PERSONAL DATA
Revenue,Place,Housing Services,Homelessness,5105687814,24.10.2018,Leaseholds by LA,Accommodation Costs - Leaseholder Payments,695.89,REDACTED PERSONAL DATA
Revenue,Place,Housing Services,Homelessness,5105687814,24.10.2018,Leaseholds by LA,Accommodation Costs - Leaseholder Payments,695.89,REDACTED PERSONAL DATA
Revenue,Place,Housing Services,Homelessness,5105687814,24.10.2018,Leaseholds by LA,Accommodation Costs - Leaseholder Payments,695.89,REDACTED PERSONAL DATA
Revenue,Childrens Services,Children's & Education Services,Children Looked After,5105686650,10.10.2018,Adoption Support Fund,Charges from Independent Providers,180,REDACTED PERSONAL DATA
Revenue,Childrens Services,Children's & Education Services,Children Looked After,5105686653,10.10.2018,Adoption Support Fund,Charges from Independent Providers,300,REDACTED PERSONAL DATA
Revenue,Neighbourhoods,Highways and Transport Services,"Airports, Harbours & Toll Facilities",5105687037,12.10.2018,Ferry Operation,Payment to Private Contractors,"1,721.99",PREMIER SOLUTIONS
Revenue,Neighbourhoods,Highways and Transport Services,"Airports, Harbours & Toll Facilities",5105685775,03.10.2018,Ferry Operation,Operational Equipment,15,PREMIER SOLUTIONS
Revenue,Neighbourhoods,Highways and Transport Services,"Airports, Harbours & Toll Facilities",5105685775,03.10.2018,Ferry Operation,Operational Equipment,156,PREMIER SOLUTIONS
Revenue,Neighbourhoods,Highways and Transport Services,"Airports, Harbours & Toll Facilities",5105685775,03.10.2018,Ferry Operation,Operational Equipment,35.28,PREMIER SOLUTIONS
Revenue,Neighbourhoods,Highways and Transport Services,"Airports, Harbours & Toll Facilities",5105687351,19.10.2018,Ferry Operation,Operational Equipment,15,PREMIER SOLUTIONS
Revenue,Neighbourhoods,Highways and Transport Services,"Airports, Harbours & Toll Facilities",5105687351,19.10.2018,Ferry Operation,Operational Equipment,284,PREMIER SOLUTIONS
Capital,Place,Capital,Capital,5105688661,31.10.2018,Bus Infrastructure,External Design and Supervision Fees,"2,204.00",PRINCIPAL SURVEYORS LTD
Revenue,Childrens Services,Children's & Education Services,Other Education and Community Budget,5105688667,31.10.2018,Non-Delegated Building Maintenance,Consultants Fees,228,PRINCIPAL SURVEYORS LTD
Revenue,Neighbourhoods,Cultural and Related Services,Recreation and Sport,5105688044,24.10.2018,Ryde Concessions,Professional Services,100,PRINCIPAL SURVEYORS LTD
Revenue,Regeneration,Central Services,Support Services,5105688041,24.10.2018,Properties  - Other Properties,Professional Services,200,PRINCIPAL SURVEYORS LTD
Revenue,Adult Services,Adult Social Care,Commissioning & Service Delivery,5105685853,03.10.2018,Deferred Payment Fees,Professional Services,150,PRINCIPAL SURVEYORS LTD
Revenue,Adult Services,Adult Social Care,Commissioning & Service Delivery,5105686440,10.10.2018,Deferred Payment Fees,Professional Services,150,PRINCIPAL SURVEYORS LTD
Revenue,Regeneration,Planning services,Business Support,5105687905,24.10.2018,Dodnor Industrial Estate,Professional Services,150,PRINCIPAL SURVEYORS LTD
Revenue,Adult Services,Adult Social Care,Learning Disability Suppt-adults (18-64),5105685967,05.10.2018,Learning Disability Other LT Care 18-64,Taxis - Contract Hire,400,ROUNSEVELLS TAXIS
Revenue,Adult Services,Adult Social Care,Learning Disability Suppt-adults (18-64),5105687317,19.10.2018,Learning Disability Other LT Care 18-64,Taxis - Contract Hire,400,ROUNSEVELLS TAXIS
Revenue,Adult Services,Adult Social Care,Learning Disability Suppt-adults (18-64),5105688451,31.10.2018,Learning Disability Other LT Care 18-64,Taxis - Contract Hire,400,ROUNSEVELLS TAXIS
Revenue,Adult Services,Adult Social Care,Social Care Activities,5105688488,31.10.2018,First Response,Professional Services,280,REDACTED PERSONAL DATA
Capital,Place,Capital,Capital,5105687233,17.10.2018,Cowes Floating Brdge,Payment to Contractors - Capital,"5,300.00",SHORELINE SURVEYS LIMITED
Revenue,Adult Services,Adult Social Care,Social Care Activities,5105686700,17.10.2018,DoLS/MCA,Professional Services,"2,027.52",REDACTED PERSONAL DATA
Revenue,Childrens Services,Children's & Education Services,Family Support Services,5105686959,12.10.2018,Short Breaks,Charges from Independent Providers,320,SPLAT MESSY PLAY LTD
Revenue,Childrens Services,Adult Social Care,Social Care Activities,5105687301,19.10.2018,Adult Social Care - Workforce Development,Training,549,ST THOMAS TRAINING
Revenue,Childrens Services,Adult Social Care,Social Care Activities,5105686636,17.10.2018,Adult Social Care - Workforce Development,Training,549,ST THOMAS TRAINING
Revenue,Childrens Services,Adult Social Care,Social Care Activities,5105685884,03.10.2018,Adult Social Care - Workforce Development,Training,549,ST THOMAS TRAINING
Revenue,Childrens Services,Children's & Education Services,Safeguarding Children/Young Peoples Svs,5105685806,24.10.2018,LSCB (Local Safeguarding Childrens Board),Training,500,SANDSTORIES
Revenue,Childrens Services,Children's & Education Services,Safeguarding Children/Young Peoples Svs,5105685806,24.10.2018,LSCB (Local Safeguarding Childrens Board),Travel Expenses,287.08,SANDSTORIES
Revenue,Childrens Services,Children's & Education Services,Children Looked After,5105688645,31.10.2018,Leaving Care Costs,Support Children,297.6,NUMBER5NEWPORT
Revenue,Childrens Services,Children's & Education Services,Children Looked After,5105688645,31.10.2018,Leaving Care Costs,Support Children,256.37,NUMBER5NEWPORT
Revenue,Childrens Services,Children's & Education Services,Children Looked After,5105686012,05.10.2018,Leaving Care Costs,Support Children,374.4,NUMBER5NEWPORT
Revenue,Childrens Services,Children's & Education Services,Children Looked After,5105686012,05.10.2018,Leaving Care Costs,Support Children,322.53,NUMBER5NEWPORT
Revenue,Childrens Services,Children's & Education Services,Children Looked After,5105688644,31.10.2018,Leaving Care Costs,Charges from Independent Providers,297.6,NUMBER5NEWPORT
Revenue,Childrens Services,Children's & Education Services,Children Looked After,5105688631,31.10.2018,Leaving Care Costs,Charges from Independent Providers,"11,514.64",NUMBER5NEWPORT
Revenue,Childrens Services,Children's & Education Services,Children Looked After,5105686014,05.10.2018,Leaving Care Costs,Charges from Independent Providers,288,NUMBER5NEWPORT
Revenue,Childrens Services,Children's & Education Services,Children Looked After,5105686011,05.10.2018,Leaving Care Costs,Charges from Independent Providers,"11,143.20",NUMBER5NEWPORT
Revenue,Childrens Services,Children's & Education Services,Other Education and Community Budget,5105686377,05.10.2018,Specialist Cross-Council Training,Training,400,THE CROSSLEY COMPANY (IOW) LTD
Revenue,Childrens Services,Children's & Education Services,Other Education and Community Budget,5105686377,05.10.2018,Specialist Cross-Council Training,Training,400,THE CROSSLEY COMPANY (IOW) LTD
Revenue,Childrens Services,Children's & Education Services,Other Education and Community Budget,5105686645,10.10.2018,Home to School Mainstream Transport,Taxis - Contract Hire,850,THOMPSON TAXI
Revenue,Childrens Services,Children's & Education Services,Other Education and Community Budget,5105686986,12.10.2018,Home to School SEN Transport (LA),Taxis - Contract Hire,340,THOMPSON TAXI
Revenue,Childrens Services,Children's & Education Services,Other Education and Community Budget,5105686985,12.10.2018,Home to School SEN Transport (LA),Taxis - Contract Hire,"1,080.00",THOMPSON TAXI
Revenue,Childrens Services,Children's & Education Services,Other Education and Community Budget,5105686663,10.10.2018,Home to School SEN Transport (LA),Taxis - Contract Hire,"1,800.00",THOMPSON TAXI
Revenue,Childrens Services,Children's & Education Services,Other Education and Community Budget,5105687920,31.10.2018,Home to College Post 16 Transport,Taxis - Contract Hire,906,TJ CAR SERVICES LTD
Revenue,Childrens Services,Children's & Education Services,Other Education and Community Budget,5105687920,31.10.2018,Home to College Post 16 Transport,Taxis - Contract Hire,115,TJ CAR SERVICES LTD
Revenue,Childrens Services,Children's & Education Services,Other Education and Community Budget,5105687920,31.10.2018,Home to College Post 16 Transport,Taxis - Contract Hire,484,TJ CAR SERVICES LTD
Revenue,Childrens Services,Children's & Education Services,Special Schools & Alternative Provision,5105686506,10.10.2018,Island Learning Centre,Cleaning Contracts,713.56,TOP MOPS LIMITED
Revenue,Childrens Services,Children's & Education Services,Special Schools & Alternative Provision,5105686505,10.10.2018,Island Learning Centre,Cleaning Contracts,"1,128.00",TOP MOPS LIMITED
Revenue,Regeneration,Planning services,Economic Development,5105683920,17.10.2018,Sandown Eastern Bay Regeneration,Consumable Cleaning Materials,184.98,TOP MOPS LIMITED
Revenue,Regeneration,Planning services,Economic Development,5105687756,19.10.2018,Sandown Eastern Bay Regeneration,Consumable Cleaning Materials,60.3,TOP MOPS LIMITED
Revenue,Regeneration,Planning services,Economic Development,5105687754,19.10.2018,Sandown Eastern Bay Regeneration,Consumable Cleaning Materials,127.67,TOP MOPS LIMITED
Revenue,Childrens Services,Children's & Education Services,Special Schools & Alternative Provision,5105685778,03.10.2018,Island Learning Centre,Consumable Cleaning Materials,138.3,TOP MOPS LIMITED
Revenue,Childrens Services,Children's & Education Services,Special Schools & Alternative Provision,5105685825,03.10.2018,Island Learning Centre,Consumable Cleaning Materials,12.9,TOP MOPS LIMITED
Revenue,Childrens Services,Children's & Education Services,Special Schools & Alternative Provision,5105685839,03.10.2018,Island Learning Centre,Consumable Cleaning Materials,133.53,TOP MOPS LIMITED
Revenue,Regeneration,Planning services,Economic Development,5105688705,31.10.2018,Sandown Eastern Bay Regeneration,Consumable Cleaning Materials,"1,200.00",TOP MOPS LIMITED
Revenue,Neighbourhoods,Cultural and Related Services,Recreation and Sport,5105686518,10.10.2018,Westridge Squash Courts,Maintenance of Operational Equipment,12,VECTIS GROUP SECURITY LTD
Revenue,Neighbourhoods,Cultural and Related Services,Recreation and Sport,5105686591,10.10.2018,Medina Leisure Centre,Payment to Private Contractors,92,VECTIS GROUP SECURITY LTD
Revenue,Adult Services,Adult Social Care,Learning Disab Supp (to be reallocated),5105686252,17.10.2018,"Brooklime House, Bluebell Meadows",Security of Buildings,72,VECTIS GROUP SECURITY LTD
Revenue,Childrens Services,Children's & Education Services,Other Education and Community Budget,5105686467,10.10.2018,Weston Academy Closure,Security of Buildings,312,VECTIS GROUP SECURITY LTD
Revenue,Childrens Services,Children's & Education Services,Other Education and Community Budget,5105688692,31.10.2018,Weston Academy Closure,Security of Buildings,272,VECTIS GROUP SECURITY LTD
Revenue,Adult Services,Adult Social Care,Learning Disab Supp (to be reallocated),5105688642,31.10.2018,"Brooklime House, Bluebell Meadows",Security of Buildings,87,VECTIS GROUP SECURITY LTD
Revenue,Childrens Services,Children's & Education Services,Other Education and Community Budget,5105686211,05.10.2018,Broadlea PS Berry Hill site (was 55909),Security of Buildings,30,VECTIS GROUP SECURITY LTD
Revenue,Childrens Services,Children's & Education Services,Other Education and Community Budget,5105686468,10.10.2018,Barton Primary Sshool Disposal,Security of Buildings,327,VECTIS GROUP SECURITY LTD
Revenue,Regeneration,Central Services,Support Services,5105686334,17.10.2018,"Westridge, Ryde",Security of Buildings,112,VECTIS GROUP SECURITY LTD
Revenue,Regeneration,Central Services,Support Services,5105687584,19.10.2018,"Westridge, Ryde",Security of Buildings,112,VECTIS GROUP SECURITY LTD
Revenue,Childrens Services,Children's & Education Services,Other Education and Community Budget,5105688682,31.10.2018,Broadlea PS Berry Hill site (was 55909),Security of Buildings,30,VECTIS GROUP SECURITY LTD
Revenue,Neighbourhoods,Cultural and Related Services,Recreation and Sport,5105686622,10.10.2018,The Heights,Maintenance of Operational Equipment,32,VECTIS GROUP SECURITY LTD
Revenue,Childrens Services,Children's & Education Services,Special Schools & Alternative Provision,5105686576,10.10.2018,Island Learning Centre,Stationery,15,VECTIS GROUP SECURITY LTD
Revenue,Childrens Services,Children's & Education Services,Support Services,5105686526,10.10.2018,Grafton Street Sandown (ex Sandown Yth),Security of Buildings,87,VECTIS GROUP SECURITY LTD
Revenue,Childrens Services,Children's & Education Services,Special Schools & Alternative Provision,5105686576,10.10.2018,Island Learning Centre,Security of Buildings,12,VECTIS GROUP SECURITY LTD
Revenue,Childrens Services,Children's & Education Services,Other Education and Community Budget,5105686601,17.10.2018,Home to School SEN Transport (LA),Taxis - Contract Hire,726.75,W W CARS OF SEAVIEW
Revenue,Childrens Services,Children's & Education Services,Other Education and Community Budget,5105686595,12.10.2018,Home to School SEN Transport (LA),Taxis - Contract Hire,"1,682.50",W W CARS OF SEAVIEW
Capital,Resources,Capital,Capital,5105686255,05.10.2018,Boiler Replacement Heating Non Education,Payment to Contractors - Capital,"3,457.83",WIGHT HEATING LTD
Capital,Resources,Capital,Capital,5105687339,19.10.2018,Boiler Replacement Heating Non Education,Payment to Contractors - Capital,"8,421.84",WIGHT HEATING LTD
Revenue,Adult Services,Adult Social Care,Learning Disab Supp (to be reallocated),5105685976,03.10.2018,Westminster House,Property Services - Day to day Maintenance,80,WIGHT HEATING LTD
Revenue,Neighbourhoods,Cultural and Related Services,Recreation and Sport,5105687289,17.10.2018,Medina Leisure Centre,Property Services - Day to day Maintenance,115,WIGHT HEATING LTD
Revenue,Neighbourhoods,Cultural and Related Services,Recreation and Sport,5105687286,17.10.2018,Medina Leisure Centre,Property Services - Day to day Maintenance,304.24,WIGHT HEATING LTD
Revenue,Regeneration,Central Services,Support Services,5105687596,19.10.2018,Non-operational buildings,Property Services - Day to day Maintenance,80,WIGHT HEATING LTD
Revenue,Regeneration,Central Services,Support Services,5105687601,19.10.2018,Non-operational buildings,Property Services - Day to day Maintenance,455.3,WIGHT HEATING LTD
Capital,Resources,Capital,Capital,5105686412,05.10.2018,Management of Asbestos,Payment to Contractors - Capital,"3,843.01",WIGHT HEATING LTD
Revenue,Neighbourhoods,Cultural and Related Services,Recreation and Sport,5105686222,05.10.2018,The Heights,Property Services - Day to day Maintenance,187.69,WIGHT HEATING LTD
Revenue,Fire & Rescue,Fire & Rescue Services,Fire fighting and Rescue Operations,5105684800,03.10.2018,Business Support  - Fire,Property Services - Day to day Maintenance,45,WIGHT HEATING LTD
Revenue,Adult Services,Adult Social Care,Central Codes (to be reallocated),5105685979,03.10.2018,Gouldings Resource Centre,Property Services - Day to day Maintenance,115,WIGHT HEATING LTD
Revenue,Adult Services,Adult Social Care,Central Codes (to be reallocated),5105686223,05.10.2018,Adelaide Resource Centre,Property Services - Day to day Maintenance,"6,446.02",WIGHT HEATING LTD
Revenue,Fire & Rescue,Fire & Rescue Services,Fire fighting and Rescue Operations,5105685977,03.10.2018,Business Support  - Fire,Property Services - Day to day Maintenance,136.09,WIGHT HEATING LTD
Revenue,Fire & Rescue,Fire & Rescue Services,Fire fighting and Rescue Operations,5105686411,05.10.2018,Business Support  - Fire,Property Services - Day to day Maintenance,142.5,WIGHT HEATING LTD
Revenue,Regeneration,Central Services,Support Services,5105687597,19.10.2018,17 Fairlee Road,Minor Works,155,WIGHT HEATING LTD
Revenue,Childrens Services,Children's & Education Services,Sure Start Children's Centres,5105685978,03.10.2018,Family Centres Maintenance,Minor Works,245.34,WIGHT HEATING LTD
Revenue,Adult Services,Adult Social Care,Learning Disab Supp (to be reallocated),5105685972,03.10.2018,The Laurels,Minor Works,575.58,WIGHT HEATING LTD
Revenue,Place,Housing Services,Homelessness,5105687827,24.10.2018,Leaseholds by LA,Accommodation Costs - Leaseholder Payments,866.67,2K PROPERTY
Revenue,Childrens Services,Children's & Education Services,Other Education and Community Budget,5105685985,03.10.2018,Specialist Cross-Council Training,Training,"3,000.00",7 FUTURES LTD
Revenue,Childrens Services,Children's & Education Services,Other Education and Community Budget,5105685985,03.10.2018,Specialist Cross-Council Training,Training,320,7 FUTURES LTD
Revenue,Childrens Services,Children's & Education Services,Children Looked After,5105687433,19.10.2018,In-house Fostering,Boarding Out Allowances,234.52,REDACTED PERSONAL DATA
Revenue,Childrens Services,Children's & Education Services,Children Looked After,5105686752,12.10.2018,In-house Fostering,Boarding Out Allowances,234.52,REDACTED PERSONAL DATA
Revenue,Childrens Services,Children's & Education Services,Children Looked After,5105688169,26.10.2018,In-house Fostering,Boarding Out Allowances,234.52,REDACTED PERSONAL DATA
Revenue,Childrens Services,Children's & Education Services,Children Looked After,5105688169,26.10.2018,In-house Fostering,Boarding Out Allowances,234.52,REDACTED PERSONAL DATA
Revenue,Childrens Services,Children's & Education Services,Children Looked After,5105686752,12.10.2018,In-house Fostering,Boarding Out Allowances,234.52,REDACTED PERSONAL DATA
Revenue,Childrens Services,Children's & Education Services,Children Looked After,5105687433,19.10.2018,In-house Fostering,Boarding Out Allowances,234.52,REDACTED PERSONAL DATA
Revenue,Childrens Services,Children's & Education Services,Children Looked After,5105686038,05.10.2018,In-house Fostering,Boarding Out Allowances,234.52,REDACTED PERSONAL DATA
Revenue,Childrens Services,Children's & Education Services,Children Looked After,5105686038,05.10.2018,In-house Fostering,Boarding Out Allowances,234.52,REDACTED PERSONAL DATA
Revenue,Childrens Services,Children's & Education Services,Children Looked After,5105688169,26.10.2018,Special Guardianship Order Costs,Support Children,168.39,REDACTED PERSONAL DATA
Revenue,Childrens Services,Children's & Education Services,Children Looked After,5105686752,12.10.2018,Special Guardianship Order Costs,Support Children,168.39,REDACTED PERSONAL DATA
Revenue,Childrens Services,Children's & Education Services,Children Looked After,5105687433,19.10.2018,Special Guardianship Order Costs,Support Children,168.39,REDACTED PERSONAL DATA
Revenue,Childrens Services,Children's & Education Services,Children Looked After,5105686038,05.10.2018,Special Guardianship Order Costs,Support Children,168.39,REDACTED PERSONAL DATA
Revenue,Childrens Services,Children's & Education Services,Children Looked After,5105686798,12.10.2018,Leaving Care Costs,Support Children,68.5,REDACTED PERSONAL DATA
Revenue,Childrens Services,Children's & Education Services,Children Looked After,5105688214,26.10.2018,Leaving Care Costs,Support Children,120.89,REDACTED PERSONAL DATA
Revenue,Childrens Services,Children's & Education Services,Children Looked After,5105688214,26.10.2018,Leaving Care Costs,Support Children,68.5,REDACTED PERSONAL DATA
Revenue,Childrens Services,Children's & Education Services,Children Looked After,5105686798,12.10.2018,Leaving Care Costs,Support Children,120.89,REDACTED PERSONAL DATA
Revenue,Childrens Services,Children's & Education Services,Children Looked After,5105687478,19.10.2018,Leaving Care Costs,Support Children,120.89,REDACTED PERSONAL DATA
Revenue,Childrens Services,Children's & Education Services,Children Looked After,5105687478,19.10.2018,Leaving Care Costs,Support Children,68.5,REDACTED PERSONAL DATA
Revenue,Childrens Services,Children's & Education Services,Children Looked After,5105686086,05.10.2018,Leaving Care Costs,Support Children,68.5,REDACTED PERSONAL DATA
Revenue,Childrens Services,Children's & Education Services,Children Looked After,5105686086,05.10.2018,Leaving Care Costs,Support Children,120.89,REDACTED PERSONAL DATA
Revenue,Place,Housing Services,Homelessness,5105687824,24.10.2018,Leaseholds by LA,Accommodation Costs - Leaseholder Payments,510.25,REDACTED PERSONAL DATA
Revenue,Place,Housing Services,Homelessness,5105687824,24.10.2018,Leaseholds by LA,Accommodation Costs - Leaseholder Payments,510.25,REDACTED PERSONAL DATA
Revenue,Place,Housing Services,Homelessness,5105687824,24.10.2018,Leaseholds by LA,Accommodation Costs - Leaseholder Payments,510.25,REDACTED PERSONAL DATA
Revenue,Place,Housing Services,Homelessness,5105687824,24.10.2018,Leaseholds by LA,Accommodation Costs - Leaseholder Payments,510.25,REDACTED PERSONAL DATA
Revenue,Place,Housing Services,Homelessness,5105687824,24.10.2018,Leaseholds by LA,Accommodation Costs - Leaseholder Payments,510.25,REDACTED PERSONAL DATA
Revenue,Place,Housing Services,Homelessness,5105687824,24.10.2018,Leaseholds by LA,Accommodation Costs - Leaseholder Payments,510.25,REDACTED PERSONAL DATA
Revenue,Childrens Services,Children's & Education Services,Children Looked After,5105687421,19.10.2018,Adoption Costs,Support Children,225.83,REDACTED PERSONAL DATA
Revenue,Childrens Services,Children's & Education Services,Children Looked After,5105686741,12.10.2018,Adoption Costs,Support Children,225.83,REDACTED PERSONAL DATA
Revenue,Childrens Services,Children's & Education Services,Children Looked After,5105688157,26.10.2018,Adoption Costs,Support Children,225.83,REDACTED PERSONAL DATA
Revenue,Childrens Services,Children's & Education Services,Children Looked After,5105686025,05.10.2018,Adoption Costs,Support Children,225.83,REDACTED PERSONAL DATA
Revenue,Childrens Services,Children's & Education Services,Children Looked After,5105688190,26.10.2018,In-house Fostering,Boarding Out Allowances,500,REDACTED PERSONAL DATA
Revenue,Childrens Services,Children's & Education Services,Children Looked After,5105688190,26.10.2018,In-house Fostering,Boarding Out Allowances,500,REDACTED PERSONAL DATA
Revenue,Childrens Services,Children's & Education Services,Children Looked After,5105687454,19.10.2018,In-house Fostering,Boarding Out Allowances,500,REDACTED PERSONAL DATA
Revenue,Childrens Services,Children's & Education Services,Children Looked After,5105686773,12.10.2018,In-house Fostering,Boarding Out Allowances,500,REDACTED PERSONAL DATA
Revenue,Childrens Services,Children's & Education Services,Children Looked After,5105686773,12.10.2018,In-house Fostering,Boarding Out Allowances,500,REDACTED PERSONAL DATA
Revenue,Childrens Services,Children's & Education Services,Children Looked After,5105687454,19.10.2018,In-house Fostering,Boarding Out Allowances,500,REDACTED PERSONAL DATA
Revenue,Childrens Services,Children's & Education Services,Children Looked After,5105686061,05.10.2018,In-house Fostering,Boarding Out Allowances,500,REDACTED PERSONAL DATA
Revenue,Childrens Services,Children's & Education Services,Children Looked After,5105686061,05.10.2018,In-house Fostering,Boarding Out Allowances,500,REDACTED PERSONAL DATA
Revenue,Place,Highways and Transport Services,Transport Planning Policy and Strategy,5105687934,24.10.2018,Sustainable Transport,Payment to Private Contractors,"3,408.39",A TO THERE SOLUTIONS LTD
Revenue,Childrens Services,Children's & Education Services,Children Looked After,5105688695,31.10.2018,Beaulieu House,Minor Works,70,A-1 GARAGE DOOR SPECIALISTS (IOW)
Revenue,Adult Services,Adult Social Care,Support - Memory /Cognition-older people (65+),5105688595,31.10.2018,Memory & Cognition Residential 65+,Charges from Independent Providers,"3,200.12",ABBERDALE LIMITED
Revenue,Adult Services,Adult Social Care,Support - Memory /Cognition-older people (65+),5105685633,03.10.2018,Memory & Cognition Residential 65+,Charges from Independent Providers,"3,200.12",ABBERDALE LIMITED
Revenue,Resources,Central Services,Support Services,5105688065,24.10.2018,Litigation Costs,Legal Fees - Other Parties,125,ABLE INVESTIGATIONS & ENFORCEMENTS
Revenue,Neighbourhoods,Environmental & Regulatory Services,Regulatory Services,5105686894,12.10.2018,Licensing Services,Professional Services,132,ACCESS PERSONAL CHECKING SERVICES LTD
Revenue,Neighbourhoods,Environmental & Regulatory Services,Regulatory Services,5105686894,12.10.2018,Licensing Services,Professional Services,18,ACCESS PERSONAL CHECKING SERVICES LTD
Revenue,Childrens Services,Children's & Education Services,Children Looked After,5105686893,12.10.2018,In-house Fostering,Interview & recruitment expenses,18,ACCESS PERSONAL CHECKING SERVICES LTD
Revenue,Childrens Services,Children's & Education Services,Youth Justice,5105686893,12.10.2018,Youth Offending Team,Interview & recruitment expenses,18,ACCESS PERSONAL CHECKING SERVICES LTD
Revenue,Childrens Services,Children's & Education Services,Other Education and Community Budget,5105686893,12.10.2018,Education Welfare Service,Interview & recruitment expenses,18,ACCESS PERSONAL CHECKING SERVICES LTD
Revenue,Childrens Services,Children's & Education Services,Children Looked After,5105686893,12.10.2018,In-house Fostering,Interview & recruitment expenses,18,ACCESS PERSONAL CHECKING SERVICES LTD
Revenue,Childrens Services,Children's & Education Services,Children Looked After,5105686893,12.10.2018,In-house Fostering,Interview & recruitment expenses,132,ACCESS PERSONAL CHECKING SERVICES LTD
Revenue,Childrens Services,Children's & Education Services,Youth Justice,5105686893,12.10.2018,Youth Offending Team,Interview & recruitment expenses,132,ACCESS PERSONAL CHECKING SERVICES LTD
Revenue,Childrens Services,Children's & Education Services,Children Looked After,5105686893,12.10.2018,In-house Fostering,Interview & recruitment expenses,132,ACCESS PERSONAL CHECKING SERVICES LTD
Revenue,Childrens Services,Children's & Education Services,Safeguarding Children/Young Peoples Svs,5105686893,12.10.2018,Safeguarding Support,Interview & recruitment expenses,8,ACCESS PERSONAL CHECKING SERVICES LTD
Revenue,Childrens Services,Children's & Education Services,Other Education and Community Budget,5105686893,12.10.2018,SEND Independent Advice & Support,Interview & recruitment expenses,6,ACCESS PERSONAL CHECKING SERVICES LTD
Revenue,Childrens Services,Children's & Education Services,Children Looked After,5105686893,12.10.2018,Adoption Costs,Interview & recruitment expenses,6,ACCESS PERSONAL CHECKING SERVICES LTD
Revenue,Neighbourhoods,Cultural and Related Services,Recreation and Sport,5105686893,12.10.2018,Medina Leisure Centre,Interview & recruitment expenses,18,ACCESS PERSONAL CHECKING SERVICES LTD
Revenue,Childrens Services,Children's & Education Services,Safeguarding Children/Young Peoples Svs,5105686893,12.10.2018,Safeguarding Support,Interview & recruitment expenses,25,ACCESS PERSONAL CHECKING SERVICES LTD
Revenue,Childrens Services,Children's & Education Services,Children Looked After,5105686893,12.10.2018,Adoption Costs,Interview & recruitment expenses,44,ACCESS PERSONAL CHECKING SERVICES LTD
Revenue,Neighbourhoods,Cultural and Related Services,Recreation and Sport,5105686893,12.10.2018,Medina Leisure Centre,Interview & recruitment expenses,132,ACCESS PERSONAL CHECKING SERVICES LTD
Revenue,Childrens Services,Children's & Education Services,Safeguarding Children/Young Peoples Svs,5105686893,12.10.2018,Childrens Assess & Safeguarding Team,Interview & recruitment expenses,8,ACCESS PERSONAL CHECKING SERVICES LTD
Revenue,Adult Services,Adult Social Care,Central Codes (to be reallocated),5105686893,12.10.2018,Community Outreach,Interview & recruitment expenses,30,ACCESS PERSONAL CHECKING SERVICES LTD
Revenue,Adult Services,Adult Social Care,Learning Disab Supp (to be reallocated),5105686893,12.10.2018,31 Carter Avenue,Interview & recruitment expenses,18,ACCESS PERSONAL CHECKING SERVICES LTD
Revenue,Childrens Services,Children's & Education Services,Safeguarding Children/Young Peoples Svs,5105686893,12.10.2018,Childrens Assess & Safeguarding Team,Interview & recruitment expenses,25,ACCESS PERSONAL CHECKING SERVICES LTD
Revenue,Adult Services,Adult Social Care,Central Codes (to be reallocated),5105686893,12.10.2018,Community Outreach,Interview & recruitment expenses,220,ACCESS PERSONAL CHECKING SERVICES LTD
Revenue,Adult Services,Adult Social Care,Learning Disab Supp (to be reallocated),5105686893,12.10.2018,31 Carter Avenue,Interview & recruitment expenses,132,ACCESS PERSONAL CHECKING SERVICES LTD
Revenue,Adult Services,Adult Social Care,Central Codes (to be reallocated),5105686893,12.10.2018,Adelaide Resource Centre,Interview & recruitment expenses,24,ACCESS PERSONAL CHECKING SERVICES LTD
Revenue,Adult Services,Adult Social Care,Central Codes (to be reallocated),5105686893,12.10.2018,Adelaide Resource Centre,Interview & recruitment expenses,132,ACCESS PERSONAL CHECKING SERVICES LTD
Revenue,Adult Services,Adult Social Care,Learning Disab Supp (to be reallocated),5105686444,10.10.2018,"41 Newport Road, Cowes",Charges from Independent Providers,"4,974.48",TRACSCARE WELLCARE LIFESTYLES
Revenue,Adult Services,Adult Social Care,Learning Disab Supp (to be reallocated),5105686444,10.10.2018,"41 Newport Road, Cowes",Charges from Independent Providers,"2,190.72",TRACSCARE WELLCARE LIFESTYLES
Revenue,Adult Services,Adult Social Care,Learning Disab Supp (to be reallocated),5105686444,10.10.2018,"Heath Road, Lake",Charges from Independent Providers,"3,984.68",TRACSCARE WELLCARE LIFESTYLES
Revenue,Adult Services,Adult Social Care,Learning Disab Supp (to be reallocated),5105686444,10.10.2018,"Heath Road, Lake",Charges from Independent Providers,"2,190.72",TRACSCARE WELLCARE LIFESTYLES
Revenue,Adult Services,Adult Social Care,Learning Disab Supp (to be reallocated),5105688726,31.10.2018,"41 Newport Road, Cowes",Charges from Independent Providers,"4,263.84",TRACSCARE WELLCARE LIFESTYLES
Revenue,Adult Services,Adult Social Care,Learning Disab Supp (to be reallocated),5105688726,31.10.2018,"41 Newport Road, Cowes",Charges from Independent Providers,"1,877.76",TRACSCARE WELLCARE LIFESTYLES
Revenue,Adult Services,Adult Social Care,Learning Disab Supp (to be reallocated),5105688726,31.10.2018,"Heath Road, Lake",Charges from Independent Providers,"3,415.44",TRACSCARE WELLCARE LIFESTYLES
Revenue,Adult Services,Adult Social Care,Learning Disab Supp (to be reallocated),5105688726,31.10.2018,"Heath Road, Lake",Charges from Independent Providers,"1,877.76",TRACSCARE WELLCARE LIFESTYLES
Revenue,Place,Housing Services,Supporting People,5105687801,24.10.2018,Supporting People Mental Health,Payment to Private Contractors,"1,689.76",TRACSCARE WELLCARE LIFESTYLES
Revenue,Place,Housing Services,Supporting People,5105687800,24.10.2018,Supporting People Physical Disability,Payment to Private Contractors,"1,849.51",TRACSCARE WELLCARE LIFESTYLES
Revenue,Place,Housing Services,Supporting People,5105687799,24.10.2018,Supporting People Learning Disability,Payment to Private Contractors,"2,396.19",TRACSCARE WELLCARE LIFESTYLES
Revenue,Adult Services,Adult Social Care,Learning Disab Supp (to be reallocated),5105688726,31.10.2018,"Greengates, Ryde",Charges from Independent Providers,"4,263.84",TRACSCARE WELLCARE LIFESTYLES
Revenue,Adult Services,Adult Social Care,Learning Disab Supp (to be reallocated),5105688726,31.10.2018,"Greengates, Ryde",Charges from Independent Providers,"1,877.76",TRACSCARE WELLCARE LIFESTYLES
Revenue,Adult Services,Adult Social Care,Learning Disab Supp (to be reallocated),5105688726,31.10.2018,"17 Newport Road, Ventnor",Charges from Independent Providers,"3,427.44",TRACSCARE WELLCARE LIFESTYLES
Revenue,Adult Services,Adult Social Care,Learning Disab Supp (to be reallocated),5105688726,31.10.2018,"17 Newport Road, Ventnor",Charges from Independent Providers,"1,877.76",TRACSCARE WELLCARE LIFESTYLES
Revenue,Adult Services,Adult Social Care,Learning Disab Supp (to be reallocated),5105686444,10.10.2018,"Greengates, Ryde",Charges from Independent Providers,"4,974.48",TRACSCARE WELLCARE LIFESTYLES
Revenue,Adult Services,Adult Social Care,Learning Disab Supp (to be reallocated),5105686444,10.10.2018,"Greengates, Ryde",Charges from Independent Providers,"2,190.72",TRACSCARE WELLCARE LIFESTYLES
Revenue,Adult Services,Adult Social Care,Learning Disab Supp (to be reallocated),5105686444,10.10.2018,"17 Newport Road, Ventnor",Charges from Independent Providers,"3,984.68",TRACSCARE WELLCARE LIFESTYLES
Revenue,Adult Services,Adult Social Care,Learning Disab Supp (to be reallocated),5105686444,10.10.2018,"17 Newport Road, Ventnor",Charges from Independent Providers,"2,190.72",TRACSCARE WELLCARE LIFESTYLES
Revenue,Adult Services,Adult Social Care,Learning Disab Supp (to be reallocated),5105688726,31.10.2018,Westhorpe Supported Living,Charges from Independent Providers,"4,371.36",TRACSCARE WELLCARE LIFESTYLES
Revenue,Adult Services,Adult Social Care,Learning Disab Supp (to be reallocated),5105688726,31.10.2018,Westhorpe Supported Living,Charges from Independent Providers,"3,122.40",TRACSCARE WELLCARE LIFESTYLES
Revenue,Adult Services,Adult Social Care,Learning Disab Supp (to be reallocated),5105688726,31.10.2018,Westhorpe Supported Living,Charges from Independent Providers,"1,561.20",TRACSCARE WELLCARE LIFESTYLES
Revenue,Adult Services,Adult Social Care,Learning Disab Supp (to be reallocated),5105688726,31.10.2018,"Winton Street, Ryde",Charges from Independent Providers,"4,263.84",TRACSCARE WELLCARE LIFESTYLES
Revenue,Adult Services,Adult Social Care,Learning Disab Supp (to be reallocated),5105688726,31.10.2018,"Winton Street, Ryde",Charges from Independent Providers,"1,877.76",TRACSCARE WELLCARE LIFESTYLES
Revenue,Adult Services,Adult Social Care,Learning Disab Supp (to be reallocated),5105686444,10.10.2018,Westhorpe Supported Living,Charges from Independent Providers,"5,099.92",TRACSCARE WELLCARE LIFESTYLES
Revenue,Adult Services,Adult Social Care,Learning Disab Supp (to be reallocated),5105686444,10.10.2018,Westhorpe Supported Living,Charges from Independent Providers,"3,642.80",TRACSCARE WELLCARE LIFESTYLES
Revenue,Adult Services,Adult Social Care,Learning Disab Supp (to be reallocated),5105686444,10.10.2018,Westhorpe Supported Living,Charges from Independent Providers,"1,821.40",TRACSCARE WELLCARE LIFESTYLES
Revenue,Adult Services,Adult Social Care,Learning Disab Supp (to be reallocated),5105686444,10.10.2018,"Winton Street, Ryde",Charges from Independent Providers,"4,974.48",TRACSCARE WELLCARE LIFESTYLES
Revenue,Adult Services,Adult Social Care,Learning Disab Supp (to be reallocated),5105686444,10.10.2018,"Winton Street, Ryde",Charges from Independent Providers,"2,190.72",TRACSCARE WELLCARE LIFESTYLES
Revenue,Adult Services,Adult Social Care,Assistive Equipment & Technology,5105684792,03.10.2018,Community Equipment Store,Operational Equipment,120,ACCORA  LIMITED
Revenue,Adult Services,Adult Social Care,Assistive Equipment & Technology,5105688011,26.10.2018,Community Equipment Store,Operational Equipment,132,ACCORA  LIMITED
Revenue,Adult Services,Adult Social Care,Assistive Equipment & Technology,5105688011,26.10.2018,Community Equipment Store,Operational Equipment,34,ACCORA  LIMITED
Revenue,Fire & Rescue,Fire & Rescue Services,Fire fighting and Rescue Operations,5105686469,10.10.2018,Diversity & Workforce,Training,"1,400.00",ACTIVE LEARNING AND DEVELOPMENT LTD
Revenue,Adult Services,Adult Social Care,Commissioning & Service Delivery,5105685801,03.10.2018,BCF Care Bill Implementation,Payment to Private Contractors,"43,750.00",ADAM HTT LTD
Revenue,Fire & Rescue,Fire & Rescue Services,Fire fighting and Rescue Operations,5105688066,24.10.2018,Fire Technical Support,Vehicle Maintenance Costs,94.5,ADAMS MOREY LTD
Revenue,Fire & Rescue,Fire & Rescue Services,Fire fighting and Rescue Operations,5105688013,24.10.2018,Fire Technical Support,Vehicle Maintenance Costs,118.31,ADAMS MOREY LTD
Revenue,Childrens Services,Children's & Education Services,Management & Support Services,5105674199,12.10.2018,Pupil Premium Managed Centrally,Professional Services,65,A-DAY CONSULTANTS LTD
Revenue,Childrens Services,Children's & Education Services,Special Schools & Alternative Provision,5105685850,03.10.2018,Island Learning Centre,Agency staff,290.5,A-DAY CONSULTANTS LTD
Revenue,Childrens Services,Children's & Education Services,Special Schools & Alternative Provision,5105687974,24.10.2018,Island Learning Centre,Agency staff,508.3,A-DAY CONSULTANTS LTD
Revenue,Childrens Services,Children's & Education Services,Special Schools & Alternative Provision,5105686949,12.10.2018,Island Learning Centre,Training,"1,270.90",A-DAY CONSULTANTS LTD
Revenue,Adult Services,Adult Social Care,Learning Disab Supp (to be reallocated),5105684676,17.10.2018,Westminster House,Property Services - Day to day Maintenance,-257.19,ADT FIRE AND SECURITY PLC
Revenue,Adult Services,Adult Social Care,Learning Disab Supp (to be reallocated),5105687086,17.10.2018,Westminster House,Property Services - Day to day Maintenance,267.22,ADT FIRE AND SECURITY PLC
Revenue,Neighbourhoods,Cultural and Related Services,Culture and Heritage,5105687733,19.10.2018,Cothey Bottom Store RYDE,Payment to Private Contractors,361.55,ADT FIRE AND SECURITY PLC
Revenue,Adult Services,Adult Social Care,Central Codes (to be reallocated),5105685860,03.10.2018,Gouldings Resource Centre,Publications,59.96,AGORA BUSINESS PUBLICATIONS LLP
Revenue,Adult Services,Adult Social Care,Central Codes (to be reallocated),5105685860,03.10.2018,Gouldings Resource Centre,Publications,4.98,AGORA BUSINESS PUBLICATIONS LLP
Revenue,Resources,Central Services,Central Services to the Public,5105686713,17.10.2018,National Non Domestic Rates,Consultants Fees,487.5,AIREY CONSULTANCY SERVICES LTD
Revenue,Resources,Housing Services,Housing Benefits Administration,5105686713,17.10.2018,Housing Benefit,Consultants Fees,"2,437.50",AIREY CONSULTANCY SERVICES LTD
Revenue,Regeneration,Central Services,Support Services,5105684701,03.10.2018,"Westridge, Ryde",Property Services - Day to day Maintenance,75,AIRTEK SERVICES IOW LTD
Revenue,Adult Services,Adult Social Care,Learning Disability Suppt-adults (18-64),5105685629,03.10.2018,Learning Disability Residential 18-64,Charges from Independent Providers,"8,740.20",AITCH CARE HOMES (LONDON) LTD
Revenue,Adult Services,Adult Social Care,Learning Disability Suppt-adults (18-64),5105688591,31.10.2018,Learning Disability Residential 18-64,Charges from Independent Providers,"8,740.20",AITCH CARE HOMES (LONDON) LTD
Revenue,Childrens Services,Children's & Education Services,Other Education and Community Budget,5105688018,31.10.2018,Home to School SEN Transport (LA),Taxis - Contract Hire,288,AKAR TAXIS
Revenue,Adult Services,Adult Social Care,Assistive Equipment & Technology,5105686242,18.10.2018,Community Equipment Store,General Materials,139.5,AKW MEDI-CARE LTD
Revenue,Adult Services,Adult Social Care,Assistive Equipment & Technology,5105686242,18.10.2018,Community Equipment Store,General Materials,92,AKW MEDI-CARE LTD
Revenue,Adult Services,Adult Social Care,Assistive Equipment & Technology,5105686242,18.10.2018,Community Equipment Store,General Materials,169,AKW MEDI-CARE LTD
Revenue,Adult Services,Adult Social Care,Assistive Equipment & Technology,5105687611,18.10.2018,Community Equipment Store,General Materials,-139.5,AKW MEDI-CARE LTD
Revenue,Adult Services,Adult Social Care,Assistive Equipment & Technology,5105687670,24.10.2018,Community Equipment Store,General Materials,139.5,AKW MEDI-CARE LTD
Revenue,Adult Services,Adult Social Care,Assistive Equipment & Technology,5105687670,24.10.2018,Community Equipment Store,General Materials,92,AKW MEDI-CARE LTD
Revenue,Adult Services,Adult Social Care,Assistive Equipment & Technology,5105687611,18.10.2018,Community Equipment Store,General Materials,-92,AKW MEDI-CARE LTD
Revenue,Adult Services,Adult Social Care,Assistive Equipment & Technology,5105687611,18.10.2018,Community Equipment Store,General Materials,-169,AKW MEDI-CARE LTD
Revenue,Adult Services,Adult Social Care,Assistive Equipment & Technology,5105687670,24.10.2018,Community Equipment Store,General Materials,169,AKW MEDI-CARE LTD
Revenue,Fire & Rescue,Fire & Rescue Services,Fire fighting and Rescue Operations,5105686625,17.10.2018,Fire Technical Support,Vehicle Maintenance Costs,86.15,ALBANY FARM & G MACHINERY LTD
Revenue,Fire & Rescue,Fire & Rescue Services,Fire fighting and Rescue Operations,5105686625,17.10.2018,Fire Technical Support,Vehicle Maintenance Costs,5.98,ALBANY FARM & G MACHINERY LTD
Revenue,Neighbourhoods,Cultural and Related Services,Culture and Heritage,5105684803,03.10.2018,Dinosaur Isle Museum (Sandown Geology),Stock Purchases,199.2,ALLSORTED LTD
Revenue,Resources,Highways and Transport Services,Public Transport,5105686999,12.10.2018,Transport Fleet Administration,Vehicle Fuel Costs,"11,297.85",ALLSTAR BUSINESS SOLUTIONS LTD
Revenue,Childrens Services,Children's & Education Services,Other Education and Community Budget,5105688032,31.10.2018,Home to School Mainstream Transport,Taxis - Contract Hire,300,ALPHA (IOW) LTD
Revenue,Childrens Services,Children's & Education Services,Other Education and Community Budget,5105687176,17.10.2018,Home to School Mainstream Transport,Taxis - Contract Hire,-300,ALPHA (IOW) LTD
Revenue,Childrens Services,Children's & Education Services,Other Education and Community Budget,5105687185,17.10.2018,Home to School Mainstream Transport,Taxis - Contract Hire,-300,ALPHA (IOW) LTD
Revenue,Childrens Services,Children's & Education Services,Other Education and Community Budget,5105687147,17.10.2018,Home to School Mainstream Transport,Taxis - Contract Hire,-300,ALPHA (IOW) LTD
Revenue,Childrens Services,Children's & Education Services,Other Education and Community Budget,5105687110,17.10.2018,Home to School Mainstream Transport,Taxis - Contract Hire,300,ALPHA (IOW) LTD
Revenue,Childrens Services,Children's & Education Services,Other Education and Community Budget,5105687140,17.10.2018,Home to School Mainstream Transport,Taxis - Contract Hire,-240,ALPHA (IOW) LTD
Revenue,Childrens Services,Children's & Education Services,Other Education and Community Budget,5105687137,17.10.2018,Home to School Mainstream Transport,Taxis - Contract Hire,240,ALPHA (IOW) LTD
Revenue,Childrens Services,Children's & Education Services,Other Education and Community Budget,5105687113,17.10.2018,Home to School Mainstream Transport,Taxis - Contract Hire,300,ALPHA (IOW) LTD
Revenue,Childrens Services,Children's & Education Services,Other Education and Community Budget,5105687118,17.10.2018,Home to School Mainstream Transport,Taxis - Contract Hire,300,ALPHA (IOW) LTD
Revenue,Childrens Services,Children's & Education Services,Other Education and Community Budget,5105686693,12.10.2018,Home to School Mainstream Transport,Taxis - Contract Hire,300,ALPHA (IOW) LTD
Revenue,Childrens Services,Children's & Education Services,Other Education and Community Budget,5105686695,10.10.2018,Home to School Mainstream Transport,Taxis - Contract Hire,300,ALPHA (IOW) LTD
Revenue,Childrens Services,Children's & Education Services,Other Education and Community Budget,5105686696,10.10.2018,Home to School Mainstream Transport,Taxis - Contract Hire,300,ALPHA (IOW) LTD
Revenue,Childrens Services,Children's & Education Services,Other Education and Community Budget,5105686699,10.10.2018,Home to School Mainstream Transport,Taxis - Contract Hire,300,ALPHA (IOW) LTD
Revenue,Childrens Services,Children's & Education Services,Other Education and Community Budget,5105686661,10.10.2018,Home to School Mainstream Transport,Taxis - Contract Hire,240,ALPHA (IOW) LTD
Revenue,Childrens Services,Children's & Education Services,Other Education and Community Budget,5105686699,10.10.2018,Home to School Mainstream Transport,Taxis - Contract Hire,350,ALPHA (IOW) LTD
Revenue,Childrens Services,Children's & Education Services,Other Education and Community Budget,5105686693,12.10.2018,Home to School Mainstream Transport,Taxis - Contract Hire,350,ALPHA (IOW) LTD
Revenue,Childrens Services,Children's & Education Services,Other Education and Community Budget,5105686695,10.10.2018,Home to School Mainstream Transport,Taxis - Contract Hire,350,ALPHA (IOW) LTD
Revenue,Childrens Services,Children's & Education Services,Other Education and Community Budget,5105686696,10.10.2018,Home to School Mainstream Transport,Taxis - Contract Hire,350,ALPHA (IOW) LTD
Revenue,Childrens Services,Children's & Education Services,Other Education and Community Budget,5105686661,10.10.2018,Home to School Mainstream Transport,Taxis - Contract Hire,140,ALPHA (IOW) LTD
Revenue,Childrens Services,Children's & Education Services,Other Education and Community Budget,5105687118,17.10.2018,Home to School Mainstream Transport,Taxis - Contract Hire,350,ALPHA (IOW) LTD
Revenue,Childrens Services,Children's & Education Services,Other Education and Community Budget,5105687113,17.10.2018,Home to School Mainstream Transport,Taxis - Contract Hire,350,ALPHA (IOW) LTD
Revenue,Childrens Services,Children's & Education Services,Other Education and Community Budget,5105687176,17.10.2018,Home to School Mainstream Transport,Taxis - Contract Hire,-350,ALPHA (IOW) LTD
Revenue,Childrens Services,Children's & Education Services,Other Education and Community Budget,5105687185,17.10.2018,Home to School Mainstream Transport,Taxis - Contract Hire,-350,ALPHA (IOW) LTD
Revenue,Childrens Services,Children's & Education Services,Other Education and Community Budget,5105688032,31.10.2018,Home to School Mainstream Transport,Taxis - Contract Hire,350,ALPHA (IOW) LTD
Revenue,Childrens Services,Children's & Education Services,Other Education and Community Budget,5105687118,17.10.2018,Home to School Mainstream Transport,Taxis - Contract Hire,250,ALPHA (IOW) LTD
Revenue,Childrens Services,Children's & Education Services,Other Education and Community Budget,5105687113,17.10.2018,Home to School Mainstream Transport,Taxis - Contract Hire,250,ALPHA (IOW) LTD
Revenue,Childrens Services,Children's & Education Services,Other Education and Community Budget,5105687110,17.10.2018,Home to School Mainstream Transport,Taxis - Contract Hire,250,ALPHA (IOW) LTD
Revenue,Childrens Services,Children's & Education Services,Other Education and Community Budget,5105687140,17.10.2018,Home to School Mainstream Transport,Taxis - Contract Hire,-187.5,ALPHA (IOW) LTD
Revenue,Childrens Services,Children's & Education Services,Other Education and Community Budget,5105687137,17.10.2018,Home to School Mainstream Transport,Taxis - Contract Hire,187.5,ALPHA (IOW) LTD
Revenue,Childrens Services,Children's & Education Services,Other Education and Community Budget,5105686699,10.10.2018,Home to School Mainstream Transport,Taxis - Contract Hire,250,ALPHA (IOW) LTD
Revenue,Childrens Services,Children's & Education Services,Other Education and Community Budget,5105686696,10.10.2018,Home to School Mainstream Transport,Taxis - Contract Hire,250,ALPHA (IOW) LTD
Revenue,Childrens Services,Children's & Education Services,Other Education and Community Budget,5105686695,10.10.2018,Home to School Mainstream Transport,Taxis - Contract Hire,250,ALPHA (IOW) LTD
Revenue,Childrens Services,Children's & Education Services,Other Education and Community Budget,5105686693,12.10.2018,Home to School Mainstream Transport,Taxis - Contract Hire,250,ALPHA (IOW) LTD
Revenue,Childrens Services,Children's & Education Services,Other Education and Community Budget,5105686661,10.10.2018,Home to School Mainstream Transport,Taxis - Contract Hire,187.5,ALPHA (IOW) LTD
Revenue,Childrens Services,Children's & Education Services,Other Education and Community Budget,5105687147,17.10.2018,Home to School Mainstream Transport,Taxis - Contract Hire,-250,ALPHA (IOW) LTD
Revenue,Childrens Services,Children's & Education Services,Other Education and Community Budget,5105687185,17.10.2018,Home to School Mainstream Transport,Taxis - Contract Hire,-250,ALPHA (IOW) LTD
Revenue,Childrens Services,Children's & Education Services,Other Education and Community Budget,5105687176,17.10.2018,Home to School Mainstream Transport,Taxis - Contract Hire,-250,ALPHA (IOW) LTD
Revenue,Childrens Services,Children's & Education Services,Other Education and Community Budget,5105688032,31.10.2018,Home to School Mainstream Transport,Taxis - Contract Hire,312.5,ALPHA (IOW) LTD
Revenue,Childrens Services,Children's & Education Services,Other Education and Community Budget,5105687147,17.10.2018,Home to School Mainstream Transport,Taxis - Contract Hire,-600,ALPHA (IOW) LTD
Revenue,Childrens Services,Children's & Education Services,Other Education and Community Budget,5105687185,17.10.2018,Home to School Mainstream Transport,Taxis - Contract Hire,-600,ALPHA (IOW) LTD
Revenue,Childrens Services,Children's & Education Services,Other Education and Community Budget,5105687176,17.10.2018,Home to School Mainstream Transport,Taxis - Contract Hire,-600,ALPHA (IOW) LTD
Revenue,Childrens Services,Children's & Education Services,Other Education and Community Budget,5105686699,10.10.2018,Home to School Mainstream Transport,Taxis - Contract Hire,600,ALPHA (IOW) LTD
Revenue,Childrens Services,Children's & Education Services,Other Education and Community Budget,5105686696,10.10.2018,Home to School Mainstream Transport,Taxis - Contract Hire,600,ALPHA (IOW) LTD
Revenue,Childrens Services,Children's & Education Services,Other Education and Community Budget,5105686695,10.10.2018,Home to School Mainstream Transport,Taxis - Contract Hire,600,ALPHA (IOW) LTD
Revenue,Childrens Services,Children's & Education Services,Other Education and Community Budget,5105686693,12.10.2018,Home to School Mainstream Transport,Taxis - Contract Hire,600,ALPHA (IOW) LTD
Revenue,Childrens Services,Children's & Education Services,Other Education and Community Budget,5105686661,10.10.2018,Home to School Mainstream Transport,Taxis - Contract Hire,600,ALPHA (IOW) LTD
Revenue,Childrens Services,Children's & Education Services,Other Education and Community Budget,5105687110,17.10.2018,Home to School Mainstream Transport,Taxis - Contract Hire,600,ALPHA (IOW) LTD
Revenue,Childrens Services,Children's & Education Services,Other Education and Community Budget,5105687118,17.10.2018,Home to School Mainstream Transport,Taxis - Contract Hire,600,ALPHA (IOW) LTD
Revenue,Childrens Services,Children's & Education Services,Other Education and Community Budget,5105687113,17.10.2018,Home to School Mainstream Transport,Taxis - Contract Hire,600,ALPHA (IOW) LTD
Revenue,Childrens Services,Children's & Education Services,Other Education and Community Budget,5105687140,17.10.2018,Home to School Mainstream Transport,Taxis - Contract Hire,-600,ALPHA (IOW) LTD
Revenue,Childrens Services,Children's & Education Services,Other Education and Community Budget,5105687137,17.10.2018,Home to School Mainstream Transport,Taxis - Contract Hire,600,ALPHA (IOW) LTD
Revenue,Childrens Services,Children's & Education Services,Other Education and Community Budget,5105688032,31.10.2018,Home to School Mainstream Transport,Taxis - Contract Hire,600,ALPHA (IOW) LTD
Revenue,Childrens Services,Children's & Education Services,Other Education and Community Budget,5105688032,31.10.2018,Home to School Mainstream Transport,Taxis - Contract Hire,120,ALPHA (IOW) LTD
Revenue,Childrens Services,Children's & Education Services,Other Education and Community Budget,5105687147,17.10.2018,Home to School Mainstream Transport,Taxis - Contract Hire,-120,ALPHA (IOW) LTD
Revenue,Childrens Services,Children's & Education Services,Other Education and Community Budget,5105687176,17.10.2018,Home to School Mainstream Transport,Taxis - Contract Hire,-120,ALPHA (IOW) LTD
Revenue,Childrens Services,Children's & Education Services,Other Education and Community Budget,5105687185,17.10.2018,Home to School Mainstream Transport,Taxis - Contract Hire,-120,ALPHA (IOW) LTD
Revenue,Childrens Services,Children's & Education Services,Other Education and Community Budget,5105686693,12.10.2018,Home to School Mainstream Transport,Taxis - Contract Hire,120,ALPHA (IOW) LTD
Revenue,Childrens Services,Children's & Education Services,Other Education and Community Budget,5105686695,10.10.2018,Home to School Mainstream Transport,Taxis - Contract Hire,120,ALPHA (IOW) LTD
Revenue,Childrens Services,Children's & Education Services,Other Education and Community Budget,5105686696,10.10.2018,Home to School Mainstream Transport,Taxis - Contract Hire,120,ALPHA (IOW) LTD
Revenue,Childrens Services,Children's & Education Services,Other Education and Community Budget,5105686699,10.10.2018,Home to School Mainstream Transport,Taxis - Contract Hire,120,ALPHA (IOW) LTD
Revenue,Childrens Services,Children's & Education Services,Other Education and Community Budget,5105686661,10.10.2018,Home to School Mainstream Transport,Taxis - Contract Hire,96,ALPHA (IOW) LTD
Revenue,Childrens Services,Children's & Education Services,Other Education and Community Budget,5105687137,17.10.2018,Home to School Mainstream Transport,Taxis - Contract Hire,96,ALPHA (IOW) LTD
Revenue,Childrens Services,Children's & Education Services,Other Education and Community Budget,5105687140,17.10.2018,Home to School Mainstream Transport,Taxis - Contract Hire,-96,ALPHA (IOW) LTD
Revenue,Childrens Services,Children's & Education Services,Other Education and Community Budget,5105687113,17.10.2018,Home to School Mainstream Transport,Taxis - Contract Hire,120,ALPHA (IOW) LTD
Revenue,Childrens Services,Children's & Education Services,Other Education and Community Budget,5105687118,17.10.2018,Home to School Mainstream Transport,Taxis - Contract Hire,120,ALPHA (IOW) LTD
Revenue,Childrens Services,Children's & Education Services,Other Education and Community Budget,5105687110,17.10.2018,Home to School Mainstream Transport,Taxis - Contract Hire,120,ALPHA (IOW) LTD
Revenue,Childrens Services,Children's & Education Services,Other Education and Community Budget,5105688032,31.10.2018,Home to School Mainstream Transport,Taxis - Contract Hire,70,ALPHA (IOW) LTD
Revenue,Childrens Services,Children's & Education Services,Other Education and Community Budget,5105687140,17.10.2018,Home to School Mainstream Transport,Taxis - Contract Hire,-42,ALPHA (IOW) LTD
Revenue,Childrens Services,Children's & Education Services,Other Education and Community Budget,5105687137,17.10.2018,Home to School Mainstream Transport,Taxis - Contract Hire,42,ALPHA (IOW) LTD
Revenue,Childrens Services,Children's & Education Services,Other Education and Community Budget,5105687113,17.10.2018,Home to School Mainstream Transport,Taxis - Contract Hire,70,ALPHA (IOW) LTD
Revenue,Childrens Services,Children's & Education Services,Other Education and Community Budget,5105687118,17.10.2018,Home to School Mainstream Transport,Taxis - Contract Hire,70,ALPHA (IOW) LTD
Revenue,Childrens Services,Children's & Education Services,Other Education and Community Budget,5105687110,17.10.2018,Home to School Mainstream Transport,Taxis - Contract Hire,70,ALPHA (IOW) LTD
Revenue,Childrens Services,Children's & Education Services,Other Education and Community Budget,5105686661,10.10.2018,Home to School Mainstream Transport,Taxis - Contract Hire,42,ALPHA (IOW) LTD
Revenue,Childrens Services,Children's & Education Services,Other Education and Community Budget,5105686693,12.10.2018,Home to School Mainstream Transport,Taxis - Contract Hire,70,ALPHA (IOW) LTD
Revenue,Childrens Services,Children's & Education Services,Other Education and Community Budget,5105686696,10.10.2018,Home to School Mainstream Transport,Taxis - Contract Hire,70,ALPHA (IOW) LTD
Revenue,Childrens Services,Children's & Education Services,Other Education and Community Budget,5105686695,10.10.2018,Home to School Mainstream Transport,Taxis - Contract Hire,70,ALPHA (IOW) LTD
Revenue,Childrens Services,Children's & Education Services,Other Education and Community Budget,5105686699,10.10.2018,Home to School Mainstream Transport,Taxis - Contract Hire,70,ALPHA (IOW) LTD
Revenue,Childrens Services,Children's & Education Services,Other Education and Community Budget,5105687147,17.10.2018,Home to School Mainstream Transport,Taxis - Contract Hire,-70,ALPHA (IOW) LTD
Revenue,Childrens Services,Children's & Education Services,Other Education and Community Budget,5105687176,17.10.2018,Home to School Mainstream Transport,Taxis - Contract Hire,-70,ALPHA (IOW) LTD
Revenue,Childrens Services,Children's & Education Services,Other Education and Community Budget,5105687185,17.10.2018,Home to School Mainstream Transport,Taxis - Contract Hire,-70,ALPHA (IOW) LTD
Revenue,Childrens Services,Children's & Education Services,Other Education and Community Budget,5105688625,31.10.2018,Home to School Mainstream Transport,Taxis - Contract Hire,120,ALPHA (IOW) LTD
Revenue,Childrens Services,Children's & Education Services,Other Education and Community Budget,5105688625,31.10.2018,Home to School Mainstream Transport,Taxis - Contract Hire,70,ALPHA (IOW) LTD
Revenue,Childrens Services,Children's & Education Services,Other Education and Community Budget,5105688625,31.10.2018,Home to School Mainstream Transport,Taxis - Contract Hire,600,ALPHA (IOW) LTD
Revenue,Childrens Services,Children's & Education Services,Other Education and Community Budget,5105688625,31.10.2018,Home to School Mainstream Transport,Taxis - Contract Hire,312.5,ALPHA (IOW) LTD
Revenue,Childrens Services,Children's & Education Services,Other Education and Community Budget,5105688625,31.10.2018,Home to School Mainstream Transport,Taxis - Contract Hire,300,ALPHA (IOW) LTD
Revenue,Childrens Services,Children's & Education Services,Other Education and Community Budget,5105688625,31.10.2018,Home to School Mainstream Transport,Taxis - Contract Hire,350,ALPHA (IOW) LTD
Revenue,Childrens Services,Children's & Education Services,Family Support Services,5105686452,10.10.2018,Childrens Rights & Participation,Public Transport Fares,251.1,ALPHA (IOW) LTD
Revenue,Childrens Services,Children's & Education Services,Other Education and Community Budget,5105688086,31.10.2018,Home to College Post 16 Transport,Taxis - Contract Hire,480,ALPHA (IOW) LTD
Revenue,Childrens Services,Children's & Education Services,Other Education and Community Budget,5105688086,31.10.2018,Home to College Post 16 Transport,Taxis - Contract Hire,"1,000.00",ALPHA (IOW) LTD
Revenue,Childrens Services,Children's & Education Services,Other Education and Community Budget,5105688086,31.10.2018,Home to College Post 16 Transport,Taxis - Contract Hire,770,ALPHA (IOW) LTD
Revenue,Childrens Services,Children's & Education Services,Other Education and Community Budget,5105688086,31.10.2018,Home to College Post 16 Transport,Taxis - Contract Hire,780,ALPHA (IOW) LTD
Revenue,Childrens Services,Children's & Education Services,Other Education and Community Budget,5105687176,17.10.2018,Home to School SEN Transport (LA),Taxis - Contract Hire,-140,ALPHA (IOW) LTD
Revenue,Childrens Services,Children's & Education Services,Other Education and Community Budget,5105687147,17.10.2018,Home to School SEN Transport (LA),Taxis - Contract Hire,-140,ALPHA (IOW) LTD
Revenue,Childrens Services,Children's & Education Services,Other Education and Community Budget,5105688032,31.10.2018,Home to School SEN Transport (LA),Taxis - Contract Hire,140,ALPHA (IOW) LTD
Revenue,Childrens Services,Children's & Education Services,Other Education and Community Budget,5105687147,17.10.2018,Home to School SEN Transport (LA),Taxis - Contract Hire,-200,ALPHA (IOW) LTD
Revenue,Childrens Services,Children's & Education Services,Other Education and Community Budget,5105687176,17.10.2018,Home to School SEN Transport (LA),Taxis - Contract Hire,-200,ALPHA (IOW) LTD
Revenue,Childrens Services,Children's & Education Services,Other Education and Community Budget,5105687185,17.10.2018,Home to School SEN Transport (LA),Taxis - Contract Hire,-200,ALPHA (IOW) LTD
Revenue,Childrens Services,Children's & Education Services,Other Education and Community Budget,5105687140,17.10.2018,Home to School SEN Transport (LA),Taxis - Contract Hire,-120,ALPHA (IOW) LTD
Revenue,Childrens Services,Children's & Education Services,Other Education and Community Budget,5105687137,17.10.2018,Home to School SEN Transport (LA),Taxis - Contract Hire,120,ALPHA (IOW) LTD
Revenue,Childrens Services,Children's & Education Services,Other Education and Community Budget,5105687113,17.10.2018,Home to School SEN Transport (LA),Taxis - Contract Hire,200,ALPHA (IOW) LTD
Revenue,Childrens Services,Children's & Education Services,Other Education and Community Budget,5105687110,17.10.2018,Home to School SEN Transport (LA),Taxis - Contract Hire,200,ALPHA (IOW) LTD
Revenue,Childrens Services,Children's & Education Services,Other Education and Community Budget,5105687118,17.10.2018,Home to School SEN Transport (LA),Taxis - Contract Hire,200,ALPHA (IOW) LTD
Revenue,Childrens Services,Children's & Education Services,Other Education and Community Budget,5105686661,10.10.2018,Home to School SEN Transport (LA),Taxis - Contract Hire,120,ALPHA (IOW) LTD
Revenue,Childrens Services,Children's & Education Services,Other Education and Community Budget,5105686693,12.10.2018,Home to School SEN Transport (LA),Taxis - Contract Hire,200,ALPHA (IOW) LTD
Revenue,Childrens Services,Children's & Education Services,Other Education and Community Budget,5105686696,10.10.2018,Home to School SEN Transport (LA),Taxis - Contract Hire,200,ALPHA (IOW) LTD
Revenue,Childrens Services,Children's & Education Services,Other Education and Community Budget,5105686695,10.10.2018,Home to School SEN Transport (LA),Taxis - Contract Hire,200,ALPHA (IOW) LTD
Revenue,Childrens Services,Children's & Education Services,Other Education and Community Budget,5105686699,10.10.2018,Home to School SEN Transport (LA),Taxis - Contract Hire,200,ALPHA (IOW) LTD
Revenue,Childrens Services,Children's & Education Services,Other Education and Community Budget,5105688032,31.10.2018,Home to School SEN Transport (LA),Taxis - Contract Hire,200,ALPHA (IOW) LTD
Revenue,Childrens Services,Children's & Education Services,Other Education and Community Budget,5105687110,17.10.2018,Home to School SEN Transport (LA),Taxis - Contract Hire,150,ALPHA (IOW) LTD
Revenue,Childrens Services,Children's & Education Services,Other Education and Community Budget,5105687118,17.10.2018,Home to School SEN Transport (LA),Taxis - Contract Hire,150,ALPHA (IOW) LTD
Revenue,Childrens Services,Children's & Education Services,Other Education and Community Budget,5105687113,17.10.2018,Home to School SEN Transport (LA),Taxis - Contract Hire,150,ALPHA (IOW) LTD
Revenue,Childrens Services,Children's & Education Services,Other Education and Community Budget,5105687137,17.10.2018,Home to School SEN Transport (LA),Taxis - Contract Hire,90,ALPHA (IOW) LTD
Revenue,Childrens Services,Children's & Education Services,Other Education and Community Budget,5105687140,17.10.2018,Home to School SEN Transport (LA),Taxis - Contract Hire,-90,ALPHA (IOW) LTD
Revenue,Childrens Services,Children's & Education Services,Other Education and Community Budget,5105686661,10.10.2018,Home to School SEN Transport (LA),Taxis - Contract Hire,90,ALPHA (IOW) LTD
Revenue,Childrens Services,Children's & Education Services,Other Education and Community Budget,5105686699,10.10.2018,Home to School SEN Transport (LA),Taxis - Contract Hire,150,ALPHA (IOW) LTD
Revenue,Childrens Services,Children's & Education Services,Other Education and Community Budget,5105686695,10.10.2018,Home to School SEN Transport (LA),Taxis - Contract Hire,150,ALPHA (IOW) LTD
Revenue,Childrens Services,Children's & Education Services,Other Education and Community Budget,5105686696,10.10.2018,Home to School SEN Transport (LA),Taxis - Contract Hire,150,ALPHA (IOW) LTD
Revenue,Childrens Services,Children's & Education Services,Other Education and Community Budget,5105686693,12.10.2018,Home to School SEN Transport (LA),Taxis - Contract Hire,150,ALPHA (IOW) LTD
Revenue,Childrens Services,Children's & Education Services,Other Education and Community Budget,5105687185,17.10.2018,Home to School SEN Transport (LA),Taxis - Contract Hire,-150,ALPHA (IOW) LTD
Revenue,Childrens Services,Children's & Education Services,Other Education and Community Budget,5105687176,17.10.2018,Home to School SEN Transport (LA),Taxis - Contract Hire,-150,ALPHA (IOW) LTD
Revenue,Childrens Services,Children's & Education Services,Other Education and Community Budget,5105687147,17.10.2018,Home to School SEN Transport (LA),Taxis - Contract Hire,-150,ALPHA (IOW) LTD
Revenue,Childrens Services,Children's & Education Services,Other Education and Community Budget,5105688032,31.10.2018,Home to School SEN Transport (LA),Taxis - Contract Hire,150,ALPHA (IOW) LTD
Revenue,Childrens Services,Children's & Education Services,Other Education and Community Budget,5105688625,31.10.2018,Home to School SEN Transport (LA),Taxis - Contract Hire,450,ALPHA (IOW) LTD
Revenue,Childrens Services,Children's & Education Services,Other Education and Community Budget,5105688625,31.10.2018,Home to School SEN Transport (LA),Taxis - Contract Hire,500,ALPHA (IOW) LTD
Revenue,Childrens Services,Children's & Education Services,Other Education and Community Budget,5105688625,31.10.2018,Home to School SEN Transport (LA),Taxis - Contract Hire,600,ALPHA (IOW) LTD
Revenue,Childrens Services,Children's & Education Services,Other Education and Community Budget,5105688625,31.10.2018,Home to School SEN Transport (LA),Taxis - Contract Hire,700,ALPHA (IOW) LTD
Revenue,Childrens Services,Children's & Education Services,Other Education and Community Budget,5105688625,31.10.2018,Home to School SEN Transport (LA),Taxis - Contract Hire,250,ALPHA (IOW) LTD
Revenue,Childrens Services,Children's & Education Services,Other Education and Community Budget,5105688625,31.10.2018,Home to School SEN Transport (LA),Taxis - Contract Hire,140,ALPHA (IOW) LTD
Revenue,Childrens Services,Children's & Education Services,Other Education and Community Budget,5105688625,31.10.2018,Home to School SEN Transport (LA),Taxis - Contract Hire,200,ALPHA (IOW) LTD
Revenue,Childrens Services,Children's & Education Services,Other Education and Community Budget,5105688625,31.10.2018,Home to School SEN Transport (LA),Taxis - Contract Hire,150,ALPHA (IOW) LTD
Revenue,Childrens Services,Children's & Education Services,Other Education and Community Budget,5105688625,31.10.2018,Home to School SEN Transport (LA),Taxis - Contract Hire,450,ALPHA (IOW) LTD
Revenue,Childrens Services,Children's & Education Services,Other Education and Community Budget,5105688625,31.10.2018,Home to School SEN Transport (LA),Taxis - Contract Hire,300,ALPHA (IOW) LTD
Revenue,Childrens Services,Children's & Education Services,Other Education and Community Budget,5105688625,31.10.2018,Home to School SEN Transport (LA),Taxis - Contract Hire,350,ALPHA (IOW) LTD
Revenue,Childrens Services,Children's & Education Services,Other Education and Community Budget,5105688625,31.10.2018,Home to School SEN Transport (LA),Taxis - Contract Hire,250,ALPHA (IOW) LTD
Revenue,Childrens Services,Children's & Education Services,Other Education and Community Budget,5105688625,31.10.2018,Home to School SEN Transport (LA),Taxis - Contract Hire,300,ALPHA (IOW) LTD
Revenue,Childrens Services,Children's & Education Services,Other Education and Community Budget,5105688625,31.10.2018,Home to School SEN Transport (LA),Taxis - Contract Hire,200,ALPHA (IOW) LTD
Revenue,Childrens Services,Children's & Education Services,Other Education and Community Budget,5105688625,31.10.2018,Home to School SEN Transport (LA),Taxis - Contract Hire,280,ALPHA (IOW) LTD
Revenue,Childrens Services,Children's & Education Services,Other Education and Community Budget,5105688625,31.10.2018,Home to School SEN Transport (LA),Taxis - Contract Hire,395,ALPHA (IOW) LTD
Revenue,Childrens Services,Children's & Education Services,Other Education and Community Budget,5105688625,31.10.2018,Home to School SEN Transport (LA),Taxis - Contract Hire,260,ALPHA (IOW) LTD
Revenue,Childrens Services,Children's & Education Services,Other Education and Community Budget,5105688625,31.10.2018,Home to School SEN Transport (LA),Taxis - Contract Hire,400,ALPHA (IOW) LTD
Revenue,Childrens Services,Children's & Education Services,Other Education and Community Budget,5105688625,31.10.2018,Home to School SEN Transport (LA),Taxis - Contract Hire,350,ALPHA (IOW) LTD
Revenue,Childrens Services,Children's & Education Services,Other Education and Community Budget,5105687185,17.10.2018,Home to School SEN Transport (LA),Taxis - Contract Hire,-100,ALPHA (IOW) LTD
Revenue,Childrens Services,Children's & Education Services,Other Education and Community Budget,5105687176,17.10.2018,Home to School SEN Transport (LA),Taxis - Contract Hire,-100,ALPHA (IOW) LTD
Revenue,Childrens Services,Children's & Education Services,Other Education and Community Budget,5105687147,17.10.2018,Home to School SEN Transport (LA),Taxis - Contract Hire,-100,ALPHA (IOW) LTD
Revenue,Childrens Services,Children's & Education Services,Other Education and Community Budget,5105687110,17.10.2018,Home to School SEN Transport (LA),Taxis - Contract Hire,100,ALPHA (IOW) LTD
Revenue,Childrens Services,Children's & Education Services,Other Education and Community Budget,5105687140,17.10.2018,Home to School SEN Transport (LA),Taxis - Contract Hire,-60,ALPHA (IOW) LTD
Revenue,Childrens Services,Children's & Education Services,Other Education and Community Budget,5105687137,17.10.2018,Home to School SEN Transport (LA),Taxis - Contract Hire,60,ALPHA (IOW) LTD
Revenue,Childrens Services,Children's & Education Services,Other Education and Community Budget,5105687113,17.10.2018,Home to School SEN Transport (LA),Taxis - Contract Hire,100,ALPHA (IOW) LTD
Revenue,Childrens Services,Children's & Education Services,Other Education and Community Budget,5105687118,17.10.2018,Home to School SEN Transport (LA),Taxis - Contract Hire,100,ALPHA (IOW) LTD
Revenue,Childrens Services,Children's & Education Services,Other Education and Community Budget,5105686661,10.10.2018,Home to School SEN Transport (LA),Taxis - Contract Hire,168,ALPHA (IOW) LTD
Revenue,Childrens Services,Children's & Education Services,Other Education and Community Budget,5105686693,12.10.2018,Home to School SEN Transport (LA),Taxis - Contract Hire,280,ALPHA (IOW) LTD
Revenue,Childrens Services,Children's & Education Services,Other Education and Community Budget,5105686695,10.10.2018,Home to School SEN Transport (LA),Taxis - Contract Hire,280,ALPHA (IOW) LTD
Revenue,Childrens Services,Children's & Education Services,Other Education and Community Budget,5105686696,10.10.2018,Home to School SEN Transport (LA),Taxis - Contract Hire,280,ALPHA (IOW) LTD
Revenue,Childrens Services,Children's & Education Services,Other Education and Community Budget,5105686699,10.10.2018,Home to School SEN Transport (LA),Taxis - Contract Hire,280,ALPHA (IOW) LTD
Revenue,Childrens Services,Children's & Education Services,Other Education and Community Budget,5105687110,17.10.2018,Home to School SEN Transport (LA),Taxis - Contract Hire,280,ALPHA (IOW) LTD
Revenue,Childrens Services,Children's & Education Services,Other Education and Community Budget,5105687118,17.10.2018,Home to School SEN Transport (LA),Taxis - Contract Hire,280,ALPHA (IOW) LTD
Revenue,Childrens Services,Children's & Education Services,Other Education and Community Budget,5105686695,10.10.2018,Home to School SEN Transport (LA),Taxis - Contract Hire,250,ALPHA (IOW) LTD
Revenue,Childrens Services,Children's & Education Services,Other Education and Community Budget,5105686696,10.10.2018,Home to School SEN Transport (LA),Taxis - Contract Hire,250,ALPHA (IOW) LTD
Revenue,Childrens Services,Children's & Education Services,Other Education and Community Budget,5105686699,10.10.2018,Home to School SEN Transport (LA),Taxis - Contract Hire,250,ALPHA (IOW) LTD
Revenue,Childrens Services,Children's & Education Services,Other Education and Community Budget,5105688032,31.10.2018,Home to School SEN Transport (LA),Taxis - Contract Hire,250,ALPHA (IOW) LTD
Revenue,Childrens Services,Children's & Education Services,Other Education and Community Budget,5105686699,10.10.2018,Home to School SEN Transport (LA),Taxis - Contract Hire,450,ALPHA (IOW) LTD
Revenue,Childrens Services,Children's & Education Services,Other Education and Community Budget,5105686696,10.10.2018,Home to School SEN Transport (LA),Taxis - Contract Hire,450,ALPHA (IOW) LTD
Revenue,Childrens Services,Children's & Education Services,Other Education and Community Budget,5105686695,10.10.2018,Home to School SEN Transport (LA),Taxis - Contract Hire,450,ALPHA (IOW) LTD
Revenue,Childrens Services,Children's & Education Services,Other Education and Community Budget,5105686693,12.10.2018,Home to School SEN Transport (LA),Taxis - Contract Hire,450,ALPHA (IOW) LTD
Revenue,Childrens Services,Children's & Education Services,Other Education and Community Budget,5105686661,10.10.2018,Home to School SEN Transport (LA),Taxis - Contract Hire,270,ALPHA (IOW) LTD
Revenue,Childrens Services,Children's & Education Services,Other Education and Community Budget,5105687110,17.10.2018,Home to School SEN Transport (LA),Taxis - Contract Hire,450,ALPHA (IOW) LTD
Revenue,Childrens Services,Children's & Education Services,Other Education and Community Budget,5105687118,17.10.2018,Home to School SEN Transport (LA),Taxis - Contract Hire,450,ALPHA (IOW) LTD
Revenue,Childrens Services,Children's & Education Services,Other Education and Community Budget,5105687113,17.10.2018,Home to School SEN Transport (LA),Taxis - Contract Hire,450,ALPHA (IOW) LTD
Revenue,Childrens Services,Children's & Education Services,Other Education and Community Budget,5105687137,17.10.2018,Home to School SEN Transport (LA),Taxis - Contract Hire,270,ALPHA (IOW) LTD
Revenue,Childrens Services,Children's & Education Services,Other Education and Community Budget,5105687140,17.10.2018,Home to School SEN Transport (LA),Taxis - Contract Hire,-270,ALPHA (IOW) LTD
Revenue,Childrens Services,Children's & Education Services,Other Education and Community Budget,5105687147,17.10.2018,Home to School SEN Transport (LA),Taxis - Contract Hire,-450,ALPHA (IOW) LTD
Revenue,Childrens Services,Children's & Education Services,Other Education and Community Budget,5105687185,17.10.2018,Home to School SEN Transport (LA),Taxis - Contract Hire,-450,ALPHA (IOW) LTD
Revenue,Childrens Services,Children's & Education Services,Other Education and Community Budget,5105687176,17.10.2018,Home to School SEN Transport (LA),Taxis - Contract Hire,-450,ALPHA (IOW) LTD
Revenue,Childrens Services,Children's & Education Services,Other Education and Community Budget,5105688032,31.10.2018,Home to School SEN Transport (LA),Taxis - Contract Hire,450,ALPHA (IOW) LTD
Revenue,Childrens Services,Children's & Education Services,Other Education and Community Budget,5105688032,31.10.2018,Home to School SEN Transport (LA),Taxis - Contract Hire,300,ALPHA (IOW) LTD
Revenue,Childrens Services,Children's & Education Services,Other Education and Community Budget,5105687176,17.10.2018,Home to School SEN Transport (LA),Taxis - Contract Hire,-300,ALPHA (IOW) LTD
Revenue,Childrens Services,Children's & Education Services,Other Education and Community Budget,5105687185,17.10.2018,Home to School SEN Transport (LA),Taxis - Contract Hire,-300,ALPHA (IOW) LTD
Revenue,Childrens Services,Children's & Education Services,Other Education and Community Budget,5105687147,17.10.2018,Home to School SEN Transport (LA),Taxis - Contract Hire,-300,ALPHA (IOW) LTD
Revenue,Childrens Services,Children's & Education Services,Other Education and Community Budget,5105687140,17.10.2018,Home to School SEN Transport (LA),Taxis - Contract Hire,-180,ALPHA (IOW) LTD
Revenue,Childrens Services,Children's & Education Services,Other Education and Community Budget,5105687137,17.10.2018,Home to School SEN Transport (LA),Taxis - Contract Hire,180,ALPHA (IOW) LTD
Revenue,Childrens Services,Children's & Education Services,Other Education and Community Budget,5105687113,17.10.2018,Home to School SEN Transport (LA),Taxis - Contract Hire,300,ALPHA (IOW) LTD
Revenue,Childrens Services,Children's & Education Services,Other Education and Community Budget,5105687118,17.10.2018,Home to School SEN Transport (LA),Taxis - Contract Hire,300,ALPHA (IOW) LTD
Revenue,Childrens Services,Children's & Education Services,Other Education and Community Budget,5105687110,17.10.2018,Home to School SEN Transport (LA),Taxis - Contract Hire,300,ALPHA (IOW) LTD
Revenue,Childrens Services,Children's & Education Services,Other Education and Community Budget,5105686661,10.10.2018,Home to School SEN Transport (LA),Taxis - Contract Hire,180,ALPHA (IOW) LTD
Revenue,Childrens Services,Children's & Education Services,Other Education and Community Budget,5105686693,12.10.2018,Home to School SEN Transport (LA),Taxis - Contract Hire,300,ALPHA (IOW) LTD
Revenue,Childrens Services,Children's & Education Services,Other Education and Community Budget,5105686695,10.10.2018,Home to School SEN Transport (LA),Taxis - Contract Hire,300,ALPHA (IOW) LTD
Revenue,Childrens Services,Children's & Education Services,Other Education and Community Budget,5105686696,10.10.2018,Home to School SEN Transport (LA),Taxis - Contract Hire,300,ALPHA (IOW) LTD
Revenue,Childrens Services,Children's & Education Services,Other Education and Community Budget,5105686699,10.10.2018,Home to School SEN Transport (LA),Taxis - Contract Hire,300,ALPHA (IOW) LTD
Revenue,Childrens Services,Children's & Education Services,Other Education and Community Budget,5105688032,31.10.2018,Home to School SEN Transport (LA),Taxis - Contract Hire,350,ALPHA (IOW) LTD
Revenue,Childrens Services,Children's & Education Services,Other Education and Community Budget,5105687137,17.10.2018,Home to School SEN Transport (LA),Taxis - Contract Hire,210,ALPHA (IOW) LTD
Revenue,Childrens Services,Children's & Education Services,Other Education and Community Budget,5105687140,17.10.2018,Home to School SEN Transport (LA),Taxis - Contract Hire,-210,ALPHA (IOW) LTD
Revenue,Childrens Services,Children's & Education Services,Other Education and Community Budget,5105687113,17.10.2018,Home to School SEN Transport (LA),Taxis - Contract Hire,350,ALPHA (IOW) LTD
Revenue,Childrens Services,Children's & Education Services,Other Education and Community Budget,5105687118,17.10.2018,Home to School SEN Transport (LA),Taxis - Contract Hire,350,ALPHA (IOW) LTD
Revenue,Childrens Services,Children's & Education Services,Other Education and Community Budget,5105687110,17.10.2018,Home to School SEN Transport (LA),Taxis - Contract Hire,350,ALPHA (IOW) LTD
Revenue,Childrens Services,Children's & Education Services,Other Education and Community Budget,5105686661,10.10.2018,Home to School SEN Transport (LA),Taxis - Contract Hire,210,ALPHA (IOW) LTD
Revenue,Childrens Services,Children's & Education Services,Other Education and Community Budget,5105686693,12.10.2018,Home to School SEN Transport (LA),Taxis - Contract Hire,350,ALPHA (IOW) LTD
Revenue,Childrens Services,Children's & Education Services,Other Education and Community Budget,5105686695,10.10.2018,Home to School SEN Transport (LA),Taxis - Contract Hire,350,ALPHA (IOW) LTD
Revenue,Childrens Services,Children's & Education Services,Other Education and Community Budget,5105686696,10.10.2018,Home to School SEN Transport (LA),Taxis - Contract Hire,350,ALPHA (IOW) LTD
Revenue,Childrens Services,Children's & Education Services,Other Education and Community Budget,5105686699,10.10.2018,Home to School SEN Transport (LA),Taxis - Contract Hire,350,ALPHA (IOW) LTD
Revenue,Childrens Services,Children's & Education Services,Other Education and Community Budget,5105687176,17.10.2018,Home to School SEN Transport (LA),Taxis - Contract Hire,-350,ALPHA (IOW) LTD
Revenue,Childrens Services,Children's & Education Services,Other Education and Community Budget,5105687185,17.10.2018,Home to School SEN Transport (LA),Taxis - Contract Hire,-350,ALPHA (IOW) LTD
Revenue,Childrens Services,Children's & Education Services,Other Education and Community Budget,5105687147,17.10.2018,Home to School SEN Transport (LA),Taxis - Contract Hire,-350,ALPHA (IOW) LTD
Revenue,Childrens Services,Children's & Education Services,Other Education and Community Budget,5105688032,31.10.2018,Home to School SEN Transport (LA),Taxis - Contract Hire,500,ALPHA (IOW) LTD
Revenue,Childrens Services,Children's & Education Services,Other Education and Community Budget,5105686693,12.10.2018,Home to School SEN Transport (LA),Taxis - Contract Hire,500,ALPHA (IOW) LTD
Revenue,Childrens Services,Children's & Education Services,Other Education and Community Budget,5105686699,10.10.2018,Home to School SEN Transport (LA),Taxis - Contract Hire,500,ALPHA (IOW) LTD
Revenue,Childrens Services,Children's & Education Services,Other Education and Community Budget,5105687118,17.10.2018,Home to School SEN Transport (LA),Taxis - Contract Hire,500,ALPHA (IOW) LTD
Revenue,Childrens Services,Children's & Education Services,Other Education and Community Budget,5105687185,17.10.2018,Home to School SEN Transport (LA),Taxis - Contract Hire,-500,ALPHA (IOW) LTD
Revenue,Childrens Services,Children's & Education Services,Other Education and Community Budget,5105687118,17.10.2018,Home to School SEN Transport (LA),Taxis - Contract Hire,600,ALPHA (IOW) LTD
Revenue,Childrens Services,Children's & Education Services,Other Education and Community Budget,5105687113,17.10.2018,Home to School SEN Transport (LA),Taxis - Contract Hire,600,ALPHA (IOW) LTD
Revenue,Childrens Services,Children's & Education Services,Other Education and Community Budget,5105687140,17.10.2018,Home to School SEN Transport (LA),Taxis - Contract Hire,-480,ALPHA (IOW) LTD
Revenue,Childrens Services,Children's & Education Services,Other Education and Community Budget,5105687137,17.10.2018,Home to School SEN Transport (LA),Taxis - Contract Hire,480,ALPHA (IOW) LTD
Revenue,Childrens Services,Children's & Education Services,Other Education and Community Budget,5105687110,17.10.2018,Home to School SEN Transport (LA),Taxis - Contract Hire,600,ALPHA (IOW) LTD
Revenue,Childrens Services,Children's & Education Services,Other Education and Community Budget,5105686696,10.10.2018,Home to School SEN Transport (LA),Taxis - Contract Hire,600,ALPHA (IOW) LTD
Revenue,Childrens Services,Children's & Education Services,Other Education and Community Budget,5105686699,10.10.2018,Home to School SEN Transport (LA),Taxis - Contract Hire,600,ALPHA (IOW) LTD
Revenue,Childrens Services,Children's & Education Services,Other Education and Community Budget,5105686693,12.10.2018,Home to School SEN Transport (LA),Taxis - Contract Hire,600,ALPHA (IOW) LTD
Revenue,Childrens Services,Children's & Education Services,Other Education and Community Budget,5105686695,10.10.2018,Home to School SEN Transport (LA),Taxis - Contract Hire,600,ALPHA (IOW) LTD
Revenue,Childrens Services,Children's & Education Services,Other Education and Community Budget,5105686661,10.10.2018,Home to School SEN Transport (LA),Taxis - Contract Hire,480,ALPHA (IOW) LTD
Revenue,Childrens Services,Children's & Education Services,Other Education and Community Budget,5105687185,17.10.2018,Home to School SEN Transport (LA),Taxis - Contract Hire,-600,ALPHA (IOW) LTD
Revenue,Childrens Services,Children's & Education Services,Other Education and Community Budget,5105687176,17.10.2018,Home to School SEN Transport (LA),Taxis - Contract Hire,-600,ALPHA (IOW) LTD
Revenue,Childrens Services,Children's & Education Services,Other Education and Community Budget,5105687147,17.10.2018,Home to School SEN Transport (LA),Taxis - Contract Hire,-600,ALPHA (IOW) LTD
Revenue,Childrens Services,Children's & Education Services,Other Education and Community Budget,5105688032,31.10.2018,Home to School SEN Transport (LA),Taxis - Contract Hire,600,ALPHA (IOW) LTD
Revenue,Childrens Services,Children's & Education Services,Other Education and Community Budget,5105688032,31.10.2018,Home to School SEN Transport (LA),Taxis - Contract Hire,600,ALPHA (IOW) LTD
Revenue,Childrens Services,Children's & Education Services,Other Education and Community Budget,5105687147,17.10.2018,Home to School SEN Transport (LA),Taxis - Contract Hire,-600,ALPHA (IOW) LTD
Revenue,Childrens Services,Children's & Education Services,Other Education and Community Budget,5105687176,17.10.2018,Home to School SEN Transport (LA),Taxis - Contract Hire,-600,ALPHA (IOW) LTD
Revenue,Childrens Services,Children's & Education Services,Other Education and Community Budget,5105687185,17.10.2018,Home to School SEN Transport (LA),Taxis - Contract Hire,-600,ALPHA (IOW) LTD
Revenue,Childrens Services,Children's & Education Services,Other Education and Community Budget,5105686661,10.10.2018,Home to School SEN Transport (LA),Taxis - Contract Hire,240,ALPHA (IOW) LTD
Revenue,Childrens Services,Children's & Education Services,Other Education and Community Budget,5105686695,10.10.2018,Home to School SEN Transport (LA),Taxis - Contract Hire,600,ALPHA (IOW) LTD
Revenue,Childrens Services,Children's & Education Services,Other Education and Community Budget,5105686696,10.10.2018,Home to School SEN Transport (LA),Taxis - Contract Hire,600,ALPHA (IOW) LTD
Revenue,Childrens Services,Children's & Education Services,Other Education and Community Budget,5105686693,12.10.2018,Home to School SEN Transport (LA),Taxis - Contract Hire,700,ALPHA (IOW) LTD
Revenue,Childrens Services,Children's & Education Services,Other Education and Community Budget,5105686699,10.10.2018,Home to School SEN Transport (LA),Taxis - Contract Hire,600,ALPHA (IOW) LTD
Revenue,Childrens Services,Children's & Education Services,Other Education and Community Budget,5105687137,17.10.2018,Home to School SEN Transport (LA),Taxis - Contract Hire,240,ALPHA (IOW) LTD
Revenue,Childrens Services,Children's & Education Services,Other Education and Community Budget,5105687140,17.10.2018,Home to School SEN Transport (LA),Taxis - Contract Hire,-240,ALPHA (IOW) LTD
Revenue,Childrens Services,Children's & Education Services,Other Education and Community Budget,5105687110,17.10.2018,Home to School SEN Transport (LA),Taxis - Contract Hire,600,ALPHA (IOW) LTD
Revenue,Childrens Services,Children's & Education Services,Other Education and Community Budget,5105687113,17.10.2018,Home to School SEN Transport (LA),Taxis - Contract Hire,600,ALPHA (IOW) LTD
Revenue,Childrens Services,Children's & Education Services,Other Education and Community Budget,5105687118,17.10.2018,Home to School SEN Transport (LA),Taxis - Contract Hire,600,ALPHA (IOW) LTD
Revenue,Childrens Services,Children's & Education Services,Other Education and Community Budget,5105687118,17.10.2018,Home to School SEN Transport (LA),Taxis - Contract Hire,250,ALPHA (IOW) LTD
Revenue,Childrens Services,Children's & Education Services,Other Education and Community Budget,5105687113,17.10.2018,Home to School SEN Transport (LA),Taxis - Contract Hire,250,ALPHA (IOW) LTD
Revenue,Childrens Services,Children's & Education Services,Other Education and Community Budget,5105687110,17.10.2018,Home to School SEN Transport (LA),Taxis - Contract Hire,250,ALPHA (IOW) LTD
Revenue,Childrens Services,Children's & Education Services,Other Education and Community Budget,5105687140,17.10.2018,Home to School SEN Transport (LA),Taxis - Contract Hire,-150,ALPHA (IOW) LTD
Revenue,Childrens Services,Children's & Education Services,Other Education and Community Budget,5105687137,17.10.2018,Home to School SEN Transport (LA),Taxis - Contract Hire,150,ALPHA (IOW) LTD
Revenue,Childrens Services,Children's & Education Services,Other Education and Community Budget,5105686661,10.10.2018,Home to School SEN Transport (LA),Taxis - Contract Hire,150,ALPHA (IOW) LTD
Revenue,Childrens Services,Children's & Education Services,Other Education and Community Budget,5105686699,10.10.2018,Home to School SEN Transport (LA),Taxis - Contract Hire,250,ALPHA (IOW) LTD
Revenue,Childrens Services,Children's & Education Services,Other Education and Community Budget,5105686693,12.10.2018,Home to School SEN Transport (LA),Taxis - Contract Hire,250,ALPHA (IOW) LTD
Revenue,Childrens Services,Children's & Education Services,Other Education and Community Budget,5105686696,10.10.2018,Home to School SEN Transport (LA),Taxis - Contract Hire,250,ALPHA (IOW) LTD
Revenue,Childrens Services,Children's & Education Services,Other Education and Community Budget,5105686695,10.10.2018,Home to School SEN Transport (LA),Taxis - Contract Hire,250,ALPHA (IOW) LTD
Revenue,Childrens Services,Children's & Education Services,Other Education and Community Budget,5105687176,17.10.2018,Home to School SEN Transport (LA),Taxis - Contract Hire,-250,ALPHA (IOW) LTD
Revenue,Childrens Services,Children's & Education Services,Other Education and Community Budget,5105687185,17.10.2018,Home to School SEN Transport (LA),Taxis - Contract Hire,-250,ALPHA (IOW) LTD
Revenue,Childrens Services,Children's & Education Services,Other Education and Community Budget,5105687147,17.10.2018,Home to School SEN Transport (LA),Taxis - Contract Hire,-250,ALPHA (IOW) LTD
Revenue,Childrens Services,Children's & Education Services,Other Education and Community Budget,5105688032,31.10.2018,Home to School SEN Transport (LA),Taxis - Contract Hire,250,ALPHA (IOW) LTD
Revenue,Childrens Services,Children's & Education Services,Other Education and Community Budget,5105686699,10.10.2018,Home to School SEN Transport (LA),Taxis - Contract Hire,140,ALPHA (IOW) LTD
Revenue,Childrens Services,Children's & Education Services,Other Education and Community Budget,5105686696,10.10.2018,Home to School SEN Transport (LA),Taxis - Contract Hire,140,ALPHA (IOW) LTD
Revenue,Childrens Services,Children's & Education Services,Other Education and Community Budget,5105686695,10.10.2018,Home to School SEN Transport (LA),Taxis - Contract Hire,140,ALPHA (IOW) LTD
Revenue,Childrens Services,Children's & Education Services,Other Education and Community Budget,5105686693,12.10.2018,Home to School SEN Transport (LA),Taxis - Contract Hire,140,ALPHA (IOW) LTD
Revenue,Childrens Services,Children's & Education Services,Other Education and Community Budget,5105686661,10.10.2018,Home to School SEN Transport (LA),Taxis - Contract Hire,84,ALPHA (IOW) LTD
Revenue,Childrens Services,Children's & Education Services,Other Education and Community Budget,5105687110,17.10.2018,Home to School SEN Transport (LA),Taxis - Contract Hire,140,ALPHA (IOW) LTD
Revenue,Childrens Services,Children's & Education Services,Other Education and Community Budget,5105687118,17.10.2018,Home to School SEN Transport (LA),Taxis - Contract Hire,140,ALPHA (IOW) LTD
Revenue,Childrens Services,Children's & Education Services,Other Education and Community Budget,5105687113,17.10.2018,Home to School SEN Transport (LA),Taxis - Contract Hire,140,ALPHA (IOW) LTD
Revenue,Childrens Services,Children's & Education Services,Other Education and Community Budget,5105687140,17.10.2018,Home to School SEN Transport (LA),Taxis - Contract Hire,-84,ALPHA (IOW) LTD
Revenue,Childrens Services,Children's & Education Services,Other Education and Community Budget,5105687137,17.10.2018,Home to School SEN Transport (LA),Taxis - Contract Hire,84,ALPHA (IOW) LTD
Revenue,Childrens Services,Children's & Education Services,Other Education and Community Budget,5105687185,17.10.2018,Home to School SEN Transport (LA),Taxis - Contract Hire,-140,ALPHA (IOW) LTD
Revenue,Childrens Services,Children's & Education Services,Other Education and Community Budget,5105687113,17.10.2018,Home to School SEN Transport (LA),Taxis - Contract Hire,280,ALPHA (IOW) LTD
Revenue,Childrens Services,Children's & Education Services,Other Education and Community Budget,5105687140,17.10.2018,Home to School SEN Transport (LA),Taxis - Contract Hire,-168,ALPHA (IOW) LTD
Revenue,Childrens Services,Children's & Education Services,Other Education and Community Budget,5105687137,17.10.2018,Home to School SEN Transport (LA),Taxis - Contract Hire,168,ALPHA (IOW) LTD
Revenue,Childrens Services,Children's & Education Services,Other Education and Community Budget,5105687176,17.10.2018,Home to School SEN Transport (LA),Taxis - Contract Hire,-280,ALPHA (IOW) LTD
Revenue,Childrens Services,Children's & Education Services,Other Education and Community Budget,5105687185,17.10.2018,Home to School SEN Transport (LA),Taxis - Contract Hire,-280,ALPHA (IOW) LTD
Revenue,Childrens Services,Children's & Education Services,Other Education and Community Budget,5105687147,17.10.2018,Home to School SEN Transport (LA),Taxis - Contract Hire,-280,ALPHA (IOW) LTD
Revenue,Childrens Services,Children's & Education Services,Other Education and Community Budget,5105688032,31.10.2018,Home to School SEN Transport (LA),Taxis - Contract Hire,280,ALPHA (IOW) LTD
Revenue,Childrens Services,Children's & Education Services,Other Education and Community Budget,5105688032,31.10.2018,Home to School SEN Transport (LA),Taxis - Contract Hire,395,ALPHA (IOW) LTD
Revenue,Childrens Services,Children's & Education Services,Other Education and Community Budget,5105687147,17.10.2018,Home to School SEN Transport (LA),Taxis - Contract Hire,-395,ALPHA (IOW) LTD
Revenue,Childrens Services,Children's & Education Services,Other Education and Community Budget,5105687185,17.10.2018,Home to School SEN Transport (LA),Taxis - Contract Hire,-395,ALPHA (IOW) LTD
Revenue,Childrens Services,Children's & Education Services,Other Education and Community Budget,5105687176,17.10.2018,Home to School SEN Transport (LA),Taxis - Contract Hire,-395,ALPHA (IOW) LTD
Revenue,Childrens Services,Children's & Education Services,Other Education and Community Budget,5105687137,17.10.2018,Home to School SEN Transport (LA),Taxis - Contract Hire,237,ALPHA (IOW) LTD
Revenue,Childrens Services,Children's & Education Services,Other Education and Community Budget,5105687140,17.10.2018,Home to School SEN Transport (LA),Taxis - Contract Hire,-237,ALPHA (IOW) LTD
Revenue,Childrens Services,Children's & Education Services,Other Education and Community Budget,5105687110,17.10.2018,Home to School SEN Transport (LA),Taxis - Contract Hire,395,ALPHA (IOW) LTD
Revenue,Childrens Services,Children's & Education Services,Other Education and Community Budget,5105687113,17.10.2018,Home to School SEN Transport (LA),Taxis - Contract Hire,395,ALPHA (IOW) LTD
Revenue,Childrens Services,Children's & Education Services,Other Education and Community Budget,5105687118,17.10.2018,Home to School SEN Transport (LA),Taxis - Contract Hire,395,ALPHA (IOW) LTD
Revenue,Childrens Services,Children's & Education Services,Other Education and Community Budget,5105686699,10.10.2018,Home to School SEN Transport (LA),Taxis - Contract Hire,395,ALPHA (IOW) LTD
Revenue,Childrens Services,Children's & Education Services,Other Education and Community Budget,5105686696,10.10.2018,Home to School SEN Transport (LA),Taxis - Contract Hire,395,ALPHA (IOW) LTD
Revenue,Childrens Services,Children's & Education Services,Other Education and Community Budget,5105686695,10.10.2018,Home to School SEN Transport (LA),Taxis - Contract Hire,395,ALPHA (IOW) LTD
Revenue,Childrens Services,Children's & Education Services,Other Education and Community Budget,5105686693,12.10.2018,Home to School SEN Transport (LA),Taxis - Contract Hire,395,ALPHA (IOW) LTD
Revenue,Childrens Services,Children's & Education Services,Other Education and Community Budget,5105686661,10.10.2018,Home to School SEN Transport (LA),Taxis - Contract Hire,237,ALPHA (IOW) LTD
Revenue,Childrens Services,Children's & Education Services,Other Education and Community Budget,5105686693,12.10.2018,Home to School SEN Transport (LA),Taxis - Contract Hire,260,ALPHA (IOW) LTD
Revenue,Childrens Services,Children's & Education Services,Other Education and Community Budget,5105686699,10.10.2018,Home to School SEN Transport (LA),Taxis - Contract Hire,260,ALPHA (IOW) LTD
Revenue,Childrens Services,Children's & Education Services,Other Education and Community Budget,5105687118,17.10.2018,Home to School SEN Transport (LA),Taxis - Contract Hire,260,ALPHA (IOW) LTD
Revenue,Childrens Services,Children's & Education Services,Other Education and Community Budget,5105687185,17.10.2018,Home to School SEN Transport (LA),Taxis - Contract Hire,-260,ALPHA (IOW) LTD
Revenue,Childrens Services,Children's & Education Services,Other Education and Community Budget,5105688032,31.10.2018,Home to School SEN Transport (LA),Taxis - Contract Hire,260,ALPHA (IOW) LTD
Revenue,Childrens Services,Children's & Education Services,Other Education and Community Budget,5105688032,31.10.2018,Home to School SEN Transport (LA),Taxis - Contract Hire,400,ALPHA (IOW) LTD
Revenue,Childrens Services,Children's & Education Services,Other Education and Community Budget,5105687176,17.10.2018,Home to School SEN Transport (LA),Taxis - Contract Hire,-400,ALPHA (IOW) LTD
Revenue,Childrens Services,Children's & Education Services,Other Education and Community Budget,5105687185,17.10.2018,Home to School SEN Transport (LA),Taxis - Contract Hire,-400,ALPHA (IOW) LTD
Revenue,Childrens Services,Children's & Education Services,Other Education and Community Budget,5105687147,17.10.2018,Home to School SEN Transport (LA),Taxis - Contract Hire,-400,ALPHA (IOW) LTD
Revenue,Childrens Services,Children's & Education Services,Other Education and Community Budget,5105687118,17.10.2018,Home to School SEN Transport (LA),Taxis - Contract Hire,400,ALPHA (IOW) LTD
Revenue,Childrens Services,Children's & Education Services,Other Education and Community Budget,5105687110,17.10.2018,Home to School SEN Transport (LA),Taxis - Contract Hire,400,ALPHA (IOW) LTD
Revenue,Childrens Services,Children's & Education Services,Other Education and Community Budget,5105687113,17.10.2018,Home to School SEN Transport (LA),Taxis - Contract Hire,400,ALPHA (IOW) LTD
Revenue,Childrens Services,Children's & Education Services,Other Education and Community Budget,5105687140,17.10.2018,Home to School SEN Transport (LA),Taxis - Contract Hire,-240,ALPHA (IOW) LTD
Revenue,Childrens Services,Children's & Education Services,Other Education and Community Budget,5105687137,17.10.2018,Home to School SEN Transport (LA),Taxis - Contract Hire,240,ALPHA (IOW) LTD
Revenue,Childrens Services,Children's & Education Services,Other Education and Community Budget,5105686699,10.10.2018,Home to School SEN Transport (LA),Taxis - Contract Hire,400,ALPHA (IOW) LTD
Revenue,Childrens Services,Children's & Education Services,Other Education and Community Budget,5105686695,10.10.2018,Home to School SEN Transport (LA),Taxis - Contract Hire,400,ALPHA (IOW) LTD
Revenue,Childrens Services,Children's & Education Services,Other Education and Community Budget,5105686696,10.10.2018,Home to School SEN Transport (LA),Taxis - Contract Hire,400,ALPHA (IOW) LTD
Revenue,Childrens Services,Children's & Education Services,Other Education and Community Budget,5105686693,12.10.2018,Home to School SEN Transport (LA),Taxis - Contract Hire,400,ALPHA (IOW) LTD
Revenue,Childrens Services,Children's & Education Services,Other Education and Community Budget,5105686661,10.10.2018,Home to School SEN Transport (LA),Taxis - Contract Hire,240,ALPHA (IOW) LTD
Revenue,Childrens Services,Children's & Education Services,Other Education and Community Budget,5105686661,10.10.2018,Home to School SEN Transport (LA),Taxis - Contract Hire,210,ALPHA (IOW) LTD
Revenue,Childrens Services,Children's & Education Services,Other Education and Community Budget,5105686693,12.10.2018,Home to School SEN Transport (LA),Taxis - Contract Hire,350,ALPHA (IOW) LTD
Revenue,Childrens Services,Children's & Education Services,Other Education and Community Budget,5105686696,10.10.2018,Home to School SEN Transport (LA),Taxis - Contract Hire,350,ALPHA (IOW) LTD
Revenue,Childrens Services,Children's & Education Services,Other Education and Community Budget,5105686695,10.10.2018,Home to School SEN Transport (LA),Taxis - Contract Hire,350,ALPHA (IOW) LTD
Revenue,Childrens Services,Children's & Education Services,Other Education and Community Budget,5105686699,10.10.2018,Home to School SEN Transport (LA),Taxis - Contract Hire,350,ALPHA (IOW) LTD
Revenue,Childrens Services,Children's & Education Services,Other Education and Community Budget,5105687140,17.10.2018,Home to School SEN Transport (LA),Taxis - Contract Hire,-210,ALPHA (IOW) LTD
Revenue,Childrens Services,Children's & Education Services,Other Education and Community Budget,5105687137,17.10.2018,Home to School SEN Transport (LA),Taxis - Contract Hire,210,ALPHA (IOW) LTD
Revenue,Childrens Services,Children's & Education Services,Other Education and Community Budget,5105687113,17.10.2018,Home to School SEN Transport (LA),Taxis - Contract Hire,350,ALPHA (IOW) LTD
Revenue,Childrens Services,Children's & Education Services,Other Education and Community Budget,5105687110,17.10.2018,Home to School SEN Transport (LA),Taxis - Contract Hire,350,ALPHA (IOW) LTD
Revenue,Childrens Services,Children's & Education Services,Other Education and Community Budget,5105687118,17.10.2018,Home to School SEN Transport (LA),Taxis - Contract Hire,350,ALPHA (IOW) LTD
Revenue,Childrens Services,Children's & Education Services,Other Education and Community Budget,5105687147,17.10.2018,Home to School SEN Transport (LA),Taxis - Contract Hire,-350,ALPHA (IOW) LTD
Revenue,Childrens Services,Children's & Education Services,Other Education and Community Budget,5105687185,17.10.2018,Home to School SEN Transport (LA),Taxis - Contract Hire,-350,ALPHA (IOW) LTD
Revenue,Childrens Services,Children's & Education Services,Other Education and Community Budget,5105687176,17.10.2018,Home to School SEN Transport (LA),Taxis - Contract Hire,-350,ALPHA (IOW) LTD
Revenue,Childrens Services,Children's & Education Services,Other Education and Community Budget,5105688032,31.10.2018,Home to School SEN Transport (LA),Taxis - Contract Hire,350,ALPHA (IOW) LTD
Revenue,Childrens Services,Children's & Education Services,Other Education and Community Budget,5105686661,10.10.2018,Home to School SEN Transport (LA),Taxis - Contract Hire,180,ALPHA (IOW) LTD
Revenue,Childrens Services,Children's & Education Services,Other Education and Community Budget,5105686699,10.10.2018,Home to School SEN Transport (LA),Taxis - Contract Hire,300,ALPHA (IOW) LTD
Revenue,Childrens Services,Children's & Education Services,Other Education and Community Budget,5105686696,10.10.2018,Home to School SEN Transport (LA),Taxis - Contract Hire,300,ALPHA (IOW) LTD
Revenue,Childrens Services,Children's & Education Services,Other Education and Community Budget,5105686695,10.10.2018,Home to School SEN Transport (LA),Taxis - Contract Hire,300,ALPHA (IOW) LTD
Revenue,Childrens Services,Children's & Education Services,Other Education and Community Budget,5105686693,12.10.2018,Home to School SEN Transport (LA),Taxis - Contract Hire,300,ALPHA (IOW) LTD
Revenue,Childrens Services,Children's & Education Services,Other Education and Community Budget,5105687118,17.10.2018,Home to School SEN Transport (LA),Taxis - Contract Hire,300,ALPHA (IOW) LTD
Revenue,Childrens Services,Children's & Education Services,Other Education and Community Budget,5105687113,17.10.2018,Home to School SEN Transport (LA),Taxis - Contract Hire,300,ALPHA (IOW) LTD
Revenue,Childrens Services,Children's & Education Services,Other Education and Community Budget,5105687137,17.10.2018,Home to School SEN Transport (LA),Taxis - Contract Hire,180,ALPHA (IOW) LTD
Revenue,Childrens Services,Children's & Education Services,Other Education and Community Budget,5105687140,17.10.2018,Home to School SEN Transport (LA),Taxis - Contract Hire,-180,ALPHA (IOW) LTD
Revenue,Childrens Services,Children's & Education Services,Other Education and Community Budget,5105687110,17.10.2018,Home to School SEN Transport (LA),Taxis - Contract Hire,300,ALPHA (IOW) LTD
Revenue,Childrens Services,Children's & Education Services,Other Education and Community Budget,5105687147,17.10.2018,Home to School SEN Transport (LA),Taxis - Contract Hire,-300,ALPHA (IOW) LTD
Revenue,Childrens Services,Children's & Education Services,Other Education and Community Budget,5105687185,17.10.2018,Home to School SEN Transport (LA),Taxis - Contract Hire,-300,ALPHA (IOW) LTD
Revenue,Childrens Services,Children's & Education Services,Other Education and Community Budget,5105687176,17.10.2018,Home to School SEN Transport (LA),Taxis - Contract Hire,-300,ALPHA (IOW) LTD
Revenue,Childrens Services,Children's & Education Services,Other Education and Community Budget,5105688032,31.10.2018,Home to School SEN Transport (LA),Taxis - Contract Hire,300,ALPHA (IOW) LTD
Revenue,Childrens Services,Children's & Education Services,Other Education and Community Budget,5105686661,10.10.2018,Home to School SEN Transport (LA),Taxis - Contract Hire,120,ALPHA (IOW) LTD
Revenue,Childrens Services,Children's & Education Services,Other Education and Community Budget,5105686699,10.10.2018,Home to School SEN Transport (LA),Taxis - Contract Hire,200,ALPHA (IOW) LTD
Revenue,Childrens Services,Children's & Education Services,Other Education and Community Budget,5105686696,10.10.2018,Home to School SEN Transport (LA),Taxis - Contract Hire,200,ALPHA (IOW) LTD
Revenue,Childrens Services,Children's & Education Services,Other Education and Community Budget,5105686695,10.10.2018,Home to School SEN Transport (LA),Taxis - Contract Hire,200,ALPHA (IOW) LTD
Revenue,Childrens Services,Children's & Education Services,Other Education and Community Budget,5105686693,12.10.2018,Home to School SEN Transport (LA),Taxis - Contract Hire,200,ALPHA (IOW) LTD
Revenue,Childrens Services,Children's & Education Services,Other Education and Community Budget,5105687118,17.10.2018,Home to School SEN Transport (LA),Taxis - Contract Hire,200,ALPHA (IOW) LTD
Revenue,Childrens Services,Children's & Education Services,Other Education and Community Budget,5105687113,17.10.2018,Home to School SEN Transport (LA),Taxis - Contract Hire,200,ALPHA (IOW) LTD
Revenue,Childrens Services,Children's & Education Services,Other Education and Community Budget,5105687137,17.10.2018,Home to School SEN Transport (LA),Taxis - Contract Hire,120,ALPHA (IOW) LTD
Revenue,Childrens Services,Children's & Education Services,Other Education and Community Budget,5105687140,17.10.2018,Home to School SEN Transport (LA),Taxis - Contract Hire,-120,ALPHA (IOW) LTD
Revenue,Childrens Services,Children's & Education Services,Other Education and Community Budget,5105687110,17.10.2018,Home to School SEN Transport (LA),Taxis - Contract Hire,200,ALPHA (IOW) LTD
Revenue,Childrens Services,Children's & Education Services,Other Education and Community Budget,5105687147,17.10.2018,Home to School SEN Transport (LA),Taxis - Contract Hire,-200,ALPHA (IOW) LTD
Revenue,Childrens Services,Children's & Education Services,Other Education and Community Budget,5105687185,17.10.2018,Home to School SEN Transport (LA),Taxis - Contract Hire,-200,ALPHA (IOW) LTD
Revenue,Childrens Services,Children's & Education Services,Other Education and Community Budget,5105687176,17.10.2018,Home to School SEN Transport (LA),Taxis - Contract Hire,-200,ALPHA (IOW) LTD
Revenue,Childrens Services,Children's & Education Services,Other Education and Community Budget,5105688032,31.10.2018,Home to School SEN Transport (LA),Taxis - Contract Hire,200,ALPHA (IOW) LTD
Revenue,Childrens Services,Children's & Education Services,Other Education and Community Budget,5105688032,31.10.2018,Home to School SEN Transport (LA),Taxis - Contract Hire,450,ALPHA (IOW) LTD
Revenue,Childrens Services,Children's & Education Services,Other Education and Community Budget,5105687185,17.10.2018,Home to School SEN Transport (LA),Taxis - Contract Hire,-450,ALPHA (IOW) LTD
Revenue,Childrens Services,Children's & Education Services,Other Education and Community Budget,5105687147,17.10.2018,Home to School SEN Transport (LA),Taxis - Contract Hire,-450,ALPHA (IOW) LTD
Revenue,Childrens Services,Children's & Education Services,Other Education and Community Budget,5105687176,17.10.2018,Home to School SEN Transport (LA),Taxis - Contract Hire,-450,ALPHA (IOW) LTD
Revenue,Childrens Services,Children's & Education Services,Other Education and Community Budget,5105687110,17.10.2018,Home to School SEN Transport (LA),Taxis - Contract Hire,450,ALPHA (IOW) LTD
Revenue,Childrens Services,Children's & Education Services,Other Education and Community Budget,5105687113,17.10.2018,Home to School SEN Transport (LA),Taxis - Contract Hire,450,ALPHA (IOW) LTD
Revenue,Childrens Services,Children's & Education Services,Other Education and Community Budget,5105687118,17.10.2018,Home to School SEN Transport (LA),Taxis - Contract Hire,450,ALPHA (IOW) LTD
Revenue,Childrens Services,Children's & Education Services,Other Education and Community Budget,5105687137,17.10.2018,Home to School SEN Transport (LA),Taxis - Contract Hire,270,ALPHA (IOW) LTD
Revenue,Childrens Services,Children's & Education Services,Other Education and Community Budget,5105687140,17.10.2018,Home to School SEN Transport (LA),Taxis - Contract Hire,-270,ALPHA (IOW) LTD
Revenue,Childrens Services,Children's & Education Services,Other Education and Community Budget,5105686693,12.10.2018,Home to School SEN Transport (LA),Taxis - Contract Hire,450,ALPHA (IOW) LTD
Revenue,Childrens Services,Children's & Education Services,Other Education and Community Budget,5105686695,10.10.2018,Home to School SEN Transport (LA),Taxis - Contract Hire,450,ALPHA (IOW) LTD
Revenue,Childrens Services,Children's & Education Services,Other Education and Community Budget,5105686696,10.10.2018,Home to School SEN Transport (LA),Taxis - Contract Hire,450,ALPHA (IOW) LTD
Revenue,Childrens Services,Children's & Education Services,Other Education and Community Budget,5105686699,10.10.2018,Home to School SEN Transport (LA),Taxis - Contract Hire,450,ALPHA (IOW) LTD
Revenue,Childrens Services,Children's & Education Services,Other Education and Community Budget,5105686661,10.10.2018,Home to School SEN Transport (LA),Taxis - Contract Hire,270,ALPHA (IOW) LTD
Revenue,Childrens Services,Children's & Education Services,Other Education and Community Budget,5105687176,17.10.2018,Home to School SEN Transport (LA),Taxis - Contract Hire,-250,ALPHA (IOW) LTD
Revenue,Childrens Services,Children's & Education Services,Other Education and Community Budget,5105687185,17.10.2018,Home to School SEN Transport (LA),Taxis - Contract Hire,-250,ALPHA (IOW) LTD
Revenue,Childrens Services,Children's & Education Services,Other Education and Community Budget,5105687147,17.10.2018,Home to School SEN Transport (LA),Taxis - Contract Hire,-250,ALPHA (IOW) LTD
Revenue,Childrens Services,Children's & Education Services,Other Education and Community Budget,5105687110,17.10.2018,Home to School SEN Transport (LA),Taxis - Contract Hire,250,ALPHA (IOW) LTD
Revenue,Childrens Services,Children's & Education Services,Other Education and Community Budget,5105687140,17.10.2018,Home to School SEN Transport (LA),Taxis - Contract Hire,-150,ALPHA (IOW) LTD
Revenue,Childrens Services,Children's & Education Services,Other Education and Community Budget,5105687137,17.10.2018,Home to School SEN Transport (LA),Taxis - Contract Hire,150,ALPHA (IOW) LTD
Revenue,Childrens Services,Children's & Education Services,Other Education and Community Budget,5105687113,17.10.2018,Home to School SEN Transport (LA),Taxis - Contract Hire,250,ALPHA (IOW) LTD
Revenue,Childrens Services,Children's & Education Services,Other Education and Community Budget,5105687118,17.10.2018,Home to School SEN Transport (LA),Taxis - Contract Hire,250,ALPHA (IOW) LTD
Revenue,Childrens Services,Children's & Education Services,Other Education and Community Budget,5105686661,10.10.2018,Home to School SEN Transport (LA),Taxis - Contract Hire,150,ALPHA (IOW) LTD
Revenue,Childrens Services,Children's & Education Services,Other Education and Community Budget,5105686693,12.10.2018,Home to School SEN Transport (LA),Taxis - Contract Hire,250,ALPHA (IOW) LTD
Revenue,Adult Services,Adult Social Care,Learning Disability Suppt-adults (18-64),5105685193,03.10.2018,Learning Disability Residential 18-64,Charges from Independent Providers,"3,836.84",ALPHAGRANGE LTD
Revenue,Adult Services,Adult Social Care,Learning Disability Suppt-adults (18-64),5105688543,31.10.2018,Learning Disability Residential 18-64,Charges from Independent Providers,"3,836.84",ALPHAGRANGE LTD
Capital,Place,Capital,Capital,5105688438,26.10.2018,Waste Capital Programme,Payment to Contractors - Capital,"257,064.75",AMEY (IOW) SPV LIMITED
Revenue,Neighbourhoods,Environmental & Regulatory Services,Waste Collection,5105686714,12.10.2018,Waste Contract Income,Legal Fees - Other Parties,"4,680.50",AMEY (IOW) SPV LIMITED
Revenue,Neighbourhoods,Cultural and Related Services,Open Spaces,5105688482,26.10.2018,Fort Victoria,Payment to Private Contractors,7.33,AMEY LG LTD
Revenue,Fire & Rescue,Fire & Rescue Services,Fire fighting and Rescue Operations,5105688480,26.10.2018,Fire Operations,"Refuse Collection, Disposal and Recycling Costs",180,AMEY LG LTD
Revenue,Fire & Rescue,Fire & Rescue Services,Fire fighting and Rescue Operations,5105688479,26.10.2018,Fire Operations,"Refuse Collection, Disposal and Recycling Costs",-180,AMEY LG LTD
Revenue,Fire & Rescue,Fire & Rescue Services,Fire fighting and Rescue Operations,5105688477,26.10.2018,Fire Operations,"Refuse Collection, Disposal and Recycling Costs",58.5,AMEY LG LTD
Revenue,Fire & Rescue,Fire & Rescue Services,Fire fighting and Rescue Operations,5105688476,26.10.2018,Fire Operations,"Refuse Collection, Disposal and Recycling Costs",-58.5,AMEY LG LTD
Revenue,Adult Services,Adult Social Care,Physical Support - older people (65+),5105688545,31.10.2018,Physical Support Residential 65+,Charges from Independent Providers,"1,992.48",ANCONA CARE HOME
Revenue,Adult Services,Adult Social Care,Physical Support - older people (65+),5105688545,31.10.2018,Physical Support Residential 65+,Charges from Independent Providers,"1,902.60",ANCONA CARE HOME
Revenue,Adult Services,Adult Social Care,Physical Support - older people (65+),5105688545,31.10.2018,Physical Support Residential 65+,Charges from Independent Providers,"1,992.48",ANCONA CARE HOME
Revenue,Adult Services,Adult Social Care,Physical Support - older people (65+),5105688545,31.10.2018,Physical Support Residential 65+,Charges from Independent Providers,"1,992.48",ANCONA CARE HOME
Revenue,Adult Services,Adult Social Care,Physical Support - older people (65+),5105686499,10.10.2018,Physical Support Residential 65+,Charges from Independent Providers,847.35,ANCONA CARE HOME
Revenue,Adult Services,Adult Social Care,Physical Support - older people (65+),5105686499,10.10.2018,Physical Support Residential 65+,Charges from Independent Providers,699.78,ANCONA CARE HOME
Revenue,Adult Services,Adult Social Care,Physical Support - older people (65+),5105685211,03.10.2018,Physical Support Residential 65+,Charges from Independent Providers,"1,902.60",ANCONA CARE HOME
Revenue,Adult Services,Adult Social Care,Physical Support - older people (65+),5105685208,03.10.2018,Physical Support Residential 65+,Charges from Independent Providers,"1,902.60",ANCONA CARE HOME
Revenue,Adult Services,Adult Social Care,Physical Support - older people (65+),5105685209,03.10.2018,Physical Support Residential 65+,Charges from Independent Providers,"1,992.48",ANCONA CARE HOME
Revenue,Adult Services,Adult Social Care,Physical Support - older people (65+),5105685210,03.10.2018,Physical Support Residential 65+,Charges from Independent Providers,"1,992.48",ANCONA CARE HOME
Revenue,Childrens Services,Children's & Education Services,Family Support Services,5105685820,03.10.2018,Family Support activity base: 76 Greenlands,Minor Works,200,ANDREW BYFORD T/A HUMPY DUMP
Revenue,Childrens Services,Children's & Education Services,Family Support Services,5105687404,19.10.2018,Family Support activity base: 76 Greenlands,Minor Works,10,ANDREW BYFORD T/A HUMPY DUMP
Revenue,Childrens Services,Children's & Education Services,Family Support Services,5105686660,12.10.2018,Family Support activity base: 76 Greenlands,Minor Works,20,ANDREW BYFORD T/A HUMPY DUMP
Revenue,Fire & Rescue,Fire & Rescue Services,Fire fighting and Rescue Operations,5105686649,10.10.2018,Fire Operations,"Refuse Collection, Disposal and Recycling Costs",200,ANDREW BYFORD T/A HUMPY DUMP
Revenue,Fire & Rescue,Fire & Rescue Services,Fire fighting and Rescue Operations,5105687066,17.10.2018,Fire Technical Support,Vehicle Maintenance Costs,"6,818.16",ANGLOCO LTD
Revenue,Fire & Rescue,Fire & Rescue Services,Fire fighting and Rescue Operations,5105687179,17.10.2018,Fire Technical Support,Vehicle Maintenance Costs,"1,486.50",ANGLOCO LTD
Revenue,Assistant Chief Executive,Central Services,Support Services,5105685762,03.10.2018,Print Unit,Printing Costs,41.7,ANTALIS MCNAUGHTON
Revenue,Assistant Chief Executive,Central Services,Support Services,5105685762,03.10.2018,Print Unit,Printing Costs,35.25,ANTALIS MCNAUGHTON
Revenue,Assistant Chief Executive,Central Services,Support Services,5105685762,03.10.2018,Print Unit,Printing Costs,112.35,ANTALIS MCNAUGHTON
Revenue,Assistant Chief Executive,Central Services,Support Services,5105685756,03.10.2018,Print Unit,Printing Costs,20.66,ANTALIS MCNAUGHTON
Revenue,Assistant Chief Executive,Central Services,Support Services,5105685756,03.10.2018,Print Unit,Printing Costs,53.04,ANTALIS MCNAUGHTON
Revenue,Assistant Chief Executive,Central Services,Support Services,5105685756,03.10.2018,Print Unit,Printing Costs,40.68,ANTALIS MCNAUGHTON
Revenue,Assistant Chief Executive,Central Services,Support Services,5105685756,03.10.2018,Print Unit,Printing Costs,55.6,ANTALIS MCNAUGHTON
Revenue,Assistant Chief Executive,Central Services,Support Services,5105685992,03.10.2018,Print Unit,Printing Costs,27.8,ANTALIS MCNAUGHTON
Revenue,Assistant Chief Executive,Central Services,Support Services,5105685992,03.10.2018,Print Unit,Printing Costs,112.35,ANTALIS MCNAUGHTON
Revenue,Assistant Chief Executive,Central Services,Support Services,5105686457,17.10.2018,Print Unit,Printing Costs,112.35,ANTALIS MCNAUGHTON
Revenue,Resources,Central Services,Support Services,5105685855,03.10.2018,Litigation Costs,Legal Fees - Other Parties,400,"COLLEGE CHAMBERS, BARRISTERS"
Revenue,Resources,Central Services,Support Services,5105688685,31.10.2018,Litigation Costs,Legal Fees - Other Parties,400,"COLLEGE CHAMBERS, BARRISTERS"
Revenue,Adult Services,Adult Social Care,Assistive Equipment & Technology,5105686987,12.10.2018,Wightcare,Operational Equipment,240,ANYWHERE CARE LIMITED
Revenue,Adult Services,Adult Social Care,Assistive Equipment & Technology,5105687764,31.10.2018,Wightcare,Operational Equipment,"1,200.00",ANYWHERE CARE LIMITED
Revenue,Adult Services,Adult Social Care,Assistive Equipment & Technology,5105688334,26.10.2018,Wightcare,Operational Equipment,"4,500.00",ANYWHERE CARE LIMITED
Revenue,Childrens Services,Children's & Education Services,Children Looked After,5105687005,26.10.2018,Support for Looked After Children,Transport of Clients,560.4,AQUA CARS LTD
Revenue,Fire & Rescue,Fire & Rescue Services,Fire fighting and Rescue Operations,5105688720,31.10.2018,Fire Technical Support,General Materials,148.4,AQUAID (SOUTH COAST) FRANCHISE LTD
Revenue,Regeneration,Planning services,Economic Development,5105688388,26.10.2018,Ryde Esplanade Regeneration,Professional Services,"4,175.00",ARC CONSULTING LTD
Revenue,Place,Planning services,Management & Support Services,5105686003,03.10.2018,Planning Management,Clothing & Laundry,46.49,ARCO LTD
Revenue,Neighbourhoods,Highways and Transport Services,"Airports, Harbours & Toll Facilities",5105687177,17.10.2018,Ferry Operation,Clothing & Laundry,17.43,ARCO LTD
Revenue,Neighbourhoods,Environmental & Regulatory Services,Service Management and Support Services,5105686461,10.10.2018,Environment officers,Clothing & Laundry,30.08,ARCO LTD
Revenue,Neighbourhoods,Environmental & Regulatory Services,Service Management and Support Services,5105687634,19.10.2018,Environment officers,Clothing & Laundry,51.74,ARCO LTD
Revenue,Adult Services,Adult Social Care,Learning Disab Supp (to be reallocated),5105685968,10.10.2018,Saxonbury,Minor Works,615,ARJO UK LTD
Revenue,Adult Services,Adult Social Care,Learning Disab Supp (to be reallocated),5105686204,10.10.2018,Seagulls,Minor Works,69,ARJO UK LTD
Revenue,Adult Services,Adult Social Care,Learning Disab Supp (to be reallocated),5105685964,05.10.2018,Saxonbury,Minor Works,805.25,ARJO UK LTD
Revenue,Adult Services,Adult Social Care,Assistive Equipment & Technology,5105687031,24.10.2018,Community Equipment Store,Operational Equipment,213,ARJO UK LTD
Revenue,Adult Services,Adult Social Care,Assistive Equipment & Technology,5105687031,24.10.2018,Community Equipment Store,Operational Equipment,11,ARJO UK LTD
Revenue,Adult Services,Adult Social Care,Learning Disab Supp (to be reallocated),5105687621,19.10.2018,Westminster House,Property Services - Planned Maintenance,87,ARJO UK LTD
Revenue,Adult Services,Adult Social Care,Learning Disab Supp (to be reallocated),5105684685,03.10.2018,40 Venner Avenue,Minor Works,62.12,ARJO UK LTD
Revenue,Adult Services,Adult Social Care,Learning Disab Supp (to be reallocated),5105686221,24.10.2018,40 Venner Avenue,Minor Works,42,ARJO UK LTD
Revenue,Adult Services,Adult Social Care,Learning Disab Supp (to be reallocated),5105688129,24.10.2018,40 Venner Avenue,Minor Works,-62.12,ARJO UK LTD
Revenue,Adult Services,Adult Social Care,Learning Disab Supp (to be reallocated),5105688132,24.10.2018,40 Venner Avenue,Minor Works,62.12,ARJO UK LTD
Revenue,Adult Services,Adult Social Care,Learning Disab Supp (to be reallocated),5105686203,10.10.2018,31 Carter Avenue,Minor Works,377.2,ARJO UK LTD
Revenue,Adult Services,Adult Social Care,Learning Disab Supp (to be reallocated),5105687349,17.10.2018,The Laurels,Minor Works,-270,ARJO UK LTD
Revenue,Adult Services,Adult Social Care,Learning Disab Supp (to be reallocated),5105686667,17.10.2018,The Laurels,Minor Works,619,ARJO UK LTD
Revenue,Adult Services,Adult Social Care,Central Codes (to be reallocated),5105688100,26.10.2018,Adelaide Resource Centre,Property Services - Planned Maintenance,204,ARJO UK LTD
Revenue,Adult Services,Adult Social Care,Central Codes (to be reallocated),5105688101,26.10.2018,Adelaide Resource Centre,Property Services - Planned Maintenance,174,ARJO UK LTD
Revenue,Regeneration,Central Services,Support Services,5105688099,26.10.2018,"County Hall,Newport",Property Services - Planned Maintenance,68,ARJO UK LTD
Revenue,Neighbourhoods,Cultural and Related Services,Library Service,5105687100,17.10.2018,Public Libraries Central,Professional Subscriptions,75,ASSOCIATION OF SENIOR CHILDREN'S AND EDUCATION LIBRARIANS
Revenue,Neighbourhoods,Environmental & Regulatory Services,"Cemetery, Cremation & Mortuary Services",5105686296,05.10.2018,Crematorium,Operational Equipment,790,ASHDOWN SUPPLIES
Revenue,Childrens Services,Children's & Education Services,Services for Young People,5105684654,10.10.2018,Family Intervention Team,Hire of facilities,99,ASPIRE RYDE
Revenue,Childrens Services,Children's & Education Services,Services for Young People,5105684651,10.10.2018,Family Intervention Team,Hire of facilities,176,ASPIRE RYDE
Revenue,Childrens Services,Children's & Education Services,Services for Young People,5105687931,24.10.2018,Family Intervention Team,Hire of facilities,198,ASPIRE RYDE
Revenue,Regeneration,Central Services,Support Services,5105687284,19.10.2018,"County Hall,Newport",Property Services - Day to day Maintenance,10,ASSA ABLOY ENTRANCE SYSTEMS LTD
Revenue,Childrens Services,Children's & Education Services,Special Schools & Alternative Provision,5105686689,12.10.2018,Island Learning Centre,Schools Examination Fees,129.08,ASSESSMENT & QUALIFICATION ALLIANCE
Revenue,Childrens Services,Children's & Education Services,Special Schools & Alternative Provision,5105686922,12.10.2018,Island Learning Centre,Schools Examination Fees,-34.55,ASSESSMENT & QUALIFICATION ALLIANCE
Revenue,Childrens Services,Children's & Education Services,Special Schools & Alternative Provision,5105686915,12.10.2018,Island Learning Centre,Schools Examination Fees,201.31,ASSESSMENT & QUALIFICATION ALLIANCE
Revenue,Childrens Services,Children's & Education Services,Other Education and Community Budget,5105687690,19.10.2018,Specialist Cross-Council Training,Training,740,ASSOCIATION OF ELECTORAL ADMINISTRATORS
Revenue,Childrens Services,Children's & Education Services,Other Education and Community Budget,5105685893,10.10.2018,Specialist Cross-Council Training,Training,400,ASTRID DAVIES CONSULTING LTD
Revenue,Adult Services,Adult Social Care,Support - Memory /Cognition-older people (65+),5105687808,24.10.2018,Memory & Cognition Residential 65+,Charges from Independent Providers,"1,707.84",AUTUMN HOUSE CARE LTD
Revenue,Adult Services,Adult Social Care,Support - Memory /Cognition-older people (65+),5105688525,31.10.2018,Memory & Cognition Residential 65+,Charges from Independent Providers,355.8,AUTUMN HOUSE CARE LTD
Revenue,Adult Services,Adult Social Care,Physical Support - older people (65+),5105687808,24.10.2018,Physical Support Residential 65+,Charges from Independent Providers,"1,254.90",AUTUMN HOUSE CARE LTD
Revenue,Adult Services,Adult Social Care,Physical Support - older people (65+),5105687983,24.10.2018,Physical Support Residential 65+,Charges from Independent Providers,"1,171.24",AUTUMN HOUSE CARE LTD
Revenue,Adult Services,Adult Social Care,Support - Memory /Cognition-older people (65+),5105688525,31.10.2018,Memory & Cognition Residential 65+,Charges from Independent Providers,"2,342.48",AUTUMN HOUSE CARE LTD
Revenue,Adult Services,Adult Social Care,Physical Support - older people (65+),5105688525,31.10.2018,Physical Support Residential 65+,Charges from Independent Providers,"1,992.48",AUTUMN HOUSE CARE LTD
Revenue,Adult Services,Adult Social Care,Support - Memory /Cognition-older people (65+),5105688525,31.10.2018,Memory & Cognition Residential 65+,Charges from Independent Providers,"1,992.48",AUTUMN HOUSE CARE LTD
Revenue,Adult Services,Adult Social Care,Physical Support - older people (65+),5105688525,31.10.2018,Physical Support Residential 65+,Charges from Independent Providers,167.32,AUTUMN HOUSE CARE LTD
Revenue,Adult Services,Adult Social Care,Support - Memory /Cognition-older people (65+),5105688525,31.10.2018,Memory & Cognition Residential 65+,Charges from Independent Providers,"2,800.00",AUTUMN HOUSE CARE LTD
Revenue,Adult Services,Adult Social Care,Physical Support - older people (65+),5105688498,31.10.2018,Physical Support Residential 65+,Charges from Independent Providers,418.3,AUTUMN HOUSE CARE LTD
Revenue,Adult Services,Adult Social Care,Physical Support - older people (65+),5105688498,31.10.2018,Physical Support Residential 65+,Charges from Independent Providers,"2,342.48",AUTUMN HOUSE CARE LTD
Revenue,Adult Services,Adult Social Care,Physical Support - older people (65+),5105688525,31.10.2018,Physical Support Residential 65+,Charges from Independent Providers,"2,342.48",AUTUMN HOUSE CARE LTD
Revenue,Adult Services,Adult Social Care,Physical Support - older people (65+),5105688525,31.10.2018,Physical Support Residential 65+,Charges from Independent Providers,"1,992.48",AUTUMN HOUSE CARE LTD
Revenue,Adult Services,Adult Social Care,Support - Memory /Cognition-older people (65+),5105688525,31.10.2018,Memory & Cognition Residential 65+,Charges from Independent Providers,"1,992.48",AUTUMN HOUSE CARE LTD
Revenue,Adult Services,Adult Social Care,Physical Support - older people (65+),5105687808,24.10.2018,Physical Support Residential 65+,Charges from Independent Providers,"1,505.88",AUTUMN HOUSE CARE LTD
Revenue,Adult Services,Adult Social Care,Physical Support - older people (65+),5105688525,31.10.2018,Physical Support Residential 65+,Charges from Independent Providers,"2,342.48",AUTUMN HOUSE CARE LTD
Revenue,Adult Services,Adult Social Care,Physical Support - older people (65+),5105687808,24.10.2018,Physical Support Residential 65+,Charges from Independent Providers,585.62,AUTUMN HOUSE CARE LTD
Revenue,Adult Services,Adult Social Care,Physical Support - older people (65+),5105688525,31.10.2018,Physical Support Residential 65+,Charges from Independent Providers,"2,342.48",AUTUMN HOUSE CARE LTD
Revenue,Adult Services,Adult Social Care,Physical Support - older people (65+),5105688525,31.10.2018,Physical Support Residential 65+,Charges from Independent Providers,"2,342.48",AUTUMN HOUSE CARE LTD
Revenue,Adult Services,Adult Social Care,Physical Support - older people (65+),5105688525,31.10.2018,Physical Support Residential 65+,Charges from Independent Providers,"1,992.48",AUTUMN HOUSE CARE LTD
Revenue,Adult Services,Adult Social Care,Physical Support - older people (65+),5105688525,31.10.2018,Physical Support Residential 65+,Charges from Independent Providers,"1,992.48",AUTUMN HOUSE CARE LTD
Revenue,Adult Services,Adult Social Care,Physical Support - older people (65+),5105688525,31.10.2018,Physical Support Residential 65+,Charges from Independent Providers,"2,342.48",AUTUMN HOUSE CARE LTD
Revenue,Adult Services,Adult Social Care,Support - Memory /Cognition-older people (65+),5105688525,31.10.2018,Memory & Cognition Residential 65+,Charges from Independent Providers,"1,992.48",AUTUMN HOUSE CARE LTD
Revenue,Adult Services,Adult Social Care,Support - Memory /Cognition-older people (65+),5105688525,31.10.2018,Memory & Cognition Residential 65+,Charges from Independent Providers,"2,342.48",AUTUMN HOUSE CARE LTD
Revenue,Adult Services,Adult Social Care,Physical Support - older people (65+),5105686733,12.10.2018,Physical Support Residential 65+,Charges from Independent Providers,"7,445.74",AUTUMN HOUSE CARE LTD
Revenue,Adult Services,Adult Social Care,Physical Support - older people (65+),5105686733,12.10.2018,Physical Support Residential 65+,Charges from Independent Providers,"1,254.90",AUTUMN HOUSE CARE LTD
Revenue,Adult Services,Adult Social Care,Support - Memory /Cognition-older people (65+),5105687041,17.10.2018,Memory & Cognition Residential 65+,Charges from Independent Providers,"6,023.52",AUTUMN HOUSE CARE LTD
Revenue,Adult Services,Adult Social Care,Support - Memory /Cognition-older people (65+),5105688525,31.10.2018,Memory & Cognition Residential 65+,Charges from Independent Providers,"2,342.48",AUTUMN HOUSE CARE LTD
Revenue,Adult Services,Adult Social Care,Support - Memory /Cognition-older people (65+),5105688525,31.10.2018,Memory & Cognition Residential 65+,Charges from Independent Providers,"2,342.48",AUTUMN HOUSE CARE LTD
Revenue,Adult Services,Adult Social Care,Support - Memory /Cognition-older people (65+),5105688525,31.10.2018,Memory & Cognition Residential 65+,Charges from Independent Providers,"2,342.48",AUTUMN HOUSE CARE LTD
Revenue,Adult Services,Adult Social Care,Support - Memory /Cognition-older people (65+),5105688525,31.10.2018,Memory & Cognition Residential 65+,Charges from Independent Providers,"2,342.48",AUTUMN HOUSE CARE LTD
Revenue,Adult Services,Adult Social Care,Physical Support - older people (65+),5105688525,31.10.2018,Physical Support Residential 65+,Charges from Independent Providers,"2,342.48",AUTUMN HOUSE CARE LTD
Revenue,Adult Services,Adult Social Care,Support - Memory /Cognition-older people (65+),5105688525,31.10.2018,Memory & Cognition Residential 65+,Charges from Independent Providers,"2,342.48",AUTUMN HOUSE CARE LTD
Revenue,Adult Services,Adult Social Care,Support - Memory /Cognition-older people (65+),5105688525,31.10.2018,Memory & Cognition Residential 65+,Charges from Independent Providers,"2,342.48",AUTUMN HOUSE CARE LTD
Revenue,Adult Services,Adult Social Care,Physical Support - older people (65+),5105688525,31.10.2018,Physical Support Residential 65+,Charges from Independent Providers,"1,992.48",AUTUMN HOUSE CARE LTD
Revenue,Adult Services,Adult Social Care,Support - Memory /Cognition-older people (65+),5105688525,31.10.2018,Memory & Cognition Residential 65+,Charges from Independent Providers,"2,342.48",AUTUMN HOUSE CARE LTD
Revenue,Adult Services,Adult Social Care,Support - Memory /Cognition-older people (65+),5105688525,31.10.2018,Memory & Cognition Residential 65+,Charges from Independent Providers,"2,342.48",AUTUMN HOUSE CARE LTD
Revenue,Adult Services,Adult Social Care,Support - Memory /Cognition-older people (65+),5105686017,05.10.2018,Memory & Cognition Residential 65+,Charges from Independent Providers,"2,775.24",AUTUMN HOUSE CARE LTD
Revenue,Adult Services,Adult Social Care,Physical Support - older people (65+),5105685828,03.10.2018,Physical Support Residential 65+,Charges from Independent Providers,782.76,AUTUMN HOUSE CARE LTD
Revenue,Adult Services,Adult Social Care,Physical Support - older people (65+),5105685828,03.10.2018,Physical Support Residential 65+,Charges from Independent Providers,"1,992.48",AUTUMN HOUSE CARE LTD
Revenue,Adult Services,Adult Social Care,Support - Memory /Cognition-older people (65+),5105684969,03.10.2018,Memory & Cognition Residential 65+,Charges from Independent Providers,"2,342.48",AUTUMN HOUSE CARE LTD
Revenue,Adult Services,Adult Social Care,Support - Memory /Cognition-older people (65+),5105684970,03.10.2018,Memory & Cognition Residential 65+,Charges from Independent Providers,"2,342.48",AUTUMN HOUSE CARE LTD
Revenue,Adult Services,Adult Social Care,Support - Memory /Cognition-older people (65+),5105684968,03.10.2018,Memory & Cognition Residential 65+,Charges from Independent Providers,"2,342.48",AUTUMN HOUSE CARE LTD
Revenue,Adult Services,Adult Social Care,Physical Support - older people (65+),5105684982,03.10.2018,Physical Support Residential 65+,Charges from Independent Providers,"1,992.48",AUTUMN HOUSE CARE LTD
Revenue,Adult Services,Adult Social Care,Support - Memory /Cognition-older people (65+),5105684975,03.10.2018,Memory & Cognition Residential 65+,Charges from Independent Providers,"2,342.48",AUTUMN HOUSE CARE LTD
Revenue,Adult Services,Adult Social Care,Support - Memory /Cognition-older people (65+),5105684976,03.10.2018,Memory & Cognition Residential 65+,Charges from Independent Providers,"2,342.48",AUTUMN HOUSE CARE LTD
Revenue,Adult Services,Adult Social Care,Support - Memory /Cognition-older people (65+),5105684977,03.10.2018,Memory & Cognition Residential 65+,Charges from Independent Providers,"1,992.48",AUTUMN HOUSE CARE LTD
Revenue,Adult Services,Adult Social Care,Physical Support - older people (65+),5105684978,03.10.2018,Physical Support Residential 65+,Charges from Independent Providers,"2,342.48",AUTUMN HOUSE CARE LTD
Revenue,Adult Services,Adult Social Care,Support - Memory /Cognition-older people (65+),5105684971,03.10.2018,Memory & Cognition Residential 65+,Charges from Independent Providers,"2,342.48",AUTUMN HOUSE CARE LTD
Revenue,Adult Services,Adult Social Care,Support - Memory /Cognition-older people (65+),5105684979,03.10.2018,Memory & Cognition Residential 65+,Charges from Independent Providers,"2,342.48",AUTUMN HOUSE CARE LTD
Revenue,Adult Services,Adult Social Care,Physical Support - older people (65+),5105684973,03.10.2018,Physical Support Residential 65+,Charges from Independent Providers,"1,992.48",AUTUMN HOUSE CARE LTD
Revenue,Adult Services,Adult Social Care,Physical Support - older people (65+),5105684980,03.10.2018,Physical Support Residential 65+,Charges from Independent Providers,"2,342.48",AUTUMN HOUSE CARE LTD
Revenue,Adult Services,Adult Social Care,Physical Support - older people (65+),5105684981,03.10.2018,Physical Support Residential 65+,Charges from Independent Providers,"2,342.48",AUTUMN HOUSE CARE LTD
Revenue,Adult Services,Adult Social Care,Support - Memory /Cognition-older people (65+),5105684974,03.10.2018,Memory & Cognition Residential 65+,Charges from Independent Providers,"2,342.48",AUTUMN HOUSE CARE LTD
Revenue,Adult Services,Adult Social Care,Physical Support - older people (65+),5105684983,03.10.2018,Physical Support Residential 65+,Charges from Independent Providers,"1,992.48",AUTUMN HOUSE CARE LTD
Revenue,Adult Services,Adult Social Care,Physical Support - older people (65+),5105684966,03.10.2018,Physical Support Residential 65+,Charges from Independent Providers,"1,992.48",AUTUMN HOUSE CARE LTD
Revenue,Adult Services,Adult Social Care,Support - Memory /Cognition-older people (65+),5105684967,03.10.2018,Memory & Cognition Residential 65+,Charges from Independent Providers,"2,342.48",AUTUMN HOUSE CARE LTD
Revenue,Adult Services,Adult Social Care,Support - Memory /Cognition-older people (65+),5105684984,03.10.2018,Memory & Cognition Residential 65+,Charges from Independent Providers,"1,992.48",AUTUMN HOUSE CARE LTD
Revenue,Adult Services,Adult Social Care,Support - Memory /Cognition-older people (65+),5105684985,03.10.2018,Memory & Cognition Residential 65+,Charges from Independent Providers,"2,800.00",AUTUMN HOUSE CARE LTD
Revenue,Adult Services,Adult Social Care,Physical Support - older people (65+),5105684972,03.10.2018,Physical Support Residential 65+,Charges from Independent Providers,"2,342.48",AUTUMN HOUSE CARE LTD
Revenue,Regeneration,Planning services,Economic Development,5105686969,19.10.2018,"30 High St, Newport",Rent of Buildings and Rooms,916.67,REDACTED PERSONAL DATA
Revenue,Regeneration,Planning services,Economic Development,5105686972,19.10.2018,"30 High St, Newport",Rent of Buildings and Rooms,916.67,REDACTED PERSONAL DATA
Revenue,Adult Services,Adult Social Care,Physical Support - older people (65+),5105688594,31.10.2018,Physical Support Residential 65+,Charges from Independent Providers,"2,240.56",AVON PARK RESIDENTIAL HOME
Revenue,Adult Services,Adult Social Care,Physical Support - older people (65+),5105685632,03.10.2018,Physical Support Residential 65+,Charges from Independent Providers,"2,240.56",AVON PARK RESIDENTIAL HOME
Revenue,Neighbourhoods,Cultural and Related Services,Service Management and Support Services,5105686183,05.10.2018,Duke of Edingburgh Award,General Materials,45.5,AWARD SCHEME LTD
Revenue,Neighbourhoods,Cultural and Related Services,Service Management and Support Services,5105686183,05.10.2018,Duke of Edingburgh Award,General Materials,6.25,AWARD SCHEME LTD
Revenue,Childrens Services,Children's & Education Services,Other Education and Community Budget,5105685958,05.10.2018,Specialist Cross-Council Training,Training,230,AWICS
Revenue,Childrens Services,Children's & Education Services,Children Looked After,5105688165,26.10.2018,In-house Fostering,Boarding Out Allowances,234.52,REDACTED PERSONAL DATA
Revenue,Childrens Services,Children's & Education Services,Children Looked After,5105686748,12.10.2018,In-house Fostering,Boarding Out Allowances,234.52,REDACTED PERSONAL DATA
Revenue,Childrens Services,Children's & Education Services,Children Looked After,5105687429,19.10.2018,In-house Fostering,Boarding Out Allowances,234.52,REDACTED PERSONAL DATA
Revenue,Childrens Services,Children's & Education Services,Children Looked After,5105686033,05.10.2018,In-house Fostering,Boarding Out Allowances,234.52,REDACTED PERSONAL DATA
Revenue,Resources,Central Services,Support Services,5105687874,24.10.2018,Staff Benefits,Payment to Private Contractors,100,REDACTED PERSONAL DATA
Revenue,Resources,Central Services,Support Services,5105687874,24.10.2018,Staff Benefits,Payment to Private Contractors,100,REDACTED PERSONAL DATA
Revenue,Place,Housing Services,Homelessness,5105687817,24.10.2018,Leaseholds by LA,Accommodation Costs - Leaseholder Payments,866.67,REDACTED PERSONAL DATA
Revenue,Place,Housing Services,Homelessness,5105687817,24.10.2018,Leaseholds by LA,Accommodation Costs - Leaseholder Payments,799.5,REDACTED PERSONAL DATA
Revenue,Adult Services,Adult Social Care,Assistive Equipment & Technology,5105684079,19.10.2018,Community Equipment Store,Operational Equipment,388,B.E.S REHAB LTD
Revenue,Adult Services,Adult Social Care,Assistive Equipment & Technology,5105684079,19.10.2018,Community Equipment Store,Operational Equipment,388,B.E.S REHAB LTD
Revenue,Adult Services,Adult Social Care,Assistive Equipment & Technology,5105684079,19.10.2018,Community Equipment Store,Operational Equipment,432,B.E.S REHAB LTD
Revenue,Fire & Rescue,Fire & Rescue Services,Fire fighting and Rescue Operations,5105687343,17.10.2018,Fire Technical Support,Payment to Private Contractors,"7,296.60",BALLYCLARE LTD
Revenue,Fire & Rescue,Fire & Rescue Services,Fire fighting and Rescue Operations,5105687344,17.10.2018,Fire Technical Support,Payment to Private Contractors,"7,296.60",BALLYCLARE LTD
Revenue,Fire & Rescue,Fire & Rescue Services,Fire fighting and Rescue Operations,5105687345,17.10.2018,Fire Technical Support,Payment to Private Contractors,914.2,BALLYCLARE LTD
Revenue,Fire & Rescue,Fire & Rescue Services,Fire fighting and Rescue Operations,5105687347,17.10.2018,Fire Technical Support,Payment to Private Contractors,914.2,BALLYCLARE LTD
Revenue,Fire & Rescue,Fire & Rescue Services,Fire fighting and Rescue Operations,5105686572,10.10.2018,Fire Technical Support,Payment to Private Contractors,"7,296.60",BALLYCLARE LTD
Revenue,Fire & Rescue,Fire & Rescue Services,Fire fighting and Rescue Operations,5105686573,10.10.2018,Fire Technical Support,Payment to Private Contractors,914.2,BALLYCLARE LTD
Revenue,Fire & Rescue,Fire & Rescue Services,Fire fighting and Rescue Operations,5105687337,17.10.2018,Fire Technical Support,Clothing & Laundry,63.2,BALLYCLARE LTD
Revenue,Fire & Rescue,Fire & Rescue Services,Fire fighting and Rescue Operations,5105687338,17.10.2018,Fire Technical Support,Clothing & Laundry,63.2,BALLYCLARE LTD
Revenue,Fire & Rescue,Fire & Rescue Services,Fire fighting and Rescue Operations,5105687340,17.10.2018,Fire Technical Support,Clothing & Laundry,63.2,BALLYCLARE LTD
Revenue,Fire & Rescue,Fire & Rescue Services,Fire fighting and Rescue Operations,5105687341,17.10.2018,Fire Technical Support,Clothing & Laundry,63.2,BALLYCLARE LTD
Revenue,Resources,Central Services,Central Services to the Public,5105683135,24.10.2018,Council Tax,Stationery,5.22,SUPPLIES TEAM LTD
Revenue,Resources,Central Services,Central Services to the Public,5105686270,05.10.2018,Council Tax,Stationery,106.2,SUPPLIES TEAM LTD
Revenue,Adult Services,Adult Social Care,Learning Disab Supp (to be reallocated),5105685912,03.10.2018,Seagulls,Stationery,2.53,SUPPLIES TEAM LTD
Revenue,Neighbourhoods,Housing Services,Private Sector Housing Renewal,5105685941,05.10.2018,Renewal & Enforcement,Stationery,2.9,SUPPLIES TEAM LTD
Revenue,Childrens Services,Children's & Education Services,Youth Justice,5105685941,05.10.2018,Youth Offending Team,Stationery,0.8,SUPPLIES TEAM LTD
Revenue,Childrens Services,Children's & Education Services,Youth Justice,5105685941,05.10.2018,Youth Offending Team,Stationery,3,SUPPLIES TEAM LTD
Revenue,Childrens Services,Children's & Education Services,Youth Justice,5105685941,05.10.2018,Youth Offending Team,Stationery,0.7,SUPPLIES TEAM LTD
Revenue,Resources,Central Services,Central Services to the Public,5105685941,05.10.2018,Council Tax,Stationery,5.22,SUPPLIES TEAM LTD
Revenue,Childrens Services,Children's & Education Services,Youth Justice,5105685941,05.10.2018,Youth Offending Team,Stationery,21.24,SUPPLIES TEAM LTD
Revenue,Childrens Services,Children's & Education Services,Youth Justice,5105687730,19.10.2018,Youth Offending Team,Stationery,21.24,SUPPLIES TEAM LTD
Revenue,Adult Services,Adult Social Care,Assistive Equipment & Technology,5105686525,10.10.2018,Community Equipment Store,Stationery,19.96,SUPPLIES TEAM LTD
Revenue,Resources,Central Services,Support Services,5105686718,12.10.2018,Human Resources,Stationery,1.07,SUPPLIES TEAM LTD
Revenue,Resources,Central Services,Support Services,5105686718,12.10.2018,Human Resources,Stationery,1.61,SUPPLIES TEAM LTD
Revenue,Resources,Central Services,Support Services,5105686718,12.10.2018,Human Resources,Stationery,0.5,SUPPLIES TEAM LTD
Revenue,Resources,Central Services,Support Services,5105686718,12.10.2018,Human Resources,Stationery,1.48,SUPPLIES TEAM LTD
Revenue,Resources,Central Services,Central Services to the Public,5105688089,24.10.2018,Council Tax,Stationery,5.22,SUPPLIES TEAM LTD
Revenue,Resources,Central Services,Central Services to the Public,5105688073,24.10.2018,Council Tax,Stationery,-5.22,SUPPLIES TEAM LTD
Revenue,Childrens Services,Children's & Education Services,Other Education and Community Budget,5105687281,19.10.2018,Education & Participation,Stationery,3.96,SUPPLIES TEAM LTD
Revenue,Resources,Central Services,Support Services,5105687281,19.10.2018,Revenues & Benefits Operational Support,Stationery,3.96,SUPPLIES TEAM LTD
Revenue,Neighbourhoods,Central Services,Central Services to the Public,5105686722,26.10.2018,Coroner,Stationery,21.24,SUPPLIES TEAM LTD
Revenue,Neighbourhoods,Central Services,Central Services to the Public,5105686722,26.10.2018,Coroner,Stationery,3.91,SUPPLIES TEAM LTD
Revenue,Neighbourhoods,Central Services,Central Services to the Public,5105686722,26.10.2018,Coroner,Stationery,5.2,SUPPLIES TEAM LTD
Revenue,Neighbourhoods,Central Services,Central Services to the Public,5105686722,26.10.2018,Coroner,Stationery,6.32,SUPPLIES TEAM LTD
Revenue,Neighbourhoods,Central Services,Central Services to the Public,5105686722,26.10.2018,Coroner,Stationery,2.04,SUPPLIES TEAM LTD
Revenue,Neighbourhoods,Central Services,Central Services to the Public,5105686722,26.10.2018,Coroner,Stationery,5.18,SUPPLIES TEAM LTD
Revenue,Neighbourhoods,Housing Services,Private Sector Housing Renewal,5105686685,10.10.2018,Renewal & Enforcement,Stationery,0.56,SUPPLIES TEAM LTD
Revenue,Resources,Central Services,Corporate and Democratic Core,5105686685,10.10.2018,Committee and Scrutiny Team,Stationery,18.19,SUPPLIES TEAM LTD
Revenue,Childrens Services,Children's & Education Services,Youth Justice,5105686685,10.10.2018,Youth Offending Team,Stationery,3,SUPPLIES TEAM LTD
Revenue,Resources,Central Services,Corporate and Democratic Core,5105686678,10.10.2018,Committee and Scrutiny Team,Stationery,45.58,SUPPLIES TEAM LTD
Revenue,Childrens Services,Children's & Education Services,Youth Justice,5105686685,10.10.2018,Youth Offending Team,Stationery,2.28,SUPPLIES TEAM LTD
Revenue,Resources,Central Services,Support Services,5105686685,10.10.2018,Procurement and Contract Management,Stationery,6.02,SUPPLIES TEAM LTD
Revenue,Resources,Central Services,Central Services to the Public,5105687948,24.10.2018,Council Tax,Stationery,1.61,SUPPLIES TEAM LTD
Revenue,Resources,Central Services,Central Services to the Public,5105687948,24.10.2018,Council Tax,Stationery,1.23,SUPPLIES TEAM LTD
Revenue,Neighbourhoods,Housing Services,Private Sector Housing Renewal,5105688709,31.10.2018,Renewal & Enforcement,Stationery,1.61,SUPPLIES TEAM LTD
Revenue,Childrens Services,Children's & Education Services,Other Education and Community Budget,5105688709,31.10.2018,Education & Participation,Stationery,0.53,SUPPLIES TEAM LTD
Revenue,Childrens Services,Children's & Education Services,Other Education and Community Budget,5105688709,31.10.2018,Education & Participation,Stationery,1.61,SUPPLIES TEAM LTD
Revenue,Childrens Services,Children's & Education Services,Other Education and Community Budget,5105688709,31.10.2018,Education & Participation,Stationery,1.23,SUPPLIES TEAM LTD
Revenue,Childrens Services,Children's & Education Services,Other Education and Community Budget,5105688708,31.10.2018,Education & Participation,Stationery,1.8,SUPPLIES TEAM LTD
Revenue,Childrens Services,Children's & Education Services,Management & Support Services,5105688711,31.10.2018,Specialist Service Business Admin,Stationery,6.99,SUPPLIES TEAM LTD
Revenue,Childrens Services,Children's & Education Services,Management & Support Services,5105688711,31.10.2018,Specialist Service Business Admin,Stationery,1.95,SUPPLIES TEAM LTD
Revenue,Childrens Services,Children's & Education Services,Management & Support Services,5105688711,31.10.2018,Specialist Service Business Admin,Stationery,1.32,SUPPLIES TEAM LTD
Revenue,Place,Planning services,Building Control,5105688417,26.10.2018,Building Control,Stationery,-2.28,SUPPLIES TEAM LTD
Revenue,Place,Planning services,Building Control,5105686722,26.10.2018,Building Control,Stationery,2.28,SUPPLIES TEAM LTD
Revenue,Resources,Central Services,Support Services,5105687948,24.10.2018,County Hall Central Mail Room,Stationery,25.27,SUPPLIES TEAM LTD
Revenue,Neighbourhoods,Cultural and Related Services,Library Service,5105687949,24.10.2018,Ryde Library,Stationery,10.62,SUPPLIES TEAM LTD
Revenue,Neighbourhoods,Cultural and Related Services,Library Service,5105687949,24.10.2018,Ryde Library,Stationery,0.27,SUPPLIES TEAM LTD
Revenue,Neighbourhoods,Cultural and Related Services,Library Service,5105687949,24.10.2018,Ryde Library,Stationery,0.5,SUPPLIES TEAM LTD
Revenue,Neighbourhoods,Cultural and Related Services,Library Service,5105687949,24.10.2018,Ryde Library,Stationery,5.77,SUPPLIES TEAM LTD
Revenue,Neighbourhoods,Cultural and Related Services,Library Service,5105688418,26.10.2018,Public Libraries Central,Stationery,17.94,SUPPLIES TEAM LTD
Revenue,Neighbourhoods,Cultural and Related Services,Library Service,5105688418,26.10.2018,Public Libraries Central,Stationery,3.26,SUPPLIES TEAM LTD
Revenue,Neighbourhoods,Cultural and Related Services,Service Management and Support Services,5105688709,31.10.2018,Leisure Management & Admin,Stationery,0.4,SUPPLIES TEAM LTD
Revenue,Neighbourhoods,Cultural and Related Services,Service Management and Support Services,5105688709,31.10.2018,Leisure Management & Admin,Stationery,2.15,SUPPLIES TEAM LTD
Revenue,Neighbourhoods,Cultural and Related Services,Service Management and Support Services,5105688709,31.10.2018,Leisure Management & Admin,Stationery,21.24,SUPPLIES TEAM LTD
Revenue,Resources,Central Services,Central Services to the Public,5105683135,24.10.2018,National Non Domestic Rates,Stationery,21.24,SUPPLIES TEAM LTD
Revenue,Resources,Central Services,Support Services,5105683135,24.10.2018,Legal Services Section,Stationery,6.9,SUPPLIES TEAM LTD
Revenue,Resources,Central Services,Support Services,5105683135,24.10.2018,Legal Services Section,Stationery,1.06,SUPPLIES TEAM LTD
Revenue,Neighbourhoods,Environmental & Regulatory Services,Service Management and Support Services,5105683137,03.10.2018,Regulatory Management & Admin Support,Stationery,8.14,SUPPLIES TEAM LTD
Revenue,Neighbourhoods,Environmental & Regulatory Services,Service Management and Support Services,5105683137,03.10.2018,Regulatory Management & Admin Support,Stationery,31.86,SUPPLIES TEAM LTD
Revenue,Neighbourhoods,Environmental & Regulatory Services,Service Management and Support Services,5105683137,03.10.2018,Regulatory Management & Admin Support,Stationery,1.23,SUPPLIES TEAM LTD
Revenue,Resources,Central Services,Central Services to the Public,5105686270,05.10.2018,National Non Domestic Rates,Stationery,21.24,SUPPLIES TEAM LTD
Revenue,Resources,Central Services,Support Services,5105685800,03.10.2018,Legal Services Section,Stationery,1.06,SUPPLIES TEAM LTD
Revenue,Neighbourhoods,Cultural and Related Services,Service Management and Support Services,5105685800,03.10.2018,Leisure Management & Admin,Stationery,31.86,SUPPLIES TEAM LTD
Revenue,Neighbourhoods,Cultural and Related Services,Library Service,5105685852,03.10.2018,Ryde Library,Stationery,1.98,SUPPLIES TEAM LTD
Revenue,Neighbourhoods,Cultural and Related Services,Library Service,5105685852,03.10.2018,Ryde Library,Stationery,12.72,SUPPLIES TEAM LTD
Revenue,Neighbourhoods,Cultural and Related Services,Library Service,5105685852,03.10.2018,Public Libraries Central,Stationery,1.37,SUPPLIES TEAM LTD
Revenue,Adult Services,Adult Social Care,Learning Disab Supp (to be reallocated),5105685912,03.10.2018,Westminster House,Stationery,2.53,SUPPLIES TEAM LTD
Revenue,Neighbourhoods,Cultural and Related Services,Library Service,5105685931,03.10.2018,Ryde Library,Stationery,21.24,SUPPLIES TEAM LTD
Revenue,Neighbourhoods,Cultural and Related Services,Library Service,5105685931,03.10.2018,Ryde Library,Stationery,0.57,SUPPLIES TEAM LTD
Revenue,Neighbourhoods,Cultural and Related Services,Library Service,5105685931,03.10.2018,Ryde Library,Stationery,3.61,SUPPLIES TEAM LTD
Revenue,Neighbourhoods,Cultural and Related Services,Library Service,5105685931,03.10.2018,Ryde Library,Stationery,0.53,SUPPLIES TEAM LTD
Revenue,Neighbourhoods,Cultural and Related Services,Library Service,5105685931,03.10.2018,Ryde Library,Stationery,0.51,SUPPLIES TEAM LTD
Revenue,Resources,Central Services,Support Services,5105685941,05.10.2018,Legal Services Section,Stationery,20.31,SUPPLIES TEAM LTD
Revenue,Resources,Central Services,Support Services,5105685941,05.10.2018,Legal Services Section,Stationery,12.04,SUPPLIES TEAM LTD
Revenue,Resources,Central Services,Support Services,5105685941,05.10.2018,County Hall Central Mail Room,Stationery,2.58,SUPPLIES TEAM LTD
Revenue,Resources,Central Services,Support Services,5105685941,05.10.2018,County Hall Central Mail Room,Stationery,1.56,SUPPLIES TEAM LTD
Revenue,Adult Services,Adult Social Care,Commissioning & Service Delivery,5105685941,05.10.2018,Director of Adult Social Services,Stationery,21.24,SUPPLIES TEAM LTD
Revenue,Neighbourhoods,Cultural and Related Services,Service Management and Support Services,5105685941,05.10.2018,Leisure Management & Admin,Stationery,31.86,SUPPLIES TEAM LTD
Revenue,Adult Services,Adult Social Care,Commissioning & Service Delivery,5105685941,05.10.2018,Director of Adult Social Services,Stationery,4.07,SUPPLIES TEAM LTD
Revenue,Adult Services,Adult Social Care,Commissioning & Service Delivery,5105685941,05.10.2018,Director of Adult Social Services,Stationery,4.07,SUPPLIES TEAM LTD
Revenue,Neighbourhoods,Cultural and Related Services,Library Service,5105687239,17.10.2018,Public Libraries Central,Stationery,6.5,SUPPLIES TEAM LTD
Revenue,Neighbourhoods,Cultural and Related Services,Service Management and Support Services,5105687730,19.10.2018,Leisure Management & Admin,Stationery,0.78,SUPPLIES TEAM LTD
Revenue,Neighbourhoods,Cultural and Related Services,Service Management and Support Services,5105687730,19.10.2018,Leisure Management & Admin,Stationery,1.61,SUPPLIES TEAM LTD
Revenue,Resources,Central Services,Support Services,5105687730,19.10.2018,County Hall Central Mail Room,Stationery,31.86,SUPPLIES TEAM LTD
Revenue,Neighbourhoods,Cultural and Related Services,Service Management and Support Services,5105687730,19.10.2018,Leisure Management & Admin,Stationery,53.1,SUPPLIES TEAM LTD
Revenue,Neighbourhoods,Cultural and Related Services,Service Management and Support Services,5105687730,19.10.2018,Leisure Management & Admin,Stationery,31.86,SUPPLIES TEAM LTD
Revenue,Adult Services,Adult Social Care,Commissioning & Service Delivery,5105687730,19.10.2018,Director of Adult Social Services,Stationery,42.48,SUPPLIES TEAM LTD
Revenue,Adult Services,Adult Social Care,Commissioning & Service Delivery,5105687730,19.10.2018,Director of Adult Social Services,Stationery,4.07,SUPPLIES TEAM LTD
Revenue,Resources,Central Services,Support Services,5105686718,12.10.2018,Call Centre,Stationery,0.53,SUPPLIES TEAM LTD
Revenue,Resources,Central Services,Support Services,5105686718,12.10.2018,Call Centre,Stationery,0.8,SUPPLIES TEAM LTD
Revenue,Resources,Central Services,Support Services,5105686718,12.10.2018,Call Centre,Stationery,0.27,SUPPLIES TEAM LTD
Revenue,Resources,Central Services,Support Services,5105686718,12.10.2018,Call Centre,Stationery,1.61,SUPPLIES TEAM LTD
Revenue,Adult Services,Adult Social Care,Learning Disability Suppt-adults (18-64),5105686507,10.10.2018,No-Barriers,Stationery,21.24,SUPPLIES TEAM LTD
Revenue,Adult Services,Adult Social Care,Learning Disability Suppt-adults (18-64),5105686507,10.10.2018,No-Barriers,Stationery,0.78,SUPPLIES TEAM LTD
Revenue,Adult Services,Adult Social Care,Learning Disability Suppt-adults (18-64),5105686507,10.10.2018,No-Barriers,Stationery,0.53,SUPPLIES TEAM LTD
Revenue,Adult Services,Adult Social Care,Learning Disability Suppt-adults (18-64),5105686507,10.10.2018,No-Barriers,Stationery,9.12,SUPPLIES TEAM LTD
Revenue,Neighbourhoods,Environmental & Regulatory Services,Service Management and Support Services,5105687715,24.10.2018,Regulatory Management & Admin Support,Stationery,-4.07,SUPPLIES TEAM LTD
Revenue,Resources,Central Services,Support Services,5105688073,24.10.2018,Legal Services Section,Stationery,-1.06,SUPPLIES TEAM LTD
Revenue,Neighbourhoods,Cultural and Related Services,Recreation and Sport,5105686511,10.10.2018,Medina Leisure Centre,Stationery,0.76,SUPPLIES TEAM LTD
Revenue,Resources,Central Services,Support Services,5105688089,24.10.2018,Legal Services Section,Stationery,1.06,SUPPLIES TEAM LTD
Revenue,Resources,Central Services,Support Services,5105688073,24.10.2018,Legal Services Section,Stationery,-6.9,SUPPLIES TEAM LTD
Revenue,Resources,Central Services,Support Services,5105688089,24.10.2018,Legal Services Section,Stationery,6.9,SUPPLIES TEAM LTD
Revenue,Resources,Central Services,Support Services,5105687014,12.10.2018,Legal Services Section,Stationery,-5.52,SUPPLIES TEAM LTD
Revenue,Resources,Central Services,Central Services to the Public,5105688073,24.10.2018,National Non Domestic Rates,Stationery,-21.24,SUPPLIES TEAM LTD
Revenue,Adult Services,Adult Social Care,Commissioning & Service Delivery,5105688089,24.10.2018,Director of Adult Social Services,Stationery,42.48,SUPPLIES TEAM LTD
Revenue,Resources,Central Services,Support Services,5105686676,12.10.2018,Legal Services Section,Stationery,0.8,SUPPLIES TEAM LTD
Revenue,Resources,Central Services,Support Services,5105686682,10.10.2018,ICT CCR,Stationery,1.61,SUPPLIES TEAM LTD
Revenue,Resources,Central Services,Support Services,5105686682,10.10.2018,ICT CCR,Stationery,0.53,SUPPLIES TEAM LTD
Revenue,Resources,Central Services,Support Services,5105686682,10.10.2018,ICT CCR,Stationery,3.32,SUPPLIES TEAM LTD
Revenue,Childrens Services,Children's & Education Services,Other Education and Community Budget,5105686719,12.10.2018,SEND Independent Advice & Support,Stationery,0.46,SUPPLIES TEAM LTD
Revenue,Childrens Services,Children's & Education Services,Children Looked After,5105686720,12.10.2018,Beaulieu House,Stationery,4,SUPPLIES TEAM LTD
Revenue,Neighbourhoods,Environmental & Regulatory Services,Service Management and Support Services,5105686687,10.10.2018,Regulatory Management & Admin Support,Stationery,31.86,SUPPLIES TEAM LTD
Revenue,Neighbourhoods,Environmental & Regulatory Services,Service Management and Support Services,5105686687,10.10.2018,Regulatory Management & Admin Support,Stationery,2.72,SUPPLIES TEAM LTD
Revenue,Neighbourhoods,Environmental & Regulatory Services,Service Management and Support Services,5105686687,10.10.2018,Regulatory Management & Admin Support,Stationery,1.23,SUPPLIES TEAM LTD
Revenue,Neighbourhoods,Environmental & Regulatory Services,Service Management and Support Services,5105686687,10.10.2018,Regulatory Management & Admin Support,Stationery,2.46,SUPPLIES TEAM LTD
Revenue,Neighbourhoods,Cultural and Related Services,Library Service,5105686521,10.10.2018,Public Libraries Central,Stationery,0.53,SUPPLIES TEAM LTD
Revenue,Neighbourhoods,Cultural and Related Services,Library Service,5105686521,10.10.2018,Public Libraries Central,Stationery,11.54,SUPPLIES TEAM LTD
Revenue,Neighbourhoods,Cultural and Related Services,Library Service,5105686521,10.10.2018,Public Libraries Central,Stationery,3,SUPPLIES TEAM LTD
Revenue,Neighbourhoods,Cultural and Related Services,Recreation and Sport,5105686721,12.10.2018,Medina Leisure Centre,Stationery,10.62,SUPPLIES TEAM LTD
Revenue,Neighbourhoods,Cultural and Related Services,Recreation and Sport,5105686721,12.10.2018,Medina Leisure Centre,Stationery,1.23,SUPPLIES TEAM LTD
Revenue,Neighbourhoods,Central Services,Central Services to the Public,5105686722,26.10.2018,"Registration Of Births,Deaths, Marriages",Stationery,2.47,SUPPLIES TEAM LTD
Revenue,Neighbourhoods,Central Services,Central Services to the Public,5105686722,26.10.2018,"Registration Of Births,Deaths, Marriages",Stationery,10.62,SUPPLIES TEAM LTD
Revenue,Resources,Central Services,Support Services,5105686722,26.10.2018,ICT CCR,Stationery,1.61,SUPPLIES TEAM LTD
Revenue,Neighbourhoods,Central Services,Central Services to the Public,5105686680,12.10.2018,"Registration Of Births,Deaths, Marriages",Stationery,14.99,SUPPLIES TEAM LTD
Revenue,Neighbourhoods,Cultural and Related Services,Service Management and Support Services,5105686685,10.10.2018,Leisure Management & Admin,Stationery,4.49,SUPPLIES TEAM LTD
Revenue,Resources,Central Services,Support Services,5105686685,10.10.2018,Legal Services Section,Stationery,1.48,SUPPLIES TEAM LTD
Revenue,Neighbourhoods,Cultural and Related Services,Open Spaces,5105686685,10.10.2018,Rights of Way Operations,Stationery,2.84,SUPPLIES TEAM LTD
Revenue,Neighbourhoods,Cultural and Related Services,Service Management and Support Services,5105686685,10.10.2018,Leisure Management & Admin,Stationery,2.4,SUPPLIES TEAM LTD
Revenue,Neighbourhoods,Cultural and Related Services,Service Management and Support Services,5105686685,10.10.2018,Leisure Management & Admin,Stationery,0.39,SUPPLIES TEAM LTD
Revenue,Neighbourhoods,Cultural and Related Services,Service Management and Support Services,5105686685,10.10.2018,Leisure Management & Admin,Stationery,1.23,SUPPLIES TEAM LTD
Revenue,Neighbourhoods,Cultural and Related Services,Service Management and Support Services,5105686685,10.10.2018,Leisure Management & Admin,Stationery,1.8,SUPPLIES TEAM LTD
Revenue,Neighbourhoods,Cultural and Related Services,Service Management and Support Services,5105686685,10.10.2018,Leisure Management & Admin,Stationery,0.53,SUPPLIES TEAM LTD
Revenue,Neighbourhoods,Cultural and Related Services,Service Management and Support Services,5105686685,10.10.2018,Leisure Management & Admin,Stationery,0.7,SUPPLIES TEAM LTD
Revenue,Neighbourhoods,Cultural and Related Services,Service Management and Support Services,5105686685,10.10.2018,Leisure Management & Admin,Stationery,1.41,SUPPLIES TEAM LTD
Revenue,Neighbourhoods,Cultural and Related Services,Open Spaces,5105686685,10.10.2018,Rights of Way Operations,Stationery,4.31,SUPPLIES TEAM LTD
Revenue,Resources,Central Services,Support Services,5105686685,10.10.2018,Legal Services Section,Stationery,42.48,SUPPLIES TEAM LTD
Revenue,Regeneration,Central Services,Support Services,5105686685,10.10.2018,Strategic Assets Team,Stationery,1.23,SUPPLIES TEAM LTD
Revenue,Childrens Services,Children's & Education Services,Safeguarding Children/Young Peoples Svs,5105687948,24.10.2018,Fostering Team,Stationery,0.8,SUPPLIES TEAM LTD
Revenue,Childrens Services,Children's & Education Services,Safeguarding Children/Young Peoples Svs,5105687948,24.10.2018,Fostering Team,Stationery,5.94,SUPPLIES TEAM LTD
Revenue,Childrens Services,Children's & Education Services,Safeguarding Children/Young Peoples Svs,5105687948,24.10.2018,Fostering Team,Stationery,1.17,SUPPLIES TEAM LTD
Revenue,Neighbourhoods,Cultural and Related Services,Service Management and Support Services,5105687948,24.10.2018,Leisure Management & Admin,Stationery,1.98,SUPPLIES TEAM LTD
Revenue,Childrens Services,Children's & Education Services,Safeguarding Children/Young Peoples Svs,5105687948,24.10.2018,Fostering Team,Stationery,10.68,SUPPLIES TEAM LTD
Revenue,Neighbourhoods,Cultural and Related Services,Service Management and Support Services,5105687948,24.10.2018,Leisure Management & Admin,Stationery,2.15,SUPPLIES TEAM LTD
Revenue,Regeneration,Central Services,Support Services,5105687948,24.10.2018,Strategic Assets Team,Stationery,2.46,SUPPLIES TEAM LTD
Revenue,Childrens Services,Children's & Education Services,Safeguarding Children/Young Peoples Svs,5105687948,24.10.2018,Fostering Team,Stationery,8.62,SUPPLIES TEAM LTD
Revenue,Childrens Services,Children's & Education Services,Safeguarding Children/Young Peoples Svs,5105687948,24.10.2018,Fostering Team,Stationery,2.59,SUPPLIES TEAM LTD
Revenue,Resources,Central Services,Support Services,5105687948,24.10.2018,Legal Services Section,Stationery,21.24,SUPPLIES TEAM LTD
Revenue,Place,Planning services,Management & Support Services,5105686722,26.10.2018,Planning Management,Stationery,0.19,SUPPLIES TEAM LTD
Revenue,Place,Planning services,Management & Support Services,5105686722,26.10.2018,Planning Management,Stationery,2.46,SUPPLIES TEAM LTD
Revenue,Place,Planning services,Management & Support Services,5105686722,26.10.2018,Planning Management,Stationery,1.8,SUPPLIES TEAM LTD
Revenue,Place,Planning services,Management & Support Services,5105686722,26.10.2018,Planning Management,Stationery,4.02,SUPPLIES TEAM LTD
Revenue,Place,Planning services,Management & Support Services,5105686722,26.10.2018,Planning Management,Stationery,2.28,SUPPLIES TEAM LTD
Revenue,Neighbourhoods,Environmental & Regulatory Services,"Cemetery, Cremation & Mortuary Services",5105687674,19.10.2018,Crematorium,Stationery,2.15,SUPPLIES TEAM LTD
Revenue,Adult Services,Adult Social Care,Commissioning & Service Delivery,5105687947,24.10.2018,Adult Social Care Enterprise House,Stationery,42.48,SUPPLIES TEAM LTD
Revenue,Adult Services,Adult Social Care,Commissioning & Service Delivery,5105687947,24.10.2018,Adult Social Care Enterprise House,Stationery,0.78,SUPPLIES TEAM LTD
Revenue,Adult Services,Adult Social Care,Commissioning & Service Delivery,5105687947,24.10.2018,Adult Social Care Enterprise House,Stationery,6.44,SUPPLIES TEAM LTD
Revenue,Adult Services,Adult Social Care,Commissioning & Service Delivery,5105687947,24.10.2018,Adult Social Care Enterprise House,Stationery,4.92,SUPPLIES TEAM LTD
Revenue,Adult Services,Adult Social Care,Commissioning & Service Delivery,5105687675,24.10.2018,Learning Disability Homes Management & Admin,Stationery,45.72,SUPPLIES TEAM LTD
Revenue,Adult Services,Adult Social Care,Commissioning & Service Delivery,5105688714,31.10.2018,Adult Social Care Enterprise House,Stationery,4.3,SUPPLIES TEAM LTD
Revenue,Adult Services,Adult Social Care,Commissioning & Service Delivery,5105688714,31.10.2018,Adult Social Care Enterprise House,Stationery,42.48,SUPPLIES TEAM LTD
Revenue,Adult Services,Adult Social Care,Commissioning & Service Delivery,5105688714,31.10.2018,Adult Social Care Enterprise House,Stationery,1.06,SUPPLIES TEAM LTD
Revenue,Adult Services,Adult Social Care,Commissioning & Service Delivery,5105688714,31.10.2018,Adult Social Care Enterprise House,Stationery,1.4,SUPPLIES TEAM LTD
Revenue,Childrens Services,Children's & Education Services,Management & Support Services,5105688707,31.10.2018,Specialist Teacher Advisors,Stationery,0.46,SUPPLIES TEAM LTD
Revenue,Resources,Housing Services,Housing Benefits Administration,5105683135,24.10.2018,Housing Benefit,Stationery,106.2,SUPPLIES TEAM LTD
Revenue,Resources,Central Services,Support Services,5105683135,24.10.2018,Customer Accounts Shared Service Centre,Stationery,21.24,SUPPLIES TEAM LTD
Revenue,Resources,Central Services,Support Services,5105683135,24.10.2018,Customer Accounts Shared Service Centre,Stationery,21.24,SUPPLIES TEAM LTD
Revenue,Adult Services,Adult Social Care,Commissioning & Service Delivery,5105685797,03.10.2018,Adult Social Care Enterprise House,Stationery,12.64,SUPPLIES TEAM LTD
Revenue,Neighbourhoods,Cultural and Related Services,Library Service,5105685852,03.10.2018,Cowes Library,Stationery,10.62,SUPPLIES TEAM LTD
Revenue,Neighbourhoods,Cultural and Related Services,Library Service,5105685931,03.10.2018,Cowes Library,Stationery,8.38,SUPPLIES TEAM LTD
Revenue,Neighbourhoods,Highways and Transport Services,Management and Support Services,5105685769,03.10.2018,Highways PFI Project,Stationery,0.68,SUPPLIES TEAM LTD
Revenue,Place,Planning services,Management & Support Services,5105687240,17.10.2018,Planning Management,Stationery,4.49,SUPPLIES TEAM LTD
Revenue,Place,Planning services,Management & Support Services,5105687240,17.10.2018,Planning Management,Stationery,63.72,SUPPLIES TEAM LTD
Revenue,Place,Planning services,Management & Support Services,5105687240,17.10.2018,Planning Management,Stationery,8.14,SUPPLIES TEAM LTD
Revenue,Adult Services,Adult Social Care,Commissioning & Service Delivery,5105687238,17.10.2018,Adult Social Care Enterprise House,Stationery,53.1,SUPPLIES TEAM LTD
Revenue,Adult Services,Adult Social Care,Commissioning & Service Delivery,5105687238,17.10.2018,Adult Social Care Enterprise House,Stationery,13.98,SUPPLIES TEAM LTD
Revenue,Adult Services,Adult Social Care,Commissioning & Service Delivery,5105687238,17.10.2018,Adult Social Care Enterprise House,Stationery,0.39,SUPPLIES TEAM LTD
Revenue,Adult Services,Adult Social Care,Commissioning & Service Delivery,5105687238,17.10.2018,Adult Social Care Enterprise House,Stationery,0.76,SUPPLIES TEAM LTD
Revenue,Adult Services,Adult Social Care,Commissioning & Service Delivery,5105687238,17.10.2018,Adult Social Care Enterprise House,Stationery,7.2,SUPPLIES TEAM LTD
Revenue,Adult Services,Adult Social Care,Commissioning & Service Delivery,5105687238,17.10.2018,Adult Social Care Enterprise House,Stationery,0.7,SUPPLIES TEAM LTD
Revenue,Adult Services,Adult Social Care,Commissioning & Service Delivery,5105687238,17.10.2018,Adult Social Care Enterprise House,Stationery,7.47,SUPPLIES TEAM LTD
Revenue,Adult Services,Adult Social Care,Commissioning & Service Delivery,5105687238,17.10.2018,Adult Social Care Enterprise House,Stationery,6.45,SUPPLIES TEAM LTD
Revenue,Adult Services,Adult Social Care,Commissioning & Service Delivery,5105687238,17.10.2018,Adult Social Care Enterprise House,Stationery,10.88,SUPPLIES TEAM LTD
Revenue,Adult Services,Adult Social Care,Commissioning & Service Delivery,5105686717,12.10.2018,Adult Social Care Enterprise House,Stationery,16.56,SUPPLIES TEAM LTD
Revenue,Adult Services,Adult Social Care,Commissioning & Service Delivery,5105687620,19.10.2018,Adult Social Care Enterprise House,Stationery,59.85,SUPPLIES TEAM LTD
Revenue,Adult Services,Adult Social Care,Commissioning & Service Delivery,5105686717,12.10.2018,Adult Social Care Enterprise House,Stationery,16.31,SUPPLIES TEAM LTD
Revenue,Neighbourhoods,Highways and Transport Services,Management and Support Services,5105687057,17.10.2018,Highways PFI Project,Stationery,4.6,SUPPLIES TEAM LTD
Revenue,Neighbourhoods,Highways and Transport Services,Management and Support Services,5105687057,17.10.2018,Highways PFI Project,Stationery,8.62,SUPPLIES TEAM LTD
Revenue,Neighbourhoods,Highways and Transport Services,Management and Support Services,5105687057,17.10.2018,Highways PFI Project,Stationery,0.68,SUPPLIES TEAM LTD
Revenue,Neighbourhoods,Cultural and Related Services,Recreation and Sport,5105686524,10.10.2018,The Heights,Stationery,1.04,SUPPLIES TEAM LTD
Revenue,Neighbourhoods,Cultural and Related Services,Recreation and Sport,5105686524,10.10.2018,The Heights,Stationery,2.12,SUPPLIES TEAM LTD
Revenue,Neighbourhoods,Cultural and Related Services,Recreation and Sport,5105686524,10.10.2018,The Heights,Stationery,6.6,SUPPLIES TEAM LTD
Revenue,Neighbourhoods,Cultural and Related Services,Recreation and Sport,5105686524,10.10.2018,The Heights,Stationery,1.07,SUPPLIES TEAM LTD
Revenue,Neighbourhoods,Cultural and Related Services,Recreation and Sport,5105686524,10.10.2018,The Heights,Stationery,3.87,SUPPLIES TEAM LTD
Revenue,Adult Services,Adult Social Care,Central Codes (to be reallocated),5105686507,10.10.2018,Community Outreach,Stationery,21.24,SUPPLIES TEAM LTD
Revenue,Adult Services,Adult Social Care,Central Codes (to be reallocated),5105686507,10.10.2018,Community Outreach,Stationery,0.39,SUPPLIES TEAM LTD
Revenue,Adult Services,Adult Social Care,Central Codes (to be reallocated),5105686507,10.10.2018,Community Outreach,Stationery,1.2,SUPPLIES TEAM LTD
Revenue,Adult Services,Adult Social Care,Central Codes (to be reallocated),5105686507,10.10.2018,Community Outreach,Stationery,1.07,SUPPLIES TEAM LTD
Revenue,Adult Services,Adult Social Care,Central Codes (to be reallocated),5105686507,10.10.2018,Community Outreach,Stationery,1.06,SUPPLIES TEAM LTD
Revenue,Adult Services,Adult Social Care,Central Codes (to be reallocated),5105686716,12.10.2018,Community Outreach,Stationery,42.48,SUPPLIES TEAM LTD
Revenue,Adult Services,Adult Social Care,Central Codes (to be reallocated),5105686716,12.10.2018,Community Outreach,Stationery,1.5,SUPPLIES TEAM LTD
Revenue,Adult Services,Adult Social Care,Central Codes (to be reallocated),5105686716,12.10.2018,Community Outreach,Stationery,0.71,SUPPLIES TEAM LTD
Revenue,Resources,Housing Services,Housing Benefits Administration,5105688089,24.10.2018,Housing Benefit,Stationery,106.2,SUPPLIES TEAM LTD
Revenue,Resources,Housing Services,Housing Benefits Administration,5105688073,24.10.2018,Housing Benefit,Stationery,-106.2,SUPPLIES TEAM LTD
Revenue,Resources,Central Services,Support Services,5105688073,24.10.2018,Customer Accounts Shared Service Centre,Stationery,-21.24,SUPPLIES TEAM LTD
Revenue,Resources,Central Services,Support Services,5105688089,24.10.2018,Customer Accounts Shared Service Centre,Stationery,21.24,SUPPLIES TEAM LTD
Revenue,Resources,Central Services,Support Services,5105688073,24.10.2018,Customer Accounts Shared Service Centre,Stationery,-21.24,SUPPLIES TEAM LTD
Revenue,Resources,Central Services,Support Services,5105688089,24.10.2018,Customer Accounts Shared Service Centre,Stationery,21.24,SUPPLIES TEAM LTD
Revenue,Adult Services,Adult Social Care,Commissioning & Service Delivery,5105686522,12.10.2018,Adult Social Care Enterprise House,Stationery,-1.46,SUPPLIES TEAM LTD
Revenue,Adult Services,Adult Social Care,Commissioning & Service Delivery,5105686522,12.10.2018,Adult Social Care Enterprise House,Stationery,-1.46,SUPPLIES TEAM LTD
Revenue,Adult Services,Adult Social Care,Commissioning & Service Delivery,5105686522,12.10.2018,Adult Social Care Enterprise House,Stationery,-0.53,SUPPLIES TEAM LTD
Revenue,Adult Services,Adult Social Care,Commissioning & Service Delivery,5105686522,12.10.2018,Adult Social Care Enterprise House,Stationery,-1.48,SUPPLIES TEAM LTD
Revenue,Neighbourhoods,Environmental & Regulatory Services,"Cemetery, Cremation & Mortuary Services",5105686517,19.10.2018,Crematorium,Stationery,1.29,SUPPLIES TEAM LTD
Revenue,Neighbourhoods,Environmental & Regulatory Services,"Cemetery, Cremation & Mortuary Services",5105686517,19.10.2018,Crematorium,Stationery,2.96,SUPPLIES TEAM LTD
Revenue,Neighbourhoods,Environmental & Regulatory Services,"Cemetery, Cremation & Mortuary Services",5105686517,19.10.2018,Crematorium,Stationery,1.98,SUPPLIES TEAM LTD
Revenue,Neighbourhoods,Environmental & Regulatory Services,"Cemetery, Cremation & Mortuary Services",5105686517,19.10.2018,Crematorium,Stationery,2.15,SUPPLIES TEAM LTD
Revenue,Neighbourhoods,Environmental & Regulatory Services,"Cemetery, Cremation & Mortuary Services",5105687735,19.10.2018,Crematorium,Stationery,-2.15,SUPPLIES TEAM LTD
Revenue,Neighbourhoods,Environmental & Regulatory Services,"Cemetery, Cremation & Mortuary Services",5105686517,19.10.2018,Crematorium,Stationery,8.38,SUPPLIES TEAM LTD
Revenue,Neighbourhoods,Environmental & Regulatory Services,"Cemetery, Cremation & Mortuary Services",5105686508,10.10.2018,Crematorium,Stationery,0.16,SUPPLIES TEAM LTD
Revenue,Neighbourhoods,Environmental & Regulatory Services,"Cemetery, Cremation & Mortuary Services",5105686517,19.10.2018,Crematorium,Stationery,2.47,SUPPLIES TEAM LTD
Revenue,Neighbourhoods,Environmental & Regulatory Services,"Cemetery, Cremation & Mortuary Services",5105686517,19.10.2018,Crematorium,Stationery,1,SUPPLIES TEAM LTD
Revenue,Neighbourhoods,Environmental & Regulatory Services,"Cemetery, Cremation & Mortuary Services",5105686517,19.10.2018,Crematorium,Stationery,0.39,SUPPLIES TEAM LTD
Revenue,Neighbourhoods,Environmental & Regulatory Services,"Cemetery, Cremation & Mortuary Services",5105686517,19.10.2018,Crematorium,Stationery,3.6,SUPPLIES TEAM LTD
Revenue,Neighbourhoods,Environmental & Regulatory Services,"Cemetery, Cremation & Mortuary Services",5105686517,19.10.2018,Crematorium,Stationery,4.07,SUPPLIES TEAM LTD
Revenue,Neighbourhoods,Environmental & Regulatory Services,"Cemetery, Cremation & Mortuary Services",5105686517,19.10.2018,Crematorium,Stationery,1.48,SUPPLIES TEAM LTD
Revenue,Neighbourhoods,Environmental & Regulatory Services,"Cemetery, Cremation & Mortuary Services",5105686517,19.10.2018,Crematorium,Stationery,0.57,SUPPLIES TEAM LTD
Revenue,Neighbourhoods,Environmental & Regulatory Services,"Cemetery, Cremation & Mortuary Services",5105686517,19.10.2018,Crematorium,Stationery,1.9,SUPPLIES TEAM LTD
Revenue,Neighbourhoods,Environmental & Regulatory Services,"Cemetery, Cremation & Mortuary Services",5105686517,19.10.2018,Crematorium,Stationery,3.61,SUPPLIES TEAM LTD
Revenue,Neighbourhoods,Environmental & Regulatory Services,"Cemetery, Cremation & Mortuary Services",5105686517,19.10.2018,Crematorium,Stationery,10.62,SUPPLIES TEAM LTD
Revenue,Neighbourhoods,Environmental & Regulatory Services,"Cemetery, Cremation & Mortuary Services",5105686517,19.10.2018,Crematorium,Stationery,7.74,SUPPLIES TEAM LTD
Revenue,Neighbourhoods,Environmental & Regulatory Services,"Cemetery, Cremation & Mortuary Services",5105686517,19.10.2018,Crematorium,Stationery,21.98,SUPPLIES TEAM LTD
Revenue,Adult Services,Adult Social Care,Commissioning & Service Delivery,5105686515,10.10.2018,Adult Social Care Enterprise House,Stationery,12.21,SUPPLIES TEAM LTD
Revenue,Adult Services,Adult Social Care,Commissioning & Service Delivery,5105686515,10.10.2018,Adult Social Care Enterprise House,Stationery,6.15,SUPPLIES TEAM LTD
Revenue,Adult Services,Adult Social Care,Commissioning & Service Delivery,5105686514,10.10.2018,Learning Disability Homes Management & Admin,Stationery,21.24,SUPPLIES TEAM LTD
Revenue,Adult Services,Adult Social Care,Commissioning & Service Delivery,5105686514,10.10.2018,Learning Disability Homes Management & Admin,Stationery,0.53,SUPPLIES TEAM LTD
Revenue,Adult Services,Adult Social Care,Commissioning & Service Delivery,5105686514,10.10.2018,Learning Disability Homes Management & Admin,Stationery,0.16,SUPPLIES TEAM LTD
Revenue,Adult Services,Adult Social Care,Commissioning & Service Delivery,5105686514,10.10.2018,Learning Disability Homes Management & Admin,Stationery,0.39,SUPPLIES TEAM LTD
Revenue,Adult Services,Adult Social Care,Commissioning & Service Delivery,5105686514,10.10.2018,Learning Disability Homes Management & Admin,Stationery,3.44,SUPPLIES TEAM LTD
Revenue,Neighbourhoods,Cultural and Related Services,Library Service,5105686521,10.10.2018,Cowes Library,Stationery,10.62,SUPPLIES TEAM LTD
Revenue,Place,Planning services,Management & Support Services,5105686722,26.10.2018,Planning Management,Stationery,3.21,SUPPLIES TEAM LTD
Revenue,Public Health,Public Health,Miscellaneous Public Health Services,5105686687,10.10.2018,Public Health Core Staffing NP,Stationery,1.61,SUPPLIES TEAM LTD
Revenue,Public Health,Public Health,Miscellaneous Public Health Services,5105686687,10.10.2018,Public Health Core Staffing NP,Stationery,10.62,SUPPLIES TEAM LTD
Revenue,Public Health,Public Health,Miscellaneous Public Health Services,5105686687,10.10.2018,Public Health Core Staffing NP,Stationery,8.14,SUPPLIES TEAM LTD
Revenue,Childrens Services,Children's & Education Services,Safeguarding Children/Young Peoples Svs,5105686685,10.10.2018,Children's office costs,Stationery,1.23,SUPPLIES TEAM LTD
Revenue,Childrens Services,Children's & Education Services,Safeguarding Children/Young Peoples Svs,5105686685,10.10.2018,Children's office costs,Stationery,1.8,SUPPLIES TEAM LTD
Revenue,Resources,Central Services,Central Services to the Public,5105686685,10.10.2018,Electoral Registration Office,Stationery,2.49,SUPPLIES TEAM LTD
Revenue,Resources,Central Services,Support Services,5105686685,10.10.2018,Help Centres Shared Service Centre,Stationery,10.62,SUPPLIES TEAM LTD
Revenue,Resources,Central Services,Support Services,5105686685,10.10.2018,Help Centres Shared Service Centre,Stationery,10.62,SUPPLIES TEAM LTD
Revenue,Childrens Services,Children's & Education Services,Safeguarding Children/Young Peoples Svs,5105686685,10.10.2018,Children's office costs,Stationery,10.62,SUPPLIES TEAM LTD
Revenue,Childrens Services,Children's & Education Services,Safeguarding Children/Young Peoples Svs,5105686685,10.10.2018,Children's office costs,Stationery,42.48,SUPPLIES TEAM LTD
Revenue,Resources,Central Services,Central Services to the Public,5105686685,10.10.2018,Electoral Registration Office,Stationery,2.46,SUPPLIES TEAM LTD
Revenue,Resources,Central Services,Central Services to the Public,5105686685,10.10.2018,Electoral Registration Office,Stationery,1.06,SUPPLIES TEAM LTD
Revenue,Resources,Central Services,Central Services to the Public,5105686685,10.10.2018,Electoral Registration Office,Stationery,6.1,SUPPLIES TEAM LTD
Revenue,Childrens Services,Children's & Education Services,Safeguarding Children/Young Peoples Svs,5105686685,10.10.2018,Children's office costs,Stationery,4.07,SUPPLIES TEAM LTD
Revenue,Childrens Services,Children's & Education Services,Safeguarding Children/Young Peoples Svs,5105687948,24.10.2018,Children's office costs,Stationery,0.96,SUPPLIES TEAM LTD
Revenue,Childrens Services,Children's & Education Services,Safeguarding Children/Young Peoples Svs,5105687948,24.10.2018,Children's office costs,Stationery,1.71,SUPPLIES TEAM LTD
Revenue,Childrens Services,Children's & Education Services,Safeguarding Children/Young Peoples Svs,5105687948,24.10.2018,Children's office costs,Stationery,1.65,SUPPLIES TEAM LTD
Revenue,Childrens Services,Children's & Education Services,Safeguarding Children/Young Peoples Svs,5105687948,24.10.2018,Commissioning (Children & Families),Stationery,5.44,SUPPLIES TEAM LTD
Revenue,Childrens Services,Children's & Education Services,Safeguarding Children/Young Peoples Svs,5105687948,24.10.2018,Commissioning (Children & Families),Stationery,4.3,SUPPLIES TEAM LTD
Revenue,Childrens Services,Children's & Education Services,Safeguarding Children/Young Peoples Svs,5105687948,24.10.2018,Children's office costs,Stationery,42.48,SUPPLIES TEAM LTD
Revenue,Regeneration,Planning services,Economic Development,5105687948,24.10.2018,Director of Regeneration,Stationery,1.68,SUPPLIES TEAM LTD
Revenue,Childrens Services,Children's & Education Services,Special Schools & Alternative Provision,5105687950,24.10.2018,Island Learning Centre,Stationery,12,SUPPLIES TEAM LTD
Revenue,Childrens Services,Children's & Education Services,Special Schools & Alternative Provision,5105687950,24.10.2018,Island Learning Centre,Stationery,3.6,SUPPLIES TEAM LTD
Revenue,Childrens Services,Children's & Education Services,Special Schools & Alternative Provision,5105687950,24.10.2018,Island Learning Centre,Stationery,0.38,SUPPLIES TEAM LTD
Revenue,Childrens Services,Children's & Education Services,Other Education and Community Budget,5105687648,19.10.2018,Learning & Development Running Costs,Stationery,63.72,SUPPLIES TEAM LTD
Revenue,Childrens Services,Children's & Education Services,Other Education and Community Budget,5105688381,26.10.2018,Learning & Development Running Costs,Stationery,5.7,SUPPLIES TEAM LTD
Revenue,Neighbourhoods,Cultural and Related Services,Library Service,5105688418,26.10.2018,Prison Library Service,Stationery,1.38,SUPPLIES TEAM LTD
